BIOGUIDE_ID,OFFICE,QUARTER,CATEGORY,DATE,PAYEE,START DATE,END DATE,PURPOSE,AMOUNT,YEAR,TRANSCODE,TRANSCODELONG,RECORDID,RECIP (orig.)
,COMMUNICATIONS,2010Q2,OTHER SERVICES,"",05­06   P2 MFP1000010       AMERISYS INC,03/09/10,03/09/10,NON-TECHNOLOGY SERVICE CONTRCT,250.00,FISCAL YEAR 2010,"","","",05­06   P2 MFP1000010       AMERISYS INC
,COMMUNICATIONS,2010Q2,OTHER SERVICES,"",05­06   P2 MFP1000012           DO,03/09/10,03/09/10,NON-TECHNOLOGY SERVICE CONTRCT,400.00,FISCAL YEAR 2010,"","","",05­06   P2 MFP1000012           DO
,COMMUNICATIONS,2010Q2,EQUIPMENT,"",04­12   P2   MFP2206AD2K    KIMBALL INT'L MARKETING,01/15/10,01/15/10,FURNITURE ­ $25000,"1,520.00",FISCAL YEAR 2010,"","","",04­12   P2   MFP2206AD2K    KIMBALL INT'L MARKETING
,COMMUNICATIONS,2010Q2,EQUIPMENT,"",04­12   P2   MFP2206AD2K             DO,01/15/10,01/15/10,FURNITURE ­ $25000,"1,101.12",FISCAL YEAR 2010,"","","",04­12   P2   MFP2206AD2K             DO
,COMMUNICATIONS,2010Q2,EQUIPMENT,"",04­29   S8   MA000947472,04/01/10,04/30/10,EQUIPMENT MAINTENANCE,16.00,FISCAL YEAR 2010,"","","",04­29   S8   MA000947472
,COMMUNICATIONS,2010Q2,EQUIPMENT,"",05­14   P2   MFP2407ADD     KIMBALL INT'L MARKETING,02/26/10,02/26/10,FURNITURE ­ $25000,567.59,FISCAL YEAR 2010,"","","",05­14   P2   MFP2407ADD     KIMBALL INT'L MARKETING
,COMMUNICATIONS,2010Q2,EQUIPMENT,"",05­14   P2   MFP2407ADD              DO,02/26/10,02/26/10,FURNITURE ­ $25000,"3,338.79",FISCAL YEAR 2010,"","","",05­14   P2   MFP2407ADD              DO
,COMMUNICATIONS,2010Q2,EQUIPMENT,"",05­17   P2   MFP2411ADAK             DO,04/15/10,04/15/10,FURNITURE ­ $25000,425.00,FISCAL YEAR 2010,"","","",05­17   P2   MFP2411ADAK             DO
,COMMUNICATIONS,2010Q2,EQUIPMENT,"",05­17   P2   MFP2411ADAK             DO,04/15/10,04/15/10,FURNITURE ­ $25000,"1,642.78",FISCAL YEAR 2010,"","","",05­17   P2   MFP2411ADAK             DO
,COMMUNICATIONS,2010Q2,EQUIPMENT,"",05­27   S8   MA000953288,05/01/10,05/31/10,EQUIPMENT MAINTENANCE,16.00,FISCAL YEAR 2010,"","","",05­27   S8   MA000953288
,COMMUNICATIONS,2010Q2,EQUIPMENT,"",06­14   P2   MFP35658ADG    THE GUNLOCKE COMPANY,04/29/10,04/29/10,FURNITURE ­ $25000,97.05,FISCAL YEAR 2010,"","","",06­14   P2   MFP35658ADG    THE GUNLOCKE COMPANY
,COMMUNICATIONS,2010Q2,EQUIPMENT,"",06­14   P2   MFP35658ADG             DO,04/29/10,04/29/10,FURNITURE ­ $25000,544.88,FISCAL YEAR 2010,"","","",06­14   P2   MFP35658ADG             DO
,COMMUNICATIONS,2010Q2,EQUIPMENT,"",06­21   P2   MFP2184ADDK    KIMBALL INT'L MARKETING,05/24/10,05/25/10,FURNITURE ­ $25000,820.00,FISCAL YEAR 2010,"","","",06­21   P2   MFP2184ADDK    KIMBALL INT'L MARKETING
,COMMUNICATIONS,2010Q2,EQUIPMENT,"",06­21   P2   MFP2184ADDK             DO,05/24/10,05/25/10,FURNITURE ­ $25000,"2,706.32",FISCAL YEAR 2010,"","","",06­21   P2   MFP2184ADDK             DO
,COMMUNICATIONS,2010Q2,EQUIPMENT,"",06­30   S8   MA000959118,06/01/10,06/30/10,EQUIPMENT MAINTENANCE,9.06,FISCAL YEAR 2010,"","","",06­30   S8   MA000959118
,OFFICE OF THE SPEAKER,2010Q2,PERSONNEL COMPENSATION,"","BAKO,STACEE N",04/01/10,05/31/10,DEPUTY DIRECTOR,"8,333.34",FISCAL YEAR 2010,"","","","BAKO,STACEE N"
,OFFICE OF THE SPEAKER,2010Q2,PERSONNEL COMPENSATION,"","DALY, BRENDAN",04/01/10,06/30/10,COMMUNICATIONS DIRECTOR,"43,125.00",FISCAL YEAR 2010,"","","","DALY, BRENDAN"
,OFFICE OF THE SPEAKER,2010Q2,PERSONNEL COMPENSATION,"","ONEK,JOSEPH",04/01/10,06/30/10,SENIOR COUNSEL TO THE SPEAKER,"43,125.00",FISCAL YEAR 2010,"","","","ONEK,JOSEPH"
,OFFICE OF THE SPEAKER,2010Q2,PERSONNEL COMPENSATION,"","PARKER, WYNDEE R",04/01/10,06/30/10,SENIOR POLICY ADVISOR,"43,125.00",FISCAL YEAR 2010,"","","","PARKER, WYNDEE R"
,OFFICE OF THE SPEAKER,2010Q2,PERSONNEL COMPENSATION,"","PRIMUS, WENDELL E",04/01/10,06/30/10,SENIOR POLICY ADVISOR,"43,125.00",FISCAL YEAR 2010,"","","","PRIMUS, WENDELL E"
,OFFICE OF THE SPEAKER,2010Q2,PERSONNEL COMPENSATION,"","QUALLS,ELLEN S",04/01/10,06/30/10,SR ADV FOR STRATEGIC PLANNING,"41,102.49",FISCAL YEAR 2010,"","","","QUALLS,ELLEN S"
,OFFICE OF THE SPEAKER,2010Q2,PERSONNEL COMPENSATION,"","BARRY,MARY K",04/01/10,06/30/10,SCHEDULING ASSISTANT,"12,802.50",FISCAL YEAR 2010,"","","","BARRY,MARY K"
,OFFICE OF THE SPEAKER,2010Q2,PERSONNEL COMPENSATION,"","BERENS,KELLY E",04/01/10,06/30/10,DIRECTOR OF ADVANCE,"17,923.50",FISCAL YEAR 2010,"","","","BERENS,KELLY E"
,OFFICE OF THE SPEAKER,2010Q2,PERSONNEL COMPENSATION,"","CASHMAN,MARY D",04/01/10,06/30/10,ASSIST TO THE CHIEF OF STAFF,"16,643.01",FISCAL YEAR 2010,"","","","CASHMAN,MARY D"
,OFFICE OF THE SPEAKER,2010Q2,PERSONNEL COMPENSATION,"","CHERRY,STEPHANIE",04/01/10,06/30/10,PRESS ADVISOR,"16,712.25",FISCAL YEAR 2010,"","","","CHERRY,STEPHANIE"
,OFFICE OF THE SPEAKER,2010Q2,PERSONNEL COMPENSATION,"","CHIU,CRYSTAL S",04/01/10,06/30/10,PRESS ASSISTANT,"12,972.99",FISCAL YEAR 2010,"","","","CHIU,CRYSTAL S"
,OFFICE OF THE SPEAKER,2010Q2,PERSONNEL COMPENSATION,"","DEWHIRST, DIANE",04/01/10,06/30/10,SENIOR ADVISOR,"28,500.00",FISCAL YEAR 2010,"","","","DEWHIRST, DIANE"
,OFFICE OF THE SPEAKER,2010Q2,PERSONNEL COMPENSATION,"","ELSHAMI,NADEEM",04/01/10,06/30/10,DEPUTY COMMUNICATIONS DIRECTOR,"40,968.00",FISCAL YEAR 2010,"","","","ELSHAMI,NADEEM"
,OFFICE OF THE SPEAKER,2010Q2,PERSONNEL COMPENSATION,"","FALLON,BRIDGET C",04/01/10,06/30/10,DIRECTOR OF PROTOCOL,"29,466.75",FISCAL YEAR 2010,"","","","FALLON,BRIDGET C"
,OFFICE OF THE SPEAKER,2010Q2,PERSONNEL COMPENSATION,"","FULWOOD,KATHERINE A",04/01/10,06/30/10,STAFF ASSISTANT - CORRES,"7,169.49",FISCAL YEAR 2010,"","","","FULWOOD,KATHERINE A"
,OFFICE OF THE SPEAKER,2010Q2,PERSONNEL COMPENSATION,"","FULWOOD,KATHERINE A",03/01/10,05/31/10,STAFF ASSISTANT - CORRES. (OVERTIME),170.62,FISCAL YEAR 2010,"","","",DO
,OFFICE OF THE SPEAKER,2010Q2,PERSONNEL COMPENSATION,"","GEORGE,EVANGELINE M",04/01/10,06/30/10,PRESS ASSISTANT,"9,217.74",FISCAL YEAR 2010,"","","","GEORGE,EVANGELINE M"
,OFFICE OF THE SPEAKER,2010Q2,PERSONNEL COMPENSATION,"","HAMMILL, ANDREW T",04/01/10,06/30/10,PRESS SECRETARY,"24,324.75",FISCAL YEAR 2010,"","","","HAMMILL, ANDREW T"
,OFFICE OF THE SPEAKER,2010Q2,PERSONNEL COMPENSATION,"","HARRILCHAK, MARISA L",04/01/10,06/30/10,FLOOR ASSISTANT,"18,620.25",FISCAL YEAR 2010,"","","","HARRILCHAK, MARISA L"
,OFFICE OF THE SPEAKER,2010Q2,PERSONNEL COMPENSATION,"","HARTZ, JERRY",04/01/10,06/30/10,DIRECTOR OF FLOOR OPERATIONS,"41,507.01",FISCAL YEAR 2010,"","","","HARTZ, JERRY"
,OFFICE OF THE SPEAKER,2010Q2,PERSONNEL COMPENSATION,"","HAYNES JR, WILFRED J",04/01/10,06/30/10,IT DIRECTOR,"24,530.49",FISCAL YEAR 2010,"","","","HAYNES JR, WILFRED J"
,OFFICE OF THE SPEAKER,2010Q2,PERSONNEL COMPENSATION,"","JONES, SYDNEY",04/01/10,06/30/10,DEPUTY DIRECTOR - MEMBER SVCS,"23,044.50",FISCAL YEAR 2010,"","","","JONES, SYDNEY"
,OFFICE OF THE SPEAKER,2010Q2,PERSONNEL COMPENSATION,"","KERR, STACY R",04/01/10,06/30/10,SPECIAL ASSISTANT,"34,646.49",FISCAL YEAR 2010,"","","","KERR, STACY R"
,OFFICE OF THE SPEAKER,2010Q2,PERSONNEL COMPENSATION,"","KNUDSON, KATE",04/01/10,05/31/10,PERSONAL ASSISTANT,"16,583.34",FISCAL YEAR 2010,"","","","KNUDSON, KATE"
,OFFICE OF THE SPEAKER,2010Q2,PERSONNEL COMPENSATION,"","LANE, EDGAR C",04/01/10,06/30/10,PRESS ADVISOR,"17,292.24",FISCAL YEAR 2010,"","","","LANE, EDGAR C"
,OFFICE OF THE SPEAKER,2010Q2,PERSONNEL COMPENSATION,"","LANE,GEOFFREY",04/01/10,06/30/10,STAFF ASSISTANT,"7,980.99",FISCAL YEAR 2010,"","","","LANE,GEOFFREY"
,OFFICE OF THE SPEAKER,2010Q2,PERSONNEL COMPENSATION,"","LANE,GEOFFREY",03/01/10,05/31/10,STAFF ASSISTANT (OVERTIME),"2,682.05",FISCAL YEAR 2010,"","","",DO
,OFFICE OF THE SPEAKER,2010Q2,PERSONNEL COMPENSATION,"","LASSIG,MEGAN",04/01/10,06/30/10,PRESS ASSISTANT,"12,802.50",FISCAL YEAR 2010,"","","","LASSIG,MEGAN"
,OFFICE OF THE SPEAKER,2010Q2,PERSONNEL COMPENSATION,"","LIZARRAGA, JAIME E",04/01/10,06/30/10,DIR.MEM.SERV/SR. ADV,"39,905.49",FISCAL YEAR 2010,"","","","LIZARRAGA, JAIME E"
,OFFICE OF THE SPEAKER,2010Q2,PERSONNEL COMPENSATION,"","LONG,MICHAEL G",04/01/10,06/30/10,SPECIAL ASSISTANT,"14,082.75",FISCAL YEAR 2010,"","","","LONG,MICHAEL G"
,OFFICE OF THE SPEAKER,2010Q2,PERSONNEL COMPENSATION,"","MANATOS, ANASTASIOS",04/01/10,06/30/10,DEP.DIR-MEM.SRV/OUTREACH,"23,943.24",FISCAL YEAR 2010,"","","","MANATOS, ANASTASIOS"
,OFFICE OF THE SPEAKER,2010Q2,PERSONNEL COMPENSATION,"","MANGRUM, PEARL J",04/01/10,06/30/10,OFFICE MANAGER,"8,180.55",FISCAL YEAR 2010,"","","","MANGRUM, PEARL J"
,OFFICE OF THE SPEAKER,2010Q2,PERSONNEL COMPENSATION,"","MCCULLOUGH, MARY T",04/01/10,06/30/10,ADVISOR TO THE SPEAKER,"10,794.00",FISCAL YEAR 2010,"","","","MCCULLOUGH, MARY T"
,OFFICE OF THE SPEAKER,2010Q2,PERSONNEL COMPENSATION,"","MEDLIN,MELINDA L",04/01/10,06/30/10,DIRECTOR OF SCHEDULING,"35,847.00",FISCAL YEAR 2010,"","","","MEDLIN,MELINDA L"
,OFFICE OF THE SPEAKER,2010Q2,PERSONNEL COMPENSATION,"","MERZ, JULIE E",04/01/10,06/30/10,SPECIAL ASSISTANT,"1,479.40",FISCAL YEAR 2010,"","","","MERZ, JULIE E"
,OFFICE OF THE SPEAKER,2010Q2,PERSONNEL COMPENSATION,"","MOORE, REBECCA G",04/01/10,06/30/10,DEPUTY SCHEDULER,"18,542.25",FISCAL YEAR 2010,"","","","MOORE, REBECCA G"
,OFFICE OF THE SPEAKER,2010Q2,PERSONNEL COMPENSATION,"","NEWTON, KARINA L",04/01/10,06/30/10,DIRECTOR OF NEW MEDIA,"25,344.51",FISCAL YEAR 2010,"","","","NEWTON, KARINA L"
,OFFICE OF THE SPEAKER,2010Q2,PERSONNEL COMPENSATION,"","O'NEILL, CATLIN W",06/01/10,06/30/10,DEPUTY DIR LEG OPERATIONS,"9,311.25",FISCAL YEAR 2010,"","","","O'NEILL, CATLIN W"
,OFFICE OF THE SPEAKER,2010Q2,PERSONNEL COMPENSATION,"","O'NEILL, CATLIN W",04/01/10,05/31/10,DEPUTY FLOOR ASSISTANT,"18,622.50",FISCAL YEAR 2010,"","","",DO
,OFFICE OF THE SPEAKER,2010Q2,PERSONNEL COMPENSATION,"","POWELL,JONATHAN M",04/01/10,06/30/10,DEPUTY SPEECHWRITER,"15,363.00",FISCAL YEAR 2010,"","","","POWELL,JONATHAN M"
,OFFICE OF THE SPEAKER,2010Q2,PERSONNEL COMPENSATION,"","QUINTO,RICARDO A",04/01/10,06/30/10,TELEPHONE STAFF ASSISTANT,"7,681.50",FISCAL YEAR 2010,"","","","QUINTO,RICARDO A"
,OFFICE OF THE SPEAKER,2010Q2,PERSONNEL COMPENSATION,"","QUINTO,RICARDO A",03/01/10,05/31/10,TELEPHONE STAFF ASSISTANT (OVERTIME),"3,257.22",FISCAL YEAR 2010,"","","",DO
,OFFICE OF THE SPEAKER,2010Q2,PERSONNEL COMPENSATION,"","RAYMOND,SAMUEL H",04/01/10,06/30/10,STAFF ASSISTANT,"7,681.50",FISCAL YEAR 2010,"","","","RAYMOND,SAMUEL H"
,OFFICE OF THE SPEAKER,2010Q2,PERSONNEL COMPENSATION,"","RAYMOND,SAMUEL H",03/01/10,05/31/10,STAFF ASSISTANT (OVERTIME),"5,151.72",FISCAL YEAR 2010,"","","",DO
,OFFICE OF THE SPEAKER,2010Q2,PERSONNEL COMPENSATION,"","ROLLAND,STACEY L",06/07/10,06/30/10,POLICY ADVISOR - TAX,"8,000.00",FISCAL YEAR 2010,"","","","ROLLAND,STACEY L"
,OFFICE OF THE SPEAKER,2010Q2,PERSONNEL COMPENSATION,"","ROSE,CHERYL P",04/01/10,06/30/10,DIR OF INTERGOV'T AFFAIRS,"41,223.99",FISCAL YEAR 2010,"","","","ROSE,CHERYL P"
,OFFICE OF THE SPEAKER,2010Q2,PERSONNEL COMPENSATION,"","SANCHEZ, CARLOS S",04/01/10,06/30/10,PRESS ADVISOR,"16,041.24",FISCAL YEAR 2010,"","","","SANCHEZ, CARLOS S"
,OFFICE OF THE SPEAKER,2010Q2,PERSONNEL COMPENSATION,"","SCHMIDT, AARON",04/01/10,06/30/10,LEGISLATIVE DIRECTOR,"20,484.00",FISCAL YEAR 2010,"","","","SCHMIDT, AARON"
,OFFICE OF THE SPEAKER,2010Q2,PERSONNEL COMPENSATION,"","SHORT, PAULA M",04/01/10,05/31/10,OFFICE MANAGER,"6,763.08",FISCAL YEAR 2010,"","","","SHORT, PAULA M"
,OFFICE OF THE SPEAKER,2010Q2,PERSONNEL COMPENSATION,"","SHORT, PAULA M",04/01/10,05/31/10,OFFICE MANAGER (OTHER COMPENSATION),"6,692.60",FISCAL YEAR 2010,"","","",DO
,OFFICE OF THE SPEAKER,2010Q2,PERSONNEL COMPENSATION,"","SHYU,ELISA",04/01/10,06/30/10,ADVANCE ASSISTANT,"12,772.26",FISCAL YEAR 2010,"","","","SHYU,ELISA"
,OFFICE OF THE SPEAKER,2010Q2,PERSONNEL COMPENSATION,"","SILVERMAN,DAVID",04/01/10,06/30/10,STAFF ASSISTANT,"9,018.51",FISCAL YEAR 2010,"","","","SILVERMAN,DAVID"
,OFFICE OF THE SPEAKER,2010Q2,PERSONNEL COMPENSATION,"","SILVERMAN,DAVID",03/01/10,05/31/10,STAFF ASSISTANT (OVERTIME),468.26,FISCAL YEAR 2010,"","","",DO
,OFFICE OF THE SPEAKER,2010Q2,PERSONNEL COMPENSATION,"","SMITH, SAMANTHA D",04/01/10,04/09/10,SPECIAL ASSISTANT,"1,030.10",FISCAL YEAR 2010,"","","","SMITH, SAMANTHA D"
,OFFICE OF THE SPEAKER,2010Q2,PERSONNEL COMPENSATION,"","STALLMAN, ERIK R",04/01/10,06/30/10,COUNSEL AND POLICY ADVISOR,"28,933.74",FISCAL YEAR 2010,"","","","STALLMAN, ERIK R"
,OFFICE OF THE SPEAKER,2010Q2,PERSONNEL COMPENSATION,"","STIVERS, JONATHAN",04/01/10,06/30/10,SENIOR ADVISOR,"33,750.00",FISCAL YEAR 2010,"","","","STIVERS, JONATHAN"
,OFFICE OF THE SPEAKER,2010Q2,PERSONNEL COMPENSATION,"","SURGEON,BINA G",04/01/10,06/30/10,DEPUTY DIRECTOR OF PROTOCOL,"14,082.75",FISCAL YEAR 2010,"","","","SURGEON,BINA G"
,OFFICE OF THE SPEAKER,2010Q2,PERSONNEL COMPENSATION,"","THORNELL,DOUGLASS",04/01/10,06/30/10,SHARED EMPLOYEE,"13,442.76",FISCAL YEAR 2010,"","","","THORNELL,DOUGLASS"
,OFFICE OF THE SPEAKER,2010Q2,PERSONNEL COMPENSATION,"","VEITCH, ALEXANDRA N",04/01/10,06/30/10,DIRECTOR OF SPEECHWRITING,"28,165.50",FISCAL YEAR 2010,"","","","VEITCH, ALEXANDRA N"
,OFFICE OF THE SPEAKER,2010Q2,PERSONNEL COMPENSATION,"","WIDMANN,MICHELLE C",04/01/10,06/30/10,STAFF ASSISTANT,"7,681.50",FISCAL YEAR 2010,"","","","WIDMANN,MICHELLE C"
,OFFICE OF THE SPEAKER,2010Q2,PERSONNEL COMPENSATION,"","WOLTERS, KATE",06/01/10,06/30/10,PERSONAL ASSISTANT,"8,291.67",FISCAL YEAR 2010,"","","","WOLTERS, KATE"
,OFFICE OF THE SPEAKER,2010Q2,PERSONNEL COMPENSATION,"","WOOTERS III,CHARLES R",04/01/10,06/30/10,DIRECTOR,"33,286.50",FISCAL YEAR 2010,"","","","WOOTERS III,CHARLES R"
,OFFICE OF THE SPEAKER,2010Q2,TRAVEL,"",04­05   P1 10SH0100375      CITIBANK GOV CARD SERVICE,03/05/10,03/07/10,COMMERCIAL TRANSPORTATION,609.00,FISCAL YEAR 2010,"","","",04­05   P1 10SH0100375      CITIBANK GOV CARD SERVICE
,OFFICE OF THE SPEAKER,2010Q2,TRAVEL,"",04­05   P1 10SH0100376           DO,03/05/10,03/06/10,CAR RENTAL,182.81,FISCAL YEAR 2010,"","","",04­05   P1 10SH0100376           DO
,OFFICE OF THE SPEAKER,2010Q2,TRAVEL,"",04­05   P1 10SH0100377           DO,03/05/10,03/06/10,MEALS,118.27,FISCAL YEAR 2010,"","","",04­05   P1 10SH0100377           DO
,OFFICE OF THE SPEAKER,2010Q2,TRAVEL,"",04­05   P1 10SH0100373      ELISA SHYU,03/05/10,03/07/10,"TAXI, PARKING, TOLLS",17.00,FISCAL YEAR 2010,"","","",04­05   P1 10SH0100373      ELISA SHYU
,OFFICE OF THE SPEAKER,2010Q2,TRAVEL,"",04­07   P1 10SH0100426      ANDREW HAMMILL,03/07/10,03/08/10,LODGING,289.23,FISCAL YEAR 2010,"","","",04­07   P1 10SH0100426      ANDREW HAMMILL
,OFFICE OF THE SPEAKER,2010Q2,TRAVEL,"",04­07   P1 10SH0100427           DO,03/07/10,03/08/10,MEALS,8.07,FISCAL YEAR 2010,"","","",04­07   P1 10SH0100427           DO
,OFFICE OF THE SPEAKER,2010Q2,TRAVEL,"",04­07   P1 10SH0100431           DO,03/07/10,03/08/10,COMMERCIAL TRANSPORTATION,332.00,FISCAL YEAR 2010,"","","",04­07   P1 10SH0100431           DO
,OFFICE OF THE SPEAKER,2010Q2,TRAVEL,"",04­07   P1 10SH0100378      CITIBANK GOV CARD SERVICE,02/19/10,02/22/10,COMMERCIAL TRANSPORTATION,944.60,FISCAL YEAR 2010,"","","",04­07   P1 10SH0100378      CITIBANK GOV CARD SERVICE
,OFFICE OF THE SPEAKER,2010Q2,TRAVEL,"",04­07   P1 10SH0100379           DO,02/18/10,02/20/10,COMMERCIAL TRANSPORTATION,529.80,FISCAL YEAR 2010,"","","",04­07   P1 10SH0100379           DO
,OFFICE OF THE SPEAKER,2010Q2,TRAVEL,"",04­07   P1 10SH0100380           DO,02/20/10,02/20/10,LODGING,136.60,FISCAL YEAR 2010,"","","",04­07   P1 10SH0100380           DO
,OFFICE OF THE SPEAKER,2010Q2,TRAVEL,"",04­07   P1 10SH0100381           DO,02/20/10,02/22/10,LODGING,883.50,FISCAL YEAR 2010,"","","",04­07   P1 10SH0100381           DO
,OFFICE OF THE SPEAKER,2010Q2,TRAVEL,"",04­07   P1 10SH0100382           DO,01/27/10,02/17/10,COMMERCIAL TRANSPORTATION,200.00,FISCAL YEAR 2010,"","","",04­07   P1 10SH0100382           DO
,OFFICE OF THE SPEAKER,2010Q2,TRAVEL,"",04­07   P1 10SH0100383           DO,01/28/10,01/29/10,COMMERCIAL TRANSPORTATION,215.40,FISCAL YEAR 2010,"","","",04­07   P1 10SH0100383           DO
,OFFICE OF THE SPEAKER,2010Q2,TRAVEL,"",04­07 P1 10SH0100384               DO,01/29/10,01/29/10,COMMERCIAL TRANSPORTATION,62.70,FISCAL YEAR 2010,"","","",04­07 P1 10SH0100384               DO
,OFFICE OF THE SPEAKER,2010Q2,TRAVEL,"",04­07 P1 10SH0100385               DO,02/20/10,02/22/10,COMMERCIAL TRANSPORTATION,554.90,FISCAL YEAR 2010,"","","",04­07 P1 10SH0100385               DO
,OFFICE OF THE SPEAKER,2010Q2,TRAVEL,"",04­07 P1 10SH0100386               DO,02/19/10,02/19/10,COMMERCIAL TRANSPORTATION,943.90,FISCAL YEAR 2010,"","","",04­07 P1 10SH0100386               DO
,OFFICE OF THE SPEAKER,2010Q2,TRAVEL,"",04­07 P1 10SH0100387               DO,02/18/10,02/22/10,COMMERCIAL TRANSPORTATION,"1,887.80",FISCAL YEAR 2010,"","","",04­07 P1 10SH0100387               DO
,OFFICE OF THE SPEAKER,2010Q2,TRAVEL,"",04­07 P1 10SH0100392               DO,03/05/10,03/06/10,LODGING,256.48,FISCAL YEAR 2010,"","","",04­07 P1 10SH0100392               DO
,OFFICE OF THE SPEAKER,2010Q2,TRAVEL,"",04­07 P1 10SH0100393               DO,03/05/10,03/05/10,"TAXI, PARKING, TOLLS",25.76,FISCAL YEAR 2010,"","","",04­07 P1 10SH0100393               DO
,OFFICE OF THE SPEAKER,2010Q2,TRAVEL,"",04­07 P1 10SH0100394               DO,03/05/10,03/06/10,LODGING,266.43,FISCAL YEAR 2010,"","","",04­07 P1 10SH0100394               DO
,OFFICE OF THE SPEAKER,2010Q2,TRAVEL,"",04­07 P1 10SH0100432          KATE KNUDSON,03/05/10,03/08/10,LODGING,"1,177.53",FISCAL YEAR 2010,"","","",04­07 P1 10SH0100432          KATE KNUDSON
,OFFICE OF THE SPEAKER,2010Q2,TRAVEL,"",04­07 P1 10SH0100433               DO,03/05/10,03/08/10,MEALS,300.70,FISCAL YEAR 2010,"","","",04­07 P1 10SH0100433               DO
,OFFICE OF THE SPEAKER,2010Q2,TRAVEL,"",04­07 P1 10SH0100434               DO,03/05/10,03/08/10,"TAXI, PARKING, TOLLS",52.30,FISCAL YEAR 2010,"","","",04­07 P1 10SH0100434               DO
,OFFICE OF THE SPEAKER,2010Q2,TRAVEL,"",04­28 P1 10SH0100466          ANDREW HAMMILL,03/07/10,03/07/10,"TAXI, PARKING, TOLLS",48.40,FISCAL YEAR 2010,"","","",04­28 P1 10SH0100466          ANDREW HAMMILL
,OFFICE OF THE SPEAKER,2010Q2,TRAVEL,"",04­28 P1 10SH0100454          BRENDAN DALY,04/08/10,04/08/10,"TAXI, PARKING, TOLLS",84.34,FISCAL YEAR 2010,"","","",04­28 P1 10SH0100454          BRENDAN DALY
,OFFICE OF THE SPEAKER,2010Q2,TRAVEL,"",04­28 P1 10SH0100455               DO,04/08/10,04/08/10,MEALS,195.95,FISCAL YEAR 2010,"","","",04­28 P1 10SH0100455               DO
,OFFICE OF THE SPEAKER,2010Q2,TRAVEL,"",04­28 P1 10SH0100478               DO,04/08/10,04/08/10,MEALS,67.60,FISCAL YEAR 2010,"","","",04­28 P1 10SH0100478               DO
,OFFICE OF THE SPEAKER,2010Q2,TRAVEL,"",04­28 P1 10SH0100443          CITIBANK GOV CARD SERVICE,04/12/10,04/12/10,COMMERCIAL TRANSPORTATION,152.70,FISCAL YEAR 2010,"","","",04­28 P1 10SH0100443          CITIBANK GOV CARD SERVICE
,OFFICE OF THE SPEAKER,2010Q2,TRAVEL,"",04­28 P1 10SH0100444               DO,02/28/10,02/28/10,COMMERCIAL TRANSPORTATION,927.40,FISCAL YEAR 2010,"","","",04­28 P1 10SH0100444               DO
,OFFICE OF THE SPEAKER,2010Q2,TRAVEL,"",04­28 P1 10SH0100445               DO,03/05/10,03/05/10,COMMERCIAL TRANSPORTATION,329.40,FISCAL YEAR 2010,"","","",04­28 P1 10SH0100445               DO
,OFFICE OF THE SPEAKER,2010Q2,TRAVEL,"",04­28 P1 10SH0100446               DO,03/05/10,03/05/10,COMMERCIAL TRANSPORTATION,298.10,FISCAL YEAR 2010,"","","",04­28 P1 10SH0100446               DO
,OFFICE OF THE SPEAKER,2010Q2,TRAVEL,"",04­28 P1 10SH0100461          ELISA SHYU,03/09/10,04/14/10,"TAXI, PARKING, TOLLS",175.00,FISCAL YEAR 2010,"","","",04­28 P1 10SH0100461          ELISA SHYU
,OFFICE OF THE SPEAKER,2010Q2,TRAVEL,"",04­28 P1 10SH0100439          ERIK STALLMAN,02/04/10,02/07/10,COMMERCIAL TRANSPORTATION,872.40,FISCAL YEAR 2010,"","","",04­28 P1 10SH0100439          ERIK STALLMAN
,OFFICE OF THE SPEAKER,2010Q2,TRAVEL,"",04­28 P1 10SH0100440               DO,02/04/10,02/07/10,LODGING,620.61,FISCAL YEAR 2010,"","","",04­28 P1 10SH0100440               DO
,OFFICE OF THE SPEAKER,2010Q2,TRAVEL,"",04­28 P1 10SH0100441               DO,02/05/10,02/06/10,MEALS,61.68,FISCAL YEAR 2010,"","","",04­28 P1 10SH0100441               DO
,OFFICE OF THE SPEAKER,2010Q2,TRAVEL,"",04­28 P1 10SH0100442               DO,02/04/10,02/07/10,"TAXI, PARKING, TOLLS",165.00,FISCAL YEAR 2010,"","","",04­28 P1 10SH0100442               DO
,OFFICE OF THE SPEAKER,2010Q2,TRAVEL,"",04­28 P1 10SH0100472          JONATHAN STIVERS,02/24/10,03/16/10,"TAXI, PARKING, TOLLS",18.00,FISCAL YEAR 2010,"","","",04­28 P1 10SH0100472          JONATHAN STIVERS
,OFFICE OF THE SPEAKER,2010Q2,TRAVEL,"",04­28 P1 10SH0100458          KATHERINE A FULWOOD,04/07/10,04/07/10,"TAXI, PARKING, TOLLS",12.75,FISCAL YEAR 2010,"","","",04­28 P1 10SH0100458          KATHERINE A FULWOOD
,OFFICE OF THE SPEAKER,2010Q2,TRAVEL,"",04­28 P1 10SH0100457          KELLY E BERENS,03/17/10,03/23/10,"TAXI, PARKING, TOLLS",48.00,FISCAL YEAR 2010,"","","",04­28 P1 10SH0100457          KELLY E BERENS
,OFFICE OF THE SPEAKER,2010Q2,TRAVEL,"",04­30 P1 10SH0100476          CITIBANK GOV CARD SERVICE,04/01/10,04/01/10,"TAXI, PARKING, TOLLS",34.00,FISCAL YEAR 2010,"","","",04­30 P1 10SH0100476          CITIBANK GOV CARD SERVICE
,OFFICE OF THE SPEAKER,2010Q2,TRAVEL,"",04­30 P1 10SH0100477               DO,04/01/10,04/01/10,MEALS,26.64,FISCAL YEAR 2010,"","","",04­30 P1 10SH0100477               DO
,OFFICE OF THE SPEAKER,2010Q2,TRAVEL,"",04­30 P1 10SH0100480          TOM MANATOS,04/01/10,04/01/10,CAR RENTAL,114.74,FISCAL YEAR 2010,"","","",04­30 P1 10SH0100480          TOM MANATOS
,OFFICE OF THE SPEAKER,2010Q2,TRAVEL,"",05­12 P1 10SH0100494          ELISA SHYU,04/22/10,05/01/10,"TAXI, PARKING, TOLLS",135.75,FISCAL YEAR 2010,"","","",05­12 P1 10SH0100494          ELISA SHYU
,OFFICE OF THE SPEAKER,2010Q2,TRAVEL,"",05­12 P1 10SH0100493          JONATHAN STIVERS,04/14/10,05/04/10,"TAXI, PARKING, TOLLS",60.00,FISCAL YEAR 2010,"","","",05­12 P1 10SH0100493          JONATHAN STIVERS
,OFFICE OF THE SPEAKER,2010Q2,TRAVEL,"",05­19 P1 10SH0100503          CITIBANK GOV CARD SERVICE,04/22/10,04/23/10,MEALS,52.61,FISCAL YEAR 2010,"","","",05­19 P1 10SH0100503          CITIBANK GOV CARD SERVICE
,OFFICE OF THE SPEAKER,2010Q2,TRAVEL,"",05­19 P1 10SH0100504               DO,04/22/10,04/23/10,LODGING,70.00,FISCAL YEAR 2010,"","","",05­19 P1 10SH0100504               DO
,OFFICE OF THE SPEAKER,2010Q2,TRAVEL,"",05­19 P1 10SH0100506               DO,04/20/10,04/20/10,COMMERCIAL TRANSPORTATION,179.70,FISCAL YEAR 2010,"","","",05­19 P1 10SH0100506               DO
,OFFICE OF THE SPEAKER,2010Q2,TRAVEL,"",05­19 P1 10SH0100507               DO,04/18/10,04/20/10,CAR RENTAL,237.23,FISCAL YEAR 2010,"","","",05­19 P1 10SH0100507               DO
,OFFICE OF THE SPEAKER,2010Q2,TRAVEL,"",05­19 P1 10SH0100508               DO,04/18/10,04/20/10,MEALS,233.41,FISCAL YEAR 2010,"","","",05­19 P1 10SH0100508               DO
,OFFICE OF THE SPEAKER,2010Q2,TRAVEL,"",05­19 P1 10SH0100509               DO,04/20/10,04/20/10,"TAXI, PARKING, TOLLS",70.00,FISCAL YEAR 2010,"","","",05­19 P1 10SH0100509               DO
,OFFICE OF THE SPEAKER,2010Q2,TRAVEL,"",05­19 P1 10SH0100510               DO,04/18/10,04/20/10,LODGING,502.25,FISCAL YEAR 2010,"","","",05­19 P1 10SH0100510               DO
,OFFICE OF THE SPEAKER,2010Q2,TRAVEL,"",05­19 P1 10SH0100511               DO,04/20/10,04/20/10,COMMERCIAL TRANSPORTATION,25.00,FISCAL YEAR 2010,"","","",05­19 P1 10SH0100511               DO
,OFFICE OF THE SPEAKER,2010Q2,TRAVEL,"",05­19 P1 10SH0100512          ELISA SHYU,04/18/10,04/18/10,"TAXI, PARKING, TOLLS",16.00,FISCAL YEAR 2010,"","","",05­19 P1 10SH0100512          ELISA SHYU
,OFFICE OF THE SPEAKER,2010Q2,TRAVEL,"",05­19 P1 10SH0100505          KELLY E BERENS,04/20/10,04/21/10,"TAXI, PARKING, TOLLS",14.00,FISCAL YEAR 2010,"","","",05­19 P1 10SH0100505          KELLY E BERENS
,OFFICE OF THE SPEAKER,2010Q2,TRAVEL,"",06­01 P1 10SH0100519          CITIBANK GOV CARD SERVICE,05/14/10,05/16/10,MEALS,113.69,FISCAL YEAR 2010,"","","",06­01 P1 10SH0100519          CITIBANK GOV CARD SERVICE
,OFFICE OF THE SPEAKER,2010Q2,TRAVEL,"",06­01 P1 10SH0100520               DO,05/14/10,05/16/10,"TAXI, PARKING, TOLLS",145.00,FISCAL YEAR 2010,"","","",06­01 P1 10SH0100520               DO
,OFFICE OF THE SPEAKER,2010Q2,TRAVEL,"",06­01   P1   10SH0100521                     DO,05/14/10,05/16/10,CAR RENTAL,243.00,FISCAL YEAR 2010,"","","",06­01   P1   10SH0100521                     DO
,OFFICE OF THE SPEAKER,2010Q2,TRAVEL,"",06­01   P1   10SH0100523                     DO,05/14/10,05/16/10,LODGING,648.84,FISCAL YEAR 2010,"","","",06­01   P1   10SH0100523                     DO
,OFFICE OF THE SPEAKER,2010Q2,TRAVEL,"",06­01   P1   10SH0100527                ELISA SHYU,05/12/10,05/15/10,TRAVEL REIMBURSEMENT,24.00,FISCAL YEAR 2010,"","","",06­01   P1   10SH0100527                ELISA SHYU
,OFFICE OF THE SPEAKER,2010Q2,TRAVEL,"",06­01   P1   10SH0100526                MICHAEL G LONG,04/07/10,04/11/10,TRAVEL REIMBURSEMENT,526.42,FISCAL YEAR 2010,"","","",06­01   P1   10SH0100526                MICHAEL G LONG
,OFFICE OF THE SPEAKER,2010Q2,TRAVEL,"",06­02   P1   10SH0100522                CITIBANK GOV CARD SERVICE,05/14/10,05/16/10,COMMERCIAL TRANSPORTATION,389.40,FISCAL YEAR 2010,"","","",06­02   P1   10SH0100522                CITIBANK GOV CARD SERVICE
,OFFICE OF THE SPEAKER,2010Q2,TRAVEL,"",06­04   P1   10SH0100531                     DO,05/13/10,05/13/10,MEALS,2.92,FISCAL YEAR 2010,"","","",06­04   P1   10SH0100531                     DO
,OFFICE OF THE SPEAKER,2010Q2,TRAVEL,"",06­04   P1   10SH0100533                     DO,04/28/10,04/28/10,MEALS,15.42,FISCAL YEAR 2010,"","","",06­04   P1   10SH0100533                     DO
,OFFICE OF THE SPEAKER,2010Q2,TRAVEL,"",06­09   P1   10SH0100546                ANDREW HAMMILL,05/03/10,05/03/10,"TAXI, PARKING, TOLLS",50.40,FISCAL YEAR 2010,"","","",06­09   P1   10SH0100546                ANDREW HAMMILL
,OFFICE OF THE SPEAKER,2010Q2,TRAVEL,"",06­09   P1   10SH0100547                     DO,05/03/10,05/03/10,MEALS,14.23,FISCAL YEAR 2010,"","","",06­09   P1   10SH0100547                     DO
,OFFICE OF THE SPEAKER,2010Q2,TRAVEL,"",06­10   P1   10SH0100559                CITIBANK GOV CARD SERVICE,03/25/10,04/09/10,COMMERCIAL TRANSPORTATION,"4,298.22",FISCAL YEAR 2010,"","","",06­10   P1   10SH0100559                CITIBANK GOV CARD SERVICE
,OFFICE OF THE SPEAKER,2010Q2,TRAVEL,"",06­10   P1   10SH0100545                KAREN G WAYLAND,04/07/10,05/04/10,TRAVEL REIMBURSEMENT,952.22,FISCAL YEAR 2010,"","","",06­10   P1   10SH0100545                KAREN G WAYLAND
,OFFICE OF THE SPEAKER,2010Q2,TRAVEL,"",06­16   P1   10SH0100558                KATE KNUDSON,05/29/10,05/30/10,TRAVEL REIMBURSEMENT,451.29,FISCAL YEAR 2010,"","","",06­16   P1   10SH0100558                KATE KNUDSON
,OFFICE OF THE SPEAKER,2010Q2,TRAVEL,"",06­16   P1   10SH0100556                KELLY E BERENS,04/27/10,06/26/10,"TAXI, PARKING, TOLLS",58.00,FISCAL YEAR 2010,"","","",06­16   P1   10SH0100556                KELLY E BERENS
,OFFICE OF THE SPEAKER,2010Q2,TRAVEL,"",06­16   P1   10SH0100557                TOM MANATOS,05/27/10,05/29/10,TRAVEL REIMBURSEMENT,290.11,FISCAL YEAR 2010,"","","",06­16   P1   10SH0100557                TOM MANATOS
,OFFICE OF THE SPEAKER,2010Q2,TRAVEL,"",06­22   P1   10SH0100565                ELISA SHYU,05/19/10,06/02/10,"TAXI, PARKING, TOLLS",138.00,FISCAL YEAR 2010,"","","",06­22   P1   10SH0100565                ELISA SHYU
,OFFICE OF THE SPEAKER,2010Q2,TRAVEL,"",06­23   P1   10SH0100574                KELLY E BERENS,06/01/10,06/02/10,"TAXI, PARKING, TOLLS",37.00,FISCAL YEAR 2010,"","","",06­23   P1   10SH0100574                KELLY E BERENS
,OFFICE OF THE SPEAKER,2010Q2,TRAVEL,"",06­25   HV   10A90300875                CITIBANK GOV CARD SERVICE,03/25/10,04/09/10,TRAVEL REIMBURSEMENT,"4,298.22",FISCAL YEAR 2010,"","","",06­25   HV   10A90300875                CITIBANK GOV CARD SERVICE
,OFFICE OF THE SPEAKER,2010Q2,TRAVEL,"",06­29   P1   10SH0100585                     DO,04/26/10,05/16/10,TRAVEL REIMBURSEMENT,11.50,FISCAL YEAR 2010,"","","",06­29   P1   10SH0100585                     DO
,OFFICE OF THE SPEAKER,2010Q2,TRAVEL,"",06­29   P1   10SH0100588                     DO,04/30/10,04/30/10,COMMERCIAL TRANSPORTATION,30.00,FISCAL YEAR 2010,"","","",06­29   P1   10SH0100588                     DO
,OFFICE OF THE SPEAKER,2010Q2,TRAVEL,"",06­29   P1   10SH0100589                     DO,05/03/10,05/03/10,COMMERCIAL TRANSPORTATION,366.00,FISCAL YEAR 2010,"","","",06­29   P1   10SH0100589                     DO
,OFFICE OF THE SPEAKER,2010Q2,TRAVEL,"",06­29   P1   10SH0100590                     DO,05/03/10,05/03/10,COMMERCIAL TRANSPORTATION,125.40,FISCAL YEAR 2010,"","","",06­29   P1   10SH0100590                     DO
,OFFICE OF THE SPEAKER,2010Q2,TRAVEL,"",06­29   P1   10SH0100591                     DO,05/20/10,05/20/10,COMMERCIAL TRANSPORTATION,30.00,FISCAL YEAR 2010,"","","",06­29   P1   10SH0100591                     DO
,OFFICE OF THE SPEAKER,2010Q2,TRAVEL,"",06­29   P1   10SH0100592                     DO,05/27/10,05/27/10,COMMERCIAL TRANSPORTATION,341.40,FISCAL YEAR 2010,"","","",06­29   P1   10SH0100592                     DO
,OFFICE OF THE SPEAKER,2010Q2,TRAVEL,"",06­29   P1   10SH0100593                     DO,01/28/10,01/29/10,COMMERCIAL TRANSPORTATION,245.50,FISCAL YEAR 2010,"","","",06­29   P1   10SH0100593                     DO
,OFFICE OF THE SPEAKER,2010Q2,TRAVEL,"",06­29   P1   10SH0100594                     DO,05/13/10,05/13/10,COMMERCIAL TRANSPORTATION,125.40,FISCAL YEAR 2010,"","","",06­29   P1   10SH0100594                     DO
,OFFICE OF THE SPEAKER,2010Q2,TRAVEL,"",06­29   P1   10SH0100587                ELISA SHYU,06/08/10,06/16/10,"TAXI, PARKING, TOLLS",93.00,FISCAL YEAR 2010,"","","",06­29   P1   10SH0100587                ELISA SHYU
,OFFICE OF THE SPEAKER,2010Q2,TRAVEL,"",06­29   P1   10SH0100586                JONATHAN STIVERS,05/25/10,06/16/10,"TAXI, PARKING, TOLLS",46.00,FISCAL YEAR 2010,"","","",06­29   P1   10SH0100586                JONATHAN STIVERS
,OFFICE OF THE SPEAKER,2010Q2,"RENT, COMMUNICATION, UTILITIES","",04­05   P1   10SH0100374     ELISA SHYU,03/06/10,03/06/10,UTILITIES,13.90,FISCAL YEAR 2010,"","","",04­05   P1   10SH0100374     ELISA SHYU
,OFFICE OF THE SPEAKER,2010Q2,"RENT, COMMUNICATION, UTILITIES","",04­07   P1   10SH0100428     ANDREW HAMMILL,03/07/10,03/08/10,UTILITIES,40.51,FISCAL YEAR 2010,"","","",04­07   P1   10SH0100428     ANDREW HAMMILL
,OFFICE OF THE SPEAKER,2010Q2,"RENT, COMMUNICATION, UTILITIES","",04­07   P1   10SH0100390     CITIBANK GOV CARD SERVICE,02/11/10,02/17/10,UTILITIES,45.38,FISCAL YEAR 2010,"","","",04­07   P1   10SH0100390     CITIBANK GOV CARD SERVICE
,OFFICE OF THE SPEAKER,2010Q2,"RENT, COMMUNICATION, UTILITIES","","04­28   P1   10SH0100470     EFE NEWS SERVICE, INC",03/01/10,03/31/10,NEWS WIRE SERVICE,550.15,FISCAL YEAR 2010,"","","","04­28   P1   10SH0100470     EFE NEWS SERVICE, INC"
,OFFICE OF THE SPEAKER,2010Q2,"RENT, COMMUNICATION, UTILITIES","",04­28   P1   10SH0100465     FEDERAL EXPRESS,03/10/10,03/10/10,POSTAGE/COURIER/BOX RENTAL,14.86,FISCAL YEAR 2010,"","","",04­28   P1   10SH0100465     FEDERAL EXPRESS
,OFFICE OF THE SPEAKER,2010Q2,"RENT, COMMUNICATION, UTILITIES","",04­28   P1   10SH0100469           DO,03/03/10,03/08/10,POSTAGE/COURIER/BOX RENTAL,16.46,FISCAL YEAR 2010,"","","",04­28   P1   10SH0100469           DO
,OFFICE OF THE SPEAKER,2010Q2,"RENT, COMMUNICATION, UTILITIES","","05­11   P1   10SH0100484     EFE NEWS SERVICE, INC",04/01/10,04/30/10,NEWS WIRE SERVICE,550.15,FISCAL YEAR 2010,"","","","05­11   P1   10SH0100484     EFE NEWS SERVICE, INC"
,OFFICE OF THE SPEAKER,2010Q2,"RENT, COMMUNICATION, UTILITIES","",05­11   P1   10SH0100485     FEDERAL EXPRESS,03/23/10,03/23/10,POSTAGE/COURIER/BOX RENTAL,37.24,FISCAL YEAR 2010,"","","",05­11   P1   10SH0100485     FEDERAL EXPRESS
,OFFICE OF THE SPEAKER,2010Q2,"RENT, COMMUNICATION, UTILITIES","",05­19   P1   10SH0100496           DO,04/08/10,04/08/10,POSTAGE/COURIER/BOX RENTAL,7.56,FISCAL YEAR 2010,"","","",05­19   P1   10SH0100496           DO
,OFFICE OF THE SPEAKER,2010Q2,"RENT, COMMUNICATION, UTILITIES","",06­09   P1   10SH0100537     CITIBANK GOV CARD SERVICE,04/11/10,04/24/10,RECORDING (OUTSIDE),150.32,FISCAL YEAR 2010,"","","",06­09   P1   10SH0100537     CITIBANK GOV CARD SERVICE
,OFFICE OF THE SPEAKER,2010Q2,"RENT, COMMUNICATION, UTILITIES","","06­09   P1   10SH0100542     EFE NEWS SERVICE, INC",05/01/10,05/31/10,NEWS WIRE SERVICE,550.15,FISCAL YEAR 2010,"","","","06­09   P1   10SH0100542     EFE NEWS SERVICE, INC"
,OFFICE OF THE SPEAKER,2010Q2,"RENT, COMMUNICATION, UTILITIES","",06­09   P1   10SH0100541     FEDERAL EXPRESS,04/21/10,04/21/10,POSTAGE/COURIER/BOX RENTAL,9.49,FISCAL YEAR 2010,"","","",06­09   P1   10SH0100541     FEDERAL EXPRESS
,OFFICE OF THE SPEAKER,2010Q2,"RENT, COMMUNICATION, UTILITIES","",06­10   P1   10SH0100551           DO,05/14/10,05/18/10,POSTAGE/COURIER/BOX RENTAL,14.33,FISCAL YEAR 2010,"","","",06­10   P1   10SH0100551           DO
,OFFICE OF THE SPEAKER,2010Q2,"RENT, COMMUNICATION, UTILITIES","","06­23   P1   10SH0100573     EFE NEWS SERVICE, INC",06/01/10,06/30/10,NEWS WIRE SERVICE,550.15,FISCAL YEAR 2010,"","","","06­23   P1   10SH0100573     EFE NEWS SERVICE, INC"
,OFFICE OF THE SPEAKER,2010Q2,"RENT, COMMUNICATION, UTILITIES","",06­23   P1   10SH0100575     KELLY E BERENS,06/01/10,06/02/10,UTILITIES,20.00,FISCAL YEAR 2010,"","","",06­23   P1   10SH0100575     KELLY E BERENS
,OFFICE OF THE SPEAKER,2010Q2,"RENT, COMMUNICATION, UTILITIES","",06­30   P1   10SH0100597     FEDERAL EXPRESS,05/19/10,05/19/10,POSTAGE/COURIER/BOX RENTAL,5.18,FISCAL YEAR 2010,"","","",06­30   P1   10SH0100597     FEDERAL EXPRESS
,OFFICE OF THE SPEAKER,2010Q2,"RENT, COMMUNICATION, UTILITIES","",06­30   P1   10SH0100598           DO,05/21/10,05/21/10,POSTAGE/COURIER/BOX RENTAL,61.75,FISCAL YEAR 2010,"","","",06­30   P1   10SH0100598           DO
,OFFICE OF THE SPEAKER,2010Q2,"RENT, COMMUNICATION, UTILITIES","",06­30   P1   10SH0100599           DO,05/17/10,05/28/10,POSTAGE/COURIER/BOX RENTAL,12.77,FISCAL YEAR 2010,"","","",06­30   P1   10SH0100599           DO
,OFFICE OF THE SPEAKER,2010Q2,PRINTING AND REPRODUCTION,"",04­23 S3 10113000157,04/01/10,04/30/10,PHOTOGRAPHIC (TRANSFER),798.10,FISCAL YEAR 2010,"","","",04­23 S3 10113000157
,OFFICE OF THE SPEAKER,2010Q2,PRINTING AND REPRODUCTION,"","04­28 P1 10SH0100464          DAVID L. ANDRUKITUS, INC",03/29/10,03/29/10,PRINTING AND REPRODUCTION,"1,174.90",FISCAL YEAR 2010,"","","","04­28 P1 10SH0100464          DAVID L. ANDRUKITUS, INC"
,OFFICE OF THE SPEAKER,2010Q2,PRINTING AND REPRODUCTION,"",05­25 S3 10145000192,05/01/10,05/31/10,PHOTOGRAPHIC (TRANSFER),440.70,FISCAL YEAR 2010,"","","",05­25 S3 10145000192
,OFFICE OF THE SPEAKER,2010Q2,PRINTING AND REPRODUCTION,"","05­28 P1 10SH0100529          VMW PRINTING, INC",03/26/10,03/26/10,PRINTING AND REPRODUCTION,855.00,FISCAL YEAR 2010,"","","","05­28 P1 10SH0100529          VMW PRINTING, INC"
,OFFICE OF THE SPEAKER,2010Q2,PRINTING AND REPRODUCTION,"",06­01 P1 10SH0100528          ELISA SHYU,05/16/10,05/16/10,PRINTING AND REPRODUCTION,5.00,FISCAL YEAR 2010,"","","",06­01 P1 10SH0100528          ELISA SHYU
,OFFICE OF THE SPEAKER,2010Q2,PRINTING AND REPRODUCTION,"",06­23 P1 10SH0100576          KELLY E BERENS,06/01/10,06/02/10,PRINTING AND REPRODUCTION,48.00,FISCAL YEAR 2010,"","","",06­23 P1 10SH0100576          KELLY E BERENS
,OFFICE OF THE SPEAKER,2010Q2,PRINTING AND REPRODUCTION,"",06­25 S3 10176000203,06/01/10,06/30/10,PHOTOGRAPHIC (TRANSFER),834.50,FISCAL YEAR 2010,"","","",06­25 S3 10176000203
,OFFICE OF THE SPEAKER,2010Q2,PRINTING AND REPRODUCTION,"","06­30 P1 10SH0100595          DAVID L. ANDRUKITUS, INC",06/18/10,06/18/10,PRINTING AND REPRODUCTION,997.50,FISCAL YEAR 2010,"","","","06­30 P1 10SH0100595          DAVID L. ANDRUKITUS, INC"
,OFFICE OF THE SPEAKER,2010Q2,OTHER SERVICES,"",04­28       P1     10SH0100460                BERNARD RAIMO,04/01/10,04/30/10,CONSULTANT CONTRACT SERVICE,"7,628.00",FISCAL YEAR 2010,"","","",04­28       P1     10SH0100460                BERNARD RAIMO
,OFFICE OF THE SPEAKER,2010Q2,OTHER SERVICES,"",04­28       P1     10SH0100471                HERITAGE REPORTING CORP,03/24/10,03/24/10,STENOGRAPHIC REPORTING,687.36,FISCAL YEAR 2010,"","","",04­28       P1     10SH0100471                HERITAGE REPORTING CORP
,OFFICE OF THE SPEAKER,2010Q2,OTHER SERVICES,"",04­30       P1     10SH0100473                     DO,03/16/10,03/16/10,STENOGRAPHIC REPORTING,458.96,FISCAL YEAR 2010,"","","",04­30       P1     10SH0100473                     DO
,OFFICE OF THE SPEAKER,2010Q2,OTHER SERVICES,"",05­26       P1     10SH0100518                BERNARD RAIMO,05/01/10,05/31/10,CONSULTANT CONTRACT SERVICE,"7,628.00",FISCAL YEAR 2010,"","","",05­26       P1     10SH0100518                BERNARD RAIMO
,OFFICE OF THE SPEAKER,2010Q2,OTHER SERVICES,"",06­10       P1     10SH0100550                HERITAGE REPORTING CORP,05/04/10,05/04/10,STENOGRAPHIC REPORTING,"1,341.95",FISCAL YEAR 2010,"","","",06­10       P1     10SH0100550                HERITAGE REPORTING CORP
,OFFICE OF THE SPEAKER,2010Q2,OTHER SERVICES,"",06­30       P1     10SH0100604                BERNARD RAIMO,06/01/10,06/30/10,CONSULTANT CONTRACT SERVICE,"7,628.00",FISCAL YEAR 2010,"","","",06­30       P1     10SH0100604                BERNARD RAIMO
,OFFICE OF THE SPEAKER,2010Q2,SUPPLIES AND MATERIALS,"",04­07       P1     10SH0100425      ANDREW HAMMILL,12/26/09,02/17/10,PUBLICATION REF MATERIAL,55.85,FISCAL YEAR 2010,"","","",04­07       P1     10SH0100425      ANDREW HAMMILL
,OFFICE OF THE SPEAKER,2010Q2,SUPPLIES AND MATERIALS,"",04­07       P1     10SH0100422      CAPITOLHOST,02/24/10,02/24/10,FOOD & BEVERAGE,67.50,FISCAL YEAR 2010,"","","",04­07       P1     10SH0100422      CAPITOLHOST
,OFFICE OF THE SPEAKER,2010Q2,SUPPLIES AND MATERIALS,"",04­07       P1     10SH0100423           DO,03/02/10,03/02/10,FOOD & BEVERAGE,67.50,FISCAL YEAR 2010,"","","",04­07       P1     10SH0100423           DO
,OFFICE OF THE SPEAKER,2010Q2,SUPPLIES AND MATERIALS,"",04­07       P1     10SH0100424           DO,03/03/10,03/03/10,FOOD & BEVERAGE,67.50,FISCAL YEAR 2010,"","","",04­07       P1     10SH0100424           DO
,OFFICE OF THE SPEAKER,2010Q2,SUPPLIES AND MATERIALS,"",04­07       P1     10SH0100389      CITIBANK GOV CARD SERVICE,01/29/10,02/24/10,FOOD & BEVERAGE,"3,563.30",FISCAL YEAR 2010,"","","",04­07       P1     10SH0100389      CITIBANK GOV CARD SERVICE
,OFFICE OF THE SPEAKER,2010Q2,SUPPLIES AND MATERIALS,"",04­07       P1     10SH0100435      JOHN F LOONEY,02/13/10,02/13/10,HABITATION EXPENSES,265.00,FISCAL YEAR 2010,"","","",04­07       P1     10SH0100435      JOHN F LOONEY
,OFFICE OF THE SPEAKER,2010Q2,SUPPLIES AND MATERIALS,"","04­07       P1     10SH0100430      LEADERSHIP DIRECTORIES, INC",03/01/10,03/01/11,PUBLICATION REF MATERIAL,525.00,FISCAL YEAR 2010,"","","","04­07       P1     10SH0100430      LEADERSHIP DIRECTORIES, INC"
,OFFICE OF THE SPEAKER,2010Q2,SUPPLIES AND MATERIALS,"",04­07       P1     10SH0100419      MILLICENT BLUFORD,03/03/10,03/03/10,HABITATION EXPENSES,235.00,FISCAL YEAR 2010,"","","",04­07       P1     10SH0100419      MILLICENT BLUFORD
,OFFICE OF THE SPEAKER,2010Q2,SUPPLIES AND MATERIALS,"",04­07       P1     10SH0100420           DO,03/09/10,03/09/10,HABITATION EXPENSES,225.00,FISCAL YEAR 2010,"","","",04­07       P1     10SH0100420           DO
,OFFICE OF THE SPEAKER,2010Q2,SUPPLIES AND MATERIALS,"",04­07       P1     10SH0100421           DO,03/15/10,03/15/10,HABITATION EXPENSES,225.00,FISCAL YEAR 2010,"","","",04­07       P1     10SH0100421           DO
,OFFICE OF THE SPEAKER,2010Q2,SUPPLIES AND MATERIALS,"","04­07       P1     10SH0100429      ROLL CALL, INC",01/14/10,01/14/11,PUBLICATION REF MATERIAL,"64,945.00",FISCAL YEAR 2010,"","","","04­07       P1     10SH0100429      ROLL CALL, INC"
,OFFICE OF THE SPEAKER,2010Q2,SUPPLIES AND MATERIALS,"",04­20       C1     NW201010905      DEER PARK,03/31/10,03/31/10,BOTTLED WATER,8.00,FISCAL YEAR 2010,"","","",04­20       C1     NW201010905      DEER PARK
,OFFICE OF THE SPEAKER,2010Q2,SUPPLIES AND MATERIALS,"",04­28       P1     10SH0100468      BURRELLE`S INFORMATION,03/01/10,03/31/10,PUBLICATION REF MATERIAL,848.61,FISCAL YEAR 2010,"","","",04­28       P1     10SH0100468      BURRELLE`S INFORMATION
,OFFICE OF THE SPEAKER,2010Q2,SUPPLIES AND MATERIALS,"",04­28       P1     10SH0100436      CAPITOLHOST,03/10/10,03/10/10,FOOD & BEVERAGE,67.50,FISCAL YEAR 2010,"","","",04­28       P1     10SH0100436      CAPITOLHOST
,OFFICE OF THE SPEAKER,2010Q2,SUPPLIES AND MATERIALS,"",04­28       P1     10SH0100437           DO,03/17/10,03/17/10,FOOD & BEVERAGE,67.50,FISCAL YEAR 2010,"","","",04­28       P1     10SH0100437           DO
,OFFICE OF THE SPEAKER,2010Q2,SUPPLIES AND MATERIALS,"",04­28       P1     10SH0100438           DO,03/24/10,03/24/10,FOOD & BEVERAGE,67.50,FISCAL YEAR 2010,"","","",04­28       P1     10SH0100438           DO
,OFFICE OF THE SPEAKER,2010Q2,SUPPLIES AND MATERIALS,"",04­28       P1     10SH0100479           DO,03/22/10,03/22/10,FOOD & BEVERAGE,67.50,FISCAL YEAR 2010,"","","",04­28       P1     10SH0100479           DO
,OFFICE OF THE SPEAKER,2010Q2,SUPPLIES AND MATERIALS,"",04­28       P1     10SH0100449      CITIBANK GOV CARD SERVICE,03/02/10,03/24/10,FOOD & BEVERAGE,"2,918.54",FISCAL YEAR 2010,"","","",04­28       P1     10SH0100449      CITIBANK GOV CARD SERVICE
,OFFICE OF THE SPEAKER,2010Q2,SUPPLIES AND MATERIALS,"",04­28       P1     10SH0100450           DO,03/04/10,03/04/10,PUBLICATION REF MATERIAL,164.30,FISCAL YEAR 2010,"","","",04­28       P1     10SH0100450           DO
,OFFICE OF THE SPEAKER,2010Q2,SUPPLIES AND MATERIALS,"",04­28       P1     10SH0100452           DO,03/11/10,03/17/10,PUBLICATION REF MATERIAL,45.38,FISCAL YEAR 2010,"","","",04­28       P1     10SH0100452           DO
,OFFICE OF THE SPEAKER,2010Q2,SUPPLIES AND MATERIALS,"",04­28       P1     10SH0100462      CRYSTAL SPRINGS,02/25/10,03/11/10,FOOD & BEVERAGE,929.91,FISCAL YEAR 2010,"","","",04­28       P1     10SH0100462      CRYSTAL SPRINGS
,OFFICE OF THE SPEAKER,2010Q2,SUPPLIES AND MATERIALS,"",04­28       P1     10SH0100467      OCCASIONS CATERERS,01/27/10,01/27/10,FOOD & BEVERAGE,"4,537.00",FISCAL YEAR 2010,"","","",04­28       P1     10SH0100467      OCCASIONS CATERERS
,OFFICE OF THE SPEAKER,2010Q2,SUPPLIES AND MATERIALS,"","04­28       P1     10SH0100448      OCEAN SPRAY CRANBERRIES, INC",03/03/10,03/03/10,FOOD & BEVERAGE,11.17,FISCAL YEAR 2010,"","","","04­28       P1     10SH0100448      OCEAN SPRAY CRANBERRIES, INC"
,OFFICE OF THE SPEAKER,2010Q2,SUPPLIES AND MATERIALS,"",04­30       P1     10SH0100474      MILLICENT BLUFORD,03/29/10,03/29/10,HABITATION EXPENSES,825.00,FISCAL YEAR 2010,"","","",04­30       P1     10SH0100474      MILLICENT BLUFORD
,OFFICE OF THE SPEAKER,2010Q2,SUPPLIES AND MATERIALS,"",05­11   P1    10SH0100489                BURRELLE`S INFORMATION,04/01/10,04/30/10,PUBLICATION REF MATERIAL,"1,083.22",FISCAL YEAR 2010,"","","",05­11   P1    10SH0100489                BURRELLE`S INFORMATION
,OFFICE OF THE SPEAKER,2010Q2,SUPPLIES AND MATERIALS,"",05­11   P1    10SH0100487                CAPITOLHOST,04/16/10,04/16/10,FOOD & BEVERAGE,67.50,FISCAL YEAR 2010,"","","",05­11   P1    10SH0100487                CAPITOLHOST
,OFFICE OF THE SPEAKER,2010Q2,SUPPLIES AND MATERIALS,"",05­11   P1    10SH0100488                     DO,04/14/10,04/14/10,FOOD & BEVERAGE,67.50,FISCAL YEAR 2010,"","","",05­11   P1    10SH0100488                     DO
,OFFICE OF THE SPEAKER,2010Q2,SUPPLIES AND MATERIALS,"",05­11   P1    10SH0100481                MILLICENT BLUFORD,04/13/10,04/13/10,HABITATION EXPENSES,225.00,FISCAL YEAR 2010,"","","",05­11   P1    10SH0100481                MILLICENT BLUFORD
,OFFICE OF THE SPEAKER,2010Q2,SUPPLIES AND MATERIALS,"",05­11   P1    10SH0100482                     DO,04/20/10,04/20/10,HABITATION EXPENSES,225.00,FISCAL YEAR 2010,"","","",05­11   P1    10SH0100482                     DO
,OFFICE OF THE SPEAKER,2010Q2,SUPPLIES AND MATERIALS,"",05­11   P1    10SH0100483                     DO,04/26/10,04/26/10,HABITATION EXPENSES,225.00,FISCAL YEAR 2010,"","","",05­11   P1    10SH0100483                     DO
,OFFICE OF THE SPEAKER,2010Q2,SUPPLIES AND MATERIALS,"",05­11   P1    10SH0100490                NATIONAL NEWS,07/01/10,09/30/10,PUBLICATION REF MATERIAL,"2,548.04",FISCAL YEAR 2010,"","","",05­11   P1    10SH0100490                NATIONAL NEWS
,OFFICE OF THE SPEAKER,2010Q2,SUPPLIES AND MATERIALS,"",05­11   P1    10SH0100486                OCCASIONS CATERERS,03/03/10,03/03/10,FOOD & BEVERAGE,"9,470.00",FISCAL YEAR 2010,"","","",05­11   P1    10SH0100486                OCCASIONS CATERERS
,OFFICE OF THE SPEAKER,2010Q2,SUPPLIES AND MATERIALS,"",05­12   P1    10SH0100495                CRYSTAL SPRINGS,03/10/10,04/08/10,BOTTLED WATER,504.74,FISCAL YEAR 2010,"","","",05­12   P1    10SH0100495                CRYSTAL SPRINGS
,OFFICE OF THE SPEAKER,2010Q2,SUPPLIES AND MATERIALS,"",05­12   P1    10SH0100491                HAGUE QUALITY WATER,12/15/09,12/15/09,BOTTLED WATER,504.00,FISCAL YEAR 2010,"","","",05­12   P1    10SH0100491                HAGUE QUALITY WATER
,OFFICE OF THE SPEAKER,2010Q2,SUPPLIES AND MATERIALS,"",05­19   P1    10SH0100497                MILLICENT BLUFORD,05/04/10,05/04/10,HABITATION EXPENSES,225.00,FISCAL YEAR 2010,"","","",05­19   P1    10SH0100497                MILLICENT BLUFORD
,OFFICE OF THE SPEAKER,2010Q2,SUPPLIES AND MATERIALS,"",05­19   P1    10SH0100498                     DO,05/11/10,05/11/10,HABITATION EXPENSES,225.00,FISCAL YEAR 2010,"","","",05­19   P1    10SH0100498                     DO
,OFFICE OF THE SPEAKER,2010Q2,SUPPLIES AND MATERIALS,"",05­20   P1    10SH0100499                OCCASIONS CATERERS,03/25/10,03/25/10,FOOD & BEVERAGE,"16,380.00",FISCAL YEAR 2010,"","","",05­20   P1    10SH0100499                OCCASIONS CATERERS
,OFFICE OF THE SPEAKER,2010Q2,SUPPLIES AND MATERIALS,"",05­20   P1    10SH0100513                     DO,03/25/10,03/25/10,FOOD & BEVERAGE,"16,380.00",FISCAL YEAR 2010,"","","",05­20   P1    10SH0100513                     DO
,OFFICE OF THE SPEAKER,2010Q2,SUPPLIES AND MATERIALS,"",05­27   C1    NW201014504                DEER PARK,04/30/10,04/30/10,BOTTLED WATER,8.00,FISCAL YEAR 2010,"","","",05­27   C1    NW201014504                DEER PARK
,OFFICE OF THE SPEAKER,2010Q2,SUPPLIES AND MATERIALS,"",06­01   P1    10SH0100524                HAGUE QUALITY WATER,05/01/10,05/21/10,BOTTLED WATER,504.00,FISCAL YEAR 2010,"","","",06­01   P1    10SH0100524                HAGUE QUALITY WATER
,OFFICE OF THE SPEAKER,2010Q2,SUPPLIES AND MATERIALS,"",06­01   P1    10SH0100525                MILLICENT BLUFORD,05/18/10,05/18/10,HABITATION EXPENSES,225.00,FISCAL YEAR 2010,"","","",06­01   P1    10SH0100525                MILLICENT BLUFORD
,OFFICE OF THE SPEAKER,2010Q2,SUPPLIES AND MATERIALS,"",06­02   P1    10SH0100530                     DO,05/24/10,05/24/10,HABITATION EXPENSES,225.00,FISCAL YEAR 2010,"","","",06­02   P1    10SH0100530                     DO
,OFFICE OF THE SPEAKER,2010Q2,SUPPLIES AND MATERIALS,"",06­09   P1    10SH0100548                ANDREW HAMMILL,05/03/10,05/03/10,PUBLICATION REF MATERIAL,10.34,FISCAL YEAR 2010,"","","",06­09   P1    10SH0100548                ANDREW HAMMILL
,OFFICE OF THE SPEAKER,2010Q2,SUPPLIES AND MATERIALS,"",06­09   P1    10SH0100544                BINA G SURGEON,05/25/10,05/25/10,FOOD & BEVERAGE,34.97,FISCAL YEAR 2010,"","","",06­09   P1    10SH0100544                BINA G SURGEON
,OFFICE OF THE SPEAKER,2010Q2,SUPPLIES AND MATERIALS,"",06­09   P1    10SH0100535                CITIBANK GOV CARD SERVICE,03/30/10,04/28/10,FOOD & BEVERAGE,504.65,FISCAL YEAR 2010,"","","",06­09   P1    10SH0100535                CITIBANK GOV CARD SERVICE
,OFFICE OF THE SPEAKER,2010Q2,SUPPLIES AND MATERIALS,"",06­09   P1    10SH0100536                     DO,04/05/10,04/16/10,PUBLICATION REF MATERIAL,"3,730.01",FISCAL YEAR 2010,"","","",06­09   P1    10SH0100536                     DO
,OFFICE OF THE SPEAKER,2010Q2,SUPPLIES AND MATERIALS,"","06­10   P1    10SH0100552                SOUTHWEST DISTRIBUTION, INC",07/01/10,09/30/10,PUBLICATION REF MATERIAL,"3,567.60",FISCAL YEAR 2010,"","","","06­10   P1    10SH0100552                SOUTHWEST DISTRIBUTION, INC"
,OFFICE OF THE SPEAKER,2010Q2,SUPPLIES AND MATERIALS,"",06­16   P1    10SH0100555                BRIDGET FALLON,05/30/10,05/30/10,HABITATION EXPENSES,62.96,FISCAL YEAR 2010,"","","",06­16   P1    10SH0100555                BRIDGET FALLON
,OFFICE OF THE SPEAKER,2010Q2,SUPPLIES AND MATERIALS,"",06­16   P1    10SH0100549                BULLETIN NEWS,11/18/10,05/17/11,PUBLICATION REF MATERIAL,"2,600.00",FISCAL YEAR 2010,"","","",06­16   P1    10SH0100549                BULLETIN NEWS
,OFFICE OF THE SPEAKER,2010Q2,SUPPLIES AND MATERIALS,"",06­16   C1    NW201016604                DEER PARK,05/31/10,05/31/10,BOTTLED WATER,8.00,FISCAL YEAR 2010,"","","",06­16   C1    NW201016604                DEER PARK
,OFFICE OF THE SPEAKER,2010Q2,SUPPLIES AND MATERIALS,"",06­22   P1    10SH0100566                LEXIS-NEXIS,01/01/10,01/31/10,PUBLICATION REF MATERIAL,"1,543.00",FISCAL YEAR 2010,"","","",06­22   P1    10SH0100566                LEXIS-NEXIS
,OFFICE OF THE SPEAKER,2010Q2,SUPPLIES AND MATERIALS,"",06­22   P1    10SH0100567                     DO,02/01/10,02/28/10,PUBLICATION REF MATERIAL,"1,543.00",FISCAL YEAR 2010,"","","",06­22   P1    10SH0100567                     DO
,OFFICE OF THE SPEAKER,2010Q2,SUPPLIES AND MATERIALS,"",06­22   P1    10SH0100568                     DO,03/01/10,03/31/10,PUBLICATION REF MATERIAL,"1,543.00",FISCAL YEAR 2010,"","","",06­22   P1    10SH0100568                     DO
,OFFICE OF THE SPEAKER,2010Q2,SUPPLIES AND MATERIALS,"",06­22   P1    10SH0100569                     DO,04/01/10,04/30/10,PUBLICATION REF MATERIAL,"1,543.00",FISCAL YEAR 2010,"","","",06­22   P1    10SH0100569                     DO
,OFFICE OF THE SPEAKER,2010Q2,SUPPLIES AND MATERIALS,"",06­22   P1    10SH0100561                MILLICENT BLUFORD,06/08/10,06/08/10,HABITATION EXPENSES,225.00,FISCAL YEAR 2010,"","","",06­22   P1    10SH0100561                MILLICENT BLUFORD
,OFFICE OF THE SPEAKER,2010Q2,SUPPLIES AND MATERIALS,"",06­23   P1    10SH0100579                HAGUE QUALITY WATER,06/01/10,06/30/10,BOTTLED WATER,315.00,FISCAL YEAR 2010,"","","",06­23   P1    10SH0100579                HAGUE QUALITY WATER
,OFFICE OF THE SPEAKER,2010Q2,SUPPLIES AND MATERIALS,"",06­23   P1    10SH0100570                LEXIS-NEXIS,12/01/09,12/31/09,PUBLICATION REF MATERIAL,499.96,FISCAL YEAR 2010,"","","",06­23   P1    10SH0100570                LEXIS-NEXIS
,OFFICE OF THE SPEAKER,2010Q2,SUPPLIES AND MATERIALS,"",06­23   P1    10SH0100571                     DO,05/01/10,05/31/10,PUBLICATION REF MATERIAL,"1,543.00",FISCAL YEAR 2010,"","","",06­23   P1    10SH0100571                     DO
,OFFICE OF THE SPEAKER,2010Q2,SUPPLIES AND MATERIALS,"",06­23   P1    10SH0100572                MILLICENT BLUFORD,06/14/10,06/14/10,HABITATION EXPENSES,225.00,FISCAL YEAR 2010,"","","",06­23   P1    10SH0100572                MILLICENT BLUFORD
,OFFICE OF THE SPEAKER,2010Q2,SUPPLIES AND MATERIALS,"",06­30   P1    10SH0100603                CRYSTAL SPRINGS,04/21/10,05/06/10,FOOD & BEVERAGE,"1,169.33",FISCAL YEAR 2010,"","","",06­30   P1    10SH0100603                CRYSTAL SPRINGS
,OFFICE OF THE SPEAKER,2010Q2,SUPPLIES AND MATERIALS,"",06­30   P1    10SH0100600                MILLICENT BLUFORD,06/22/10,06/22/10,HABITATION EXPENSES,225.00,FISCAL YEAR 2010,"","","",06­30   P1    10SH0100600                MILLICENT BLUFORD
,OFFICE OF THE SPEAKER,2010Q2,SUPPLIES AND MATERIALS,"",05­20   P1 10SH0100515        CAPITOLHOST,04/21/10,04/21/10,FOOD & BEVERAGE,67.50,FISCAL YEAR 2010,"","","",05­20   P1 10SH0100515        CAPITOLHOST
,OFFICE OF THE SPEAKER,2010Q2,SUPPLIES AND MATERIALS,"",05­20   P1 10SH0100516             DO,04/28/10,04/28/10,FOOD & BEVERAGE,67.50,FISCAL YEAR 2010,"","","",05­20   P1 10SH0100516             DO
,OFFICE OF THE SPEAKER,2010Q2,SUPPLIES AND MATERIALS,"",05­20   P1 10SH0100500        OCCASIONS CATERERS,03/22/10,03/22/10,FOOD & BEVERAGE,775.00,FISCAL YEAR 2010,"","","",05­20   P1 10SH0100500        OCCASIONS CATERERS
,OFFICE OF THE SPEAKER,2010Q2,SUPPLIES AND MATERIALS,"",05­20   P1 10SH0100514             DO,03/22/10,03/22/10,FOOD & BEVERAGE,775.00,FISCAL YEAR 2010,"","","",05­20   P1 10SH0100514             DO
,OFFICE OF THE SPEAKER,2010Q2,SUPPLIES AND MATERIALS,"",05­26   P1 10SH0100517             DO,04/15/10,04/15/10,FOOD & BEVERAGE,"4,651.00",FISCAL YEAR 2010,"","","",05­26   P1 10SH0100517             DO
,OFFICE OF THE SPEAKER,2010Q2,SUPPLIES AND MATERIALS,"",06­09   P1 10SH0100543        CAPITOLHOST,05/04/10,05/04/10,FOOD & BEVERAGE,850.25,FISCAL YEAR 2010,"","","",06­09   P1 10SH0100543        CAPITOLHOST
,OFFICE OF THE SPEAKER,2010Q2,SUPPLIES AND MATERIALS,"",06­22 P1 10SH0100562               DO,05/12/10,05/12/10,FOOD & BEVERAGE,67.50,FISCAL YEAR 2010,"","","",06­22 P1 10SH0100562               DO
,OFFICE OF THE SPEAKER,2010Q2,SUPPLIES AND MATERIALS,"",06­22 P1 10SH0100563               DO,05/12/10,05/12/10,FOOD & BEVERAGE,225.00,FISCAL YEAR 2010,"","","",06­22 P1 10SH0100563               DO
,OFFICE OF THE SPEAKER,2010Q2,SUPPLIES AND MATERIALS,"",06­22 P1 10SH0100564               DO,05/12/10,05/12/10,FOOD & BEVERAGE,"2,295.75",FISCAL YEAR 2010,"","","",06­22 P1 10SH0100564               DO
,OFFICE OF THE SPEAKER,2010Q2,SUPPLIES AND MATERIALS,"",06­23 P1 10SH0100577               DO,05/19/10,05/19/10,FOOD & BEVERAGE,90.00,FISCAL YEAR 2010,"","","",06­23 P1 10SH0100577               DO
,OFFICE OF THE SPEAKER,2010Q2,SUPPLIES AND MATERIALS,"",06­23 P1 10SH0100578               DO,05/26/10,05/26/10,FOOD & BEVERAGE,90.00,FISCAL YEAR 2010,"","","",06­23 P1 10SH0100578               DO
,OFFICE OF THE SPEAKER,2010Q2,SUPPLIES AND MATERIALS,"","06­10 P1 10SH0100553          ROLL CALL, INC",05/27/09,05/27/09,PUBLICATION REF MATERIAL,395.00,FISCAL YEAR 2009,"","","","06­10 P1 10SH0100553          ROLL CALL, INC"
,OFFICE OF THE SPEAKER,2010Q2,SUPPLIES AND MATERIALS,"","06­22 P1 10SH0100560          ROLL CALL, INC",01/01/08,01/01/08,PUBLICATION REF MATERIAL,"1,185.00",FISCAL YEAR 2008,"","","","06­22 P1 10SH0100560          ROLL CALL, INC"
,OFFICE OF THE MAJORITY LEADER,2010Q2,PERSONNEL COMPENSATION,"","BERNARDS, STACEY F",04/01/10,06/30/10,DEPUTY CHIEF OF STAFF,"38,750.01",FISCAL YEAR 2010,"","","","BERNARDS, STACEY F"
,OFFICE OF THE MAJORITY LEADER,2010Q2,PERSONNEL COMPENSATION,"","LIERMAN,TERRY L",04/01/10,06/30/10,CHIEF OF STAFF,"43,125.00",FISCAL YEAR 2010,"","","","LIERMAN,TERRY L"
,OFFICE OF THE MAJORITY LEADER,2010Q2,PERSONNEL COMPENSATION,"","LORENZEN,EDWARD S",04/01/10,06/18/10,SENIOR POLICY ADVISOR,"27,733.34",FISCAL YEAR 2010,"","","","LORENZEN,EDWARD S"
,OFFICE OF THE MAJORITY LEADER,2010Q2,PERSONNEL COMPENSATION,"","ABOUCHAR, KEITH S",04/01/10,06/30/10,SENIOR POLICY ADVISOR,"32,000.01",FISCAL YEAR 2010,"","","","ABOUCHAR, KEITH S"
,OFFICE OF THE MAJORITY LEADER,2010Q2,PERSONNEL COMPENSATION,"","BEACH,MAUREEN M",04/01/10,06/30/10,PRESS AND RESEARCH ASSISTANT,"12,159.99",FISCAL YEAR 2010,"","","","BEACH,MAUREEN M"
,OFFICE OF THE MAJORITY LEADER,2010Q2,PERSONNEL COMPENSATION,"","BOHANAN JR, JOHN L",04/01/10,06/30/10,CONSTITUENT LIAISON,"1,500.00",FISCAL YEAR 2010,"","","","BOHANAN JR, JOHN L"
,OFFICE OF THE MAJORITY LEADER,2010Q2,PERSONNEL COMPENSATION,"","BURNES, AUSTIN W",04/01/10,06/30/10,DEPUTY FLOOR DIRECTOR,"18,000.00",FISCAL YEAR 2010,"","","","BURNES, AUSTIN W"
,OFFICE OF THE MAJORITY LEADER,2010Q2,PERSONNEL COMPENSATION,"","COVEY-BRANDT, ALEXIS",04/01/10,06/30/10,FLOOR DIRECTOR,"32,000.01",FISCAL YEAR 2010,"","","","COVEY-BRANDT, ALEXIS"
,OFFICE OF THE MAJORITY LEADER,2010Q2,PERSONNEL COMPENSATION,"","DAVID, MARTA M",04/01/10,06/30/10,DIRECTOR OF EXTERNAL RELATIONS,"41,250.00",FISCAL YEAR 2010,"","","","DAVID, MARTA M"
,OFFICE OF THE MAJORITY LEADER,2010Q2,PERSONNEL COMPENSATION,"","EISENBERG,MICHAEL",04/01/10,06/30/10,FLOOR ASSISTANT,"13,125.00",FISCAL YEAR 2010,"","","","EISENBERG,MICHAEL"
,OFFICE OF THE MAJORITY LEADER,2010Q2,PERSONNEL COMPENSATION,"","FRY,COURTNEY",04/01/10,06/30/10,EXECUTIVE ASSISTANT/OFFICE MAN,"12,500.01",FISCAL YEAR 2010,"","","","FRY,COURTNEY"
,OFFICE OF THE MAJORITY LEADER,2010Q2,PERSONNEL COMPENSATION,"","GOFF,SHUWANZA R",04/01/10,06/30/10,STAFF ASSISTANT,"7,500.00",FISCAL YEAR 2010,"","","","GOFF,SHUWANZA R"
,OFFICE OF THE MAJORITY LEADER,2010Q2,PERSONNEL COMPENSATION,"","GOFF,SHUWANZA R",03/01/10,05/31/10,STAFF ASSISTANT (OVERTIME),"4,629.76",FISCAL YEAR 2010,"","","",DO
,OFFICE OF THE MAJORITY LEADER,2010Q2,PERSONNEL COMPENSATION,"","GOODMAN,ROBERT",04/01/10,06/30/10,SPEECHWRITER,"15,000.00",FISCAL YEAR 2010,"","","","GOODMAN,ROBERT"
,OFFICE OF THE MAJORITY LEADER,2010Q2,PERSONNEL COMPENSATION,"","GRANT,KATHRYN L",04/01/10,06/30/10,DEPUTY PRESS SECRETARY,"15,000.00",FISCAL YEAR 2010,"","","","GRANT,KATHRYN L"
,OFFICE OF THE MAJORITY LEADER,2010Q2,PERSONNEL COMPENSATION,"","HUGHES,JOHN C",04/01/10,06/30/10,SENIOR POLICY ADVISOR,"30,999.99",FISCAL YEAR 2010,"","","","HUGHES,JOHN C"
,OFFICE OF THE MAJORITY LEADER,2010Q2,PERSONNEL COMPENSATION,"","JACOBY,DREW",04/01/10,06/30/10,SPECIAL ASSISTANT,"9,999.99",FISCAL YEAR 2010,"","","","JACOBY,DREW"
,OFFICE OF THE MAJORITY LEADER,2010Q2,PERSONNEL COMPENSATION,"","KRUEGER,MARY R",04/01/10,06/30/10,STAFF ASSISTANT,"7,500.00",FISCAL YEAR 2010,"","","","KRUEGER,MARY R"
,OFFICE OF THE MAJORITY LEADER,2010Q2,PERSONNEL COMPENSATION,"","KRUEGER,MARY R",03/01/10,05/31/10,STAFF ASSISTANT (OVERTIME),"4,142.98",FISCAL YEAR 2010,"","","",DO
,OFFICE OF THE MAJORITY LEADER,2010Q2,PERSONNEL COMPENSATION,"","LEMOS, JESSICA A",04/01/10,06/30/10,LEGISLATIVE COORDINATOR,"16,250.01",FISCAL YEAR 2010,"","","","LEMOS, JESSICA A"
,OFFICE OF THE MAJORITY LEADER,2010Q2,PERSONNEL COMPENSATION,"","LI TRENTA, VIRGINIA SIMONE",04/01/10,06/30/10,SCHED AND DIR OF SPECIAL EVENT,"22,500.00",FISCAL YEAR 2010,"","","","LI TRENTA, VIRGINIA SIMONE"
,OFFICE OF THE MAJORITY LEADER,2010Q2,PERSONNEL COMPENSATION,"","MUNOZ, DENIS",04/01/10,06/30/10,SYSTEM ADMINISTRATOR,"12,500.01",FISCAL YEAR 2010,"","","","MUNOZ, DENIS"
,OFFICE OF THE MAJORITY LEADER,2010Q2,PERSONNEL COMPENSATION,"","MURRAY, ELIZABETH M",04/01/10,06/30/10,SENIOR POLICY ADVISOR,"30,999.99",FISCAL YEAR 2010,"","","","MURRAY, ELIZABETH M"
,OFFICE OF THE MAJORITY LEADER,2010Q2,PERSONNEL COMPENSATION,"","PALACIO,RICHARD A",04/01/10,06/30/10,DEPUTY DIRECTOR OF MEMBER SVCS,"19,200.00",FISCAL YEAR 2010,"","","","PALACIO,RICHARD A"
,OFFICE OF THE MAJORITY LEADER,2010Q2,PERSONNEL COMPENSATION,"","REPKO,MARY F",04/01/10,06/30/10,SENIOR POLICY ADVISOR,"32,000.01",FISCAL YEAR 2010,"","","","REPKO,MARY F"
,OFFICE OF THE MAJORITY LEADER,2010Q2,PERSONNEL COMPENSATION,"","ROMICK, BRIAN",04/01/10,06/30/10,MEMBER SERVICES DIRECTOR,"35,000.01",FISCAL YEAR 2010,"","","","ROMICK, BRIAN"
,OFFICE OF THE MAJORITY LEADER,2010Q2,PERSONNEL COMPENSATION,"","SHOTT,DANIEL",04/01/10,06/30/10,STAFF ASSISTANT,"6,249.99",FISCAL YEAR 2010,"","","","SHOTT,DANIEL"
,OFFICE OF THE MAJORITY LEADER,2010Q2,PERSONNEL COMPENSATION,"","SHOTT,DANIEL",03/01/10,05/31/10,STAFF ASSISTANT (OVERTIME),"3,867.14",FISCAL YEAR 2010,"","","",DO
,OFFICE OF THE MAJORITY LEADER,2010Q2,PERSONNEL COMPENSATION,"","SIXKILLER, MARIAH S",04/01/10,06/30/10,SENIOR POLICY ADVISOR,"10,500.00",FISCAL YEAR 2010,"","","","SIXKILLER, MARIAH S"
,OFFICE OF THE MAJORITY LEADER,2010Q2,PERSONNEL COMPENSATION,"","STOCKWELL,MICHELE M",04/01/10,06/30/10,POLICY DIRECTOR,"35,840.01",FISCAL YEAR 2010,"","","","STOCKWELL,MICHELE M"
,OFFICE OF THE MAJORITY LEADER,2010Q2,TRAVEL,"",04­15   P1 10ML01RW197           DO,03/19/10,03/19/10,"TAXI, PARKING, TOLLS",10.00,FISCAL YEAR 2010,"","","",04­15   P1 10ML01RW197           DO
,OFFICE OF THE MAJORITY LEADER,2010Q2,PRINTING AND REPRODUCTION,"",04­23   S3 10113000092,04/01/10,04/30/10,PHOTOGRAPHIC (TRANSFER),3.20,FISCAL YEAR 2010,"","","",04­23   S3 10113000092
,OFFICE OF THE MAJORITY LEADER,2010Q2,PRINTING AND REPRODUCTION,"",05­25   S3 10145000121,05/01/10,05/31/10,PHOTOGRAPHIC (TRANSFER),11.00,FISCAL YEAR 2010,"","","",05­25   S3 10145000121
,OFFICE OF THE MAJORITY LEADER,2010Q2,PRINTING AND REPRODUCTION,"","05­26   P1 10ML0100244      DAVID L. ANDRUKITUS, INC",04/19/10,04/19/10,PRINTING AND REPRODUCTION,37.50,FISCAL YEAR 2010,"","","","05­26   P1 10ML0100244      DAVID L. ANDRUKITUS, INC"
,OFFICE OF THE MAJORITY LEADER,2010Q2,PRINTING AND REPRODUCTION,"",06­25 S3 10176000116,06/01/10,06/30/10,PHOTOGRAPHIC (TRANSFER),5.50,FISCAL YEAR 2010,"","","",06­25 S3 10176000116
,OFFICE OF THE MAJORITY LEADER,2010Q2,OTHER SERVICES,"",04­22       P1 10ML0100233                    CITIBANK GOV CARD SERVICE,03/16/10,03/16/10,LAUNDRY SERVICE,53.05,FISCAL YEAR 2010,"","","",04­22       P1 10ML0100233                    CITIBANK GOV CARD SERVICE
,OFFICE OF THE MAJORITY LEADER,2010Q2,OTHER SERVICES,"",06­23       P1 10ML0100278                         DO,05/03/10,05/03/10,LAUNDRY SERVICE,63.66,FISCAL YEAR 2010,"","","",06­23       P1 10ML0100278                         DO
,OFFICE OF THE MAJORITY LEADER,2010Q2,SUPPLIES AND MATERIALS,"",04­08       P1     10ML0100204      CAPITOLHOST,10/28/10,10/28/10,FOOD & BEVERAGE,90.00,FISCAL YEAR 2010,"","","",04­08       P1     10ML0100204      CAPITOLHOST
,OFFICE OF THE MAJORITY LEADER,2010Q2,SUPPLIES AND MATERIALS,"",04­08       P1     10ML0100205            DO,03/12/10,03/12/10,FOOD & BEVERAGE,42.41,FISCAL YEAR 2010,"","","",04­08       P1     10ML0100205            DO
,OFFICE OF THE MAJORITY LEADER,2010Q2,SUPPLIES AND MATERIALS,"",04­08       P1     10ML0100206            DO,03/10/10,03/10/10,FOOD & BEVERAGE,89.99,FISCAL YEAR 2010,"","","",04­08       P1     10ML0100206            DO
,OFFICE OF THE MAJORITY LEADER,2010Q2,SUPPLIES AND MATERIALS,"",04­08       P1     10ML0100202      MARY R KRUEGER,03/23/10,03/23/10,FOOD & BEVERAGE,155.83,FISCAL YEAR 2010,"","","",04­08       P1     10ML0100202      MARY R KRUEGER
,OFFICE OF THE MAJORITY LEADER,2010Q2,SUPPLIES AND MATERIALS,"",04­08       P1     10ML0100203      OCCASIONS CATERERS,03/25/10,03/25/10,FOOD & BEVERAGE,"3,205.00",FISCAL YEAR 2010,"","","",04­08       P1     10ML0100203      OCCASIONS CATERERS
,OFFICE OF THE MAJORITY LEADER,2010Q2,SUPPLIES AND MATERIALS,"",04­16       P1     10ML0100207      CORNER BAKERY,03/03/10,03/03/10,FOOD & BEVERAGE,213.50,FISCAL YEAR 2010,"","","",04­16       P1     10ML0100207      CORNER BAKERY
,OFFICE OF THE MAJORITY LEADER,2010Q2,SUPPLIES AND MATERIALS,"",04­16       P1     10ML0100208            DO,03/03/10,03/03/10,FOOD & BEVERAGE,114.57,FISCAL YEAR 2010,"","","",04­16       P1     10ML0100208            DO
,OFFICE OF THE MAJORITY LEADER,2010Q2,SUPPLIES AND MATERIALS,"",04­16       P1     10ML0100209            DO,03/04/10,03/04/10,FOOD & BEVERAGE,450.00,FISCAL YEAR 2010,"","","",04­16       P1     10ML0100209            DO
,OFFICE OF THE MAJORITY LEADER,2010Q2,SUPPLIES AND MATERIALS,"",04­16       P1     10ML0100210            DO,03/05/10,03/05/10,FOOD & BEVERAGE,123.30,FISCAL YEAR 2010,"","","",04­16       P1     10ML0100210            DO
,OFFICE OF THE MAJORITY LEADER,2010Q2,SUPPLIES AND MATERIALS,"",04­16       P1     10ML0100211            DO,03/10/10,03/10/10,FOOD & BEVERAGE,213.50,FISCAL YEAR 2010,"","","",04­16       P1     10ML0100211            DO
,OFFICE OF THE MAJORITY LEADER,2010Q2,SUPPLIES AND MATERIALS,"",04­16       P1     10ML0100212            DO,03/10/10,03/10/10,FOOD & BEVERAGE,114.50,FISCAL YEAR 2010,"","","",04­16       P1     10ML0100212            DO
,OFFICE OF THE MAJORITY LEADER,2010Q2,SUPPLIES AND MATERIALS,"",04­16       P1     10ML0100213            DO,03/11/10,03/11/10,FOOD & BEVERAGE,422.50,FISCAL YEAR 2010,"","","",04­16       P1     10ML0100213            DO
,OFFICE OF THE MAJORITY LEADER,2010Q2,SUPPLIES AND MATERIALS,"",04­16       P1     10ML0100214            DO,03/12/10,03/12/10,FOOD & BEVERAGE,123.30,FISCAL YEAR 2010,"","","",04­16       P1     10ML0100214            DO
,OFFICE OF THE MAJORITY LEADER,2010Q2,SUPPLIES AND MATERIALS,"",04­16       P1     10ML0100215            DO,03/12/10,03/12/10,FOOD & BEVERAGE,286.00,FISCAL YEAR 2010,"","","",04­16       P1     10ML0100215            DO
,OFFICE OF THE MAJORITY LEADER,2010Q2,SUPPLIES AND MATERIALS,"",04­16       P1     10ML0100216            DO,03/16/10,03/16/10,FOOD & BEVERAGE,285.00,FISCAL YEAR 2010,"","","",04­16       P1     10ML0100216            DO
,OFFICE OF THE MAJORITY LEADER,2010Q2,SUPPLIES AND MATERIALS,"",04­16       P1     10ML0100217            DO,03/17/10,03/17/10,FOOD & BEVERAGE,285.00,FISCAL YEAR 2010,"","","",04­16       P1     10ML0100217            DO
,OFFICE OF THE MAJORITY LEADER,2010Q2,SUPPLIES AND MATERIALS,"",04­16       P1     10ML0100218            DO,03/18/10,03/18/10,FOOD & BEVERAGE,296.00,FISCAL YEAR 2010,"","","",04­16       P1     10ML0100218            DO
,OFFICE OF THE MAJORITY LEADER,2010Q2,SUPPLIES AND MATERIALS,"",04­16       P1     10ML0100219            DO,03/19/10,03/19/10,FOOD & BEVERAGE,123.30,FISCAL YEAR 2010,"","","",04­16       P1     10ML0100219            DO
,OFFICE OF THE MAJORITY LEADER,2010Q2,SUPPLIES AND MATERIALS,"",04­16       P1     10ML0100220            DO,03/24/10,03/24/10,FOOD & BEVERAGE,220.00,FISCAL YEAR 2010,"","","",04­16       P1     10ML0100220            DO
,OFFICE OF THE MAJORITY LEADER,2010Q2,SUPPLIES AND MATERIALS,"",04­16       P1     10ML0100221            DO,03/24/10,03/24/10,FOOD & BEVERAGE,372.00,FISCAL YEAR 2010,"","","",04­16       P1     10ML0100221            DO
,OFFICE OF THE MAJORITY LEADER,2010Q2,SUPPLIES AND MATERIALS,"",04­19       P1     10ML0100222      CAPITOLHOST,03/05/10,03/05/10,FOOD & BEVERAGE,42.42,FISCAL YEAR 2010,"","","",04­19       P1     10ML0100222      CAPITOLHOST
,OFFICE OF THE MAJORITY LEADER,2010Q2,SUPPLIES AND MATERIALS,"",04­19       P1     10ML0100223            DO,03/19/10,03/19/10,FOOD & BEVERAGE,42.41,FISCAL YEAR 2010,"","","",04­19       P1     10ML0100223            DO
,OFFICE OF THE MAJORITY LEADER,2010Q2,SUPPLIES AND MATERIALS,"",04­19       P1     10ML0100224            DO,03/24/10,03/24/10,FOOD & BEVERAGE,90.00,FISCAL YEAR 2010,"","","",04­19       P1     10ML0100224            DO
,OFFICE OF THE MAJORITY LEADER,2010Q2,SUPPLIES AND MATERIALS,"",04­19       P1     10ML0100225            DO,03/18/10,03/18/10,FOOD & BEVERAGE,44.99,FISCAL YEAR 2010,"","","",04­19       P1     10ML0100225            DO
,OFFICE OF THE MAJORITY LEADER,2010Q2,SUPPLIES AND MATERIALS,"",04­19       P1     10ML0100226            DO,03/17/10,03/17/10,FOOD & BEVERAGE,89.99,FISCAL YEAR 2010,"","","",04­19       P1     10ML0100226            DO
,OFFICE OF THE MAJORITY LEADER,2010Q2,SUPPLIES AND MATERIALS,"",04­20       C1     NW201010903      DEER PARK,03/31/10,03/31/10,BOTTLED WATER,8.00,FISCAL YEAR 2010,"","","",04­20       C1     NW201010903      DEER PARK
,OFFICE OF THE MAJORITY LEADER,2010Q2,SUPPLIES AND MATERIALS,"",04­20       C1     NW201010903            DO,03/02/10,03/02/10,BOTTLED WATER,73.96,FISCAL YEAR 2010,"","","",04­20       C1     NW201010903            DO
,OFFICE OF THE MAJORITY LEADER,2010Q2,SUPPLIES AND MATERIALS,"",04­20       C1     NW201010903            DO,03/10/10,03/10/10,BOTTLED WATER,40.00,FISCAL YEAR 2010,"","","",04­20       C1     NW201010903            DO
,OFFICE OF THE MAJORITY LEADER,2010Q2,SUPPLIES AND MATERIALS,"",04­20       C1     NW201010903            DO,03/17/10,03/17/10,BOTTLED WATER,40.00,FISCAL YEAR 2010,"","","",04­20       C1     NW201010903            DO
,OFFICE OF THE MAJORITY LEADER,2010Q2,SUPPLIES AND MATERIALS,"",04­20       C1     NW201010903            DO,03/25/10,03/25/10,BOTTLED WATER,60.00,FISCAL YEAR 2010,"","","",04­20       C1     NW201010903            DO
,OFFICE OF THE MAJORITY LEADER,2010Q2,SUPPLIES AND MATERIALS,"",04­20       C1     NW201010903            DO,03/31/10,03/31/10,BOTTLED WATER,2.00,FISCAL YEAR 2010,"","","",04­20       C1     NW201010903            DO
,OFFICE OF THE MAJORITY LEADER,2010Q2,SUPPLIES AND MATERIALS,"",04­22       P1     10ML0100227      CAPITOLHOST,03/17/10,03/17/10,FOOD & BEVERAGE,90.24,FISCAL YEAR 2010,"","","",04­22       P1     10ML0100227      CAPITOLHOST
,OFFICE OF THE MAJORITY LEADER,2010Q2,SUPPLIES AND MATERIALS,"",04­22       P1     10ML0100231      CITIBANK GOV CARD SERVICE,02/25/10,03/22/10,FOOD & BEVERAGE,"4,334.30",FISCAL YEAR 2010,"","","",04­22       P1     10ML0100231      CITIBANK GOV CARD SERVICE
,OFFICE OF THE MAJORITY LEADER,2010Q2,SUPPLIES AND MATERIALS,"",04­22       P1     10ML0100232            DO,03/04/10,03/21/10,PUBLICATION REF MATERIAL,"4,966.96",FISCAL YEAR 2010,"","","",04­22       P1     10ML0100232            DO
,OFFICE OF THE MAJORITY LEADER,2010Q2,SUPPLIES AND MATERIALS,"",04­22       P1     10ML0100234            DO,03/24/10,03/24/10,HABITATION EXPENSES,207.86,FISCAL YEAR 2010,"","","",04­22       P1     10ML0100234            DO
,OFFICE OF THE MAJORITY LEADER,2010Q2,SUPPLIES AND MATERIALS,"",04­30       P1     10ML0100235      V. SIMONE LITRENTA,04/23/10,04/23/10,FOOD & BEVERAGE,"1,388.68",FISCAL YEAR 2010,"","","",04­30       P1     10ML0100235      V. SIMONE LITRENTA
,OFFICE OF THE MAJORITY LEADER,2010Q2,SUPPLIES AND MATERIALS,"",05­26   P1   10ML0100241   CAPITOLHOST,04/14/10,04/14/10,FOOD & BEVERAGE,89.99,FISCAL YEAR 2010,"","","",05­26   P1   10ML0100241   CAPITOLHOST
,OFFICE OF THE MAJORITY LEADER,2010Q2,SUPPLIES AND MATERIALS,"",05­26   P1   10ML0100242        DO,04/23/10,04/23/10,FOOD & BEVERAGE,42.41,FISCAL YEAR 2010,"","","",05­26   P1   10ML0100242        DO
,OFFICE OF THE MAJORITY LEADER,2010Q2,SUPPLIES AND MATERIALS,"",05­26   P1   10ML0100243        DO,04/21/10,04/21/10,FOOD & BEVERAGE,89.99,FISCAL YEAR 2010,"","","",05­26   P1   10ML0100243        DO
,OFFICE OF THE MAJORITY LEADER,2010Q2,SUPPLIES AND MATERIALS,"",05­26   P1   10ML0100236   CORNER BAKERY,04/14/10,04/14/10,FOOD & BEVERAGE,203.50,FISCAL YEAR 2010,"","","",05­26   P1   10ML0100236   CORNER BAKERY
,OFFICE OF THE MAJORITY LEADER,2010Q2,SUPPLIES AND MATERIALS,"",05­26   P1   10ML0100237        DO,04/15/10,04/15/10,FOOD & BEVERAGE,306.00,FISCAL YEAR 2010,"","","",05­26   P1   10ML0100237        DO
,OFFICE OF THE MAJORITY LEADER,2010Q2,SUPPLIES AND MATERIALS,"",05­26   P1   10ML0100238        DO,04/16/10,04/16/10,FOOD & BEVERAGE,87.00,FISCAL YEAR 2010,"","","",05­26   P1   10ML0100238        DO
,OFFICE OF THE MAJORITY LEADER,2010Q2,SUPPLIES AND MATERIALS,"",05­26   P1   10ML0100239        DO,04/21/10,04/21/10,FOOD & BEVERAGE,213.50,FISCAL YEAR 2010,"","","",05­26   P1   10ML0100239        DO
,OFFICE OF THE MAJORITY LEADER,2010Q2,SUPPLIES AND MATERIALS,"",05­26   P1   10ML0100240        DO,04/22/10,04/22/10,FOOD & BEVERAGE,466.50,FISCAL YEAR 2010,"","","",05­26   P1   10ML0100240        DO
,OFFICE OF THE MAJORITY LEADER,2010Q2,SUPPLIES AND MATERIALS,"",05­27   P1   10ML0100245   CITIBANK GOV CARD SERVICE,03/25/10,04/22/10,FOOD & BEVERAGE,538.38,FISCAL YEAR 2010,"","","",05­27   P1   10ML0100245   CITIBANK GOV CARD SERVICE
,OFFICE OF THE MAJORITY LEADER,2010Q2,SUPPLIES AND MATERIALS,"",05­27   P1   10ML0100246        DO,04/14/10,04/14/10,PUBLICATION REF MATERIAL,30.90,FISCAL YEAR 2010,"","","",05­27   P1   10ML0100246        DO
,OFFICE OF THE MAJORITY LEADER,2010Q2,SUPPLIES AND MATERIALS,"",05­27   P1   10ML0100247        DO,04/23/10,04/23/10,HABITATION EXPENSES,33.56,FISCAL YEAR 2010,"","","",05­27   P1   10ML0100247        DO
,OFFICE OF THE MAJORITY LEADER,2010Q2,SUPPLIES AND MATERIALS,"",05­27   C1   NW201014503   DEER PARK,04/30/10,04/30/10,BOTTLED WATER,8.00,FISCAL YEAR 2010,"","","",05­27   C1   NW201014503   DEER PARK
,OFFICE OF THE MAJORITY LEADER,2010Q2,SUPPLIES AND MATERIALS,"",05­27   C1   NW201014503        DO,04/01/10,04/01/10,BOTTLED WATER,37.99,FISCAL YEAR 2010,"","","",05­27   C1   NW201014503        DO
,OFFICE OF THE MAJORITY LEADER,2010Q2,SUPPLIES AND MATERIALS,"",05­27   C1   NW201014503        DO,04/09/10,04/09/10,BOTTLED WATER,10.00,FISCAL YEAR 2010,"","","",05­27   C1   NW201014503        DO
,OFFICE OF THE MAJORITY LEADER,2010Q2,SUPPLIES AND MATERIALS,"",05­27   C1   NW201014503        DO,04/16/10,04/16/10,BOTTLED WATER,30.00,FISCAL YEAR 2010,"","","",05­27   C1   NW201014503        DO
,OFFICE OF THE MAJORITY LEADER,2010Q2,SUPPLIES AND MATERIALS,"",05­27   C1   NW201014503        DO,04/26/10,04/26/10,BOTTLED WATER,33.49,FISCAL YEAR 2010,"","","",05­27   C1   NW201014503        DO
,OFFICE OF THE MAJORITY LEADER,2010Q2,SUPPLIES AND MATERIALS,"",05­27   C1   NW201014503        DO,04/30/10,04/30/10,BOTTLED WATER,2.00,FISCAL YEAR 2010,"","","",05­27   C1   NW201014503        DO
,OFFICE OF THE MAJORITY LEADER,2010Q2,SUPPLIES AND MATERIALS,"",06­01   P1   10ML0100252   CAPITOLHOST,04/28/10,04/28/10,FOOD & BEVERAGE,89.99,FISCAL YEAR 2010,"","","",06­01   P1   10ML0100252   CAPITOLHOST
,OFFICE OF THE MAJORITY LEADER,2010Q2,SUPPLIES AND MATERIALS,"",06­01   P1   10ML0100248   CORNER BAKERY,04/23/10,04/23/10,FOOD & BEVERAGE,113.30,FISCAL YEAR 2010,"","","",06­01   P1   10ML0100248   CORNER BAKERY
,OFFICE OF THE MAJORITY LEADER,2010Q2,SUPPLIES AND MATERIALS,"",06­01   P1   10ML0100249        DO,04/27/10,04/27/10,FOOD & BEVERAGE,150.80,FISCAL YEAR 2010,"","","",06­01   P1   10ML0100249        DO
,OFFICE OF THE MAJORITY LEADER,2010Q2,SUPPLIES AND MATERIALS,"",06­01   P1   10ML0100250        DO,04/28/10,04/28/10,FOOD & BEVERAGE,221.20,FISCAL YEAR 2010,"","","",06­01   P1   10ML0100250        DO
,OFFICE OF THE MAJORITY LEADER,2010Q2,SUPPLIES AND MATERIALS,"",06­01   P1   10ML0100251        DO,04/28/10,04/28/10,FOOD & BEVERAGE,408.80,FISCAL YEAR 2010,"","","",06­01   P1   10ML0100251        DO
,OFFICE OF THE MAJORITY LEADER,2010Q2,SUPPLIES AND MATERIALS,"",06­16   P1   10ML0100254   CAPITOLHOST,05/14/10,05/14/10,FOOD & BEVERAGE,28.22,FISCAL YEAR 2010,"","","",06­16   P1   10ML0100254   CAPITOLHOST
,OFFICE OF THE MAJORITY LEADER,2010Q2,SUPPLIES AND MATERIALS,"",06­16   P1   10ML0100255        DO,05/07/10,05/07/10,FOOD & BEVERAGE,42.41,FISCAL YEAR 2010,"","","",06­16   P1   10ML0100255        DO
,OFFICE OF THE MAJORITY LEADER,2010Q2,SUPPLIES AND MATERIALS,"",06­16   P1   10ML0100256        DO,05/12/10,05/12/10,FOOD & BEVERAGE,89.99,FISCAL YEAR 2010,"","","",06­16   P1   10ML0100256        DO
,OFFICE OF THE MAJORITY LEADER,2010Q2,SUPPLIES AND MATERIALS,"",06­16   P1   10ML0100257        DO,05/06/10,05/06/10,FOOD & BEVERAGE,56.76,FISCAL YEAR 2010,"","","",06­16   P1   10ML0100257        DO
,OFFICE OF THE MAJORITY LEADER,2010Q2,SUPPLIES AND MATERIALS,"",06­16   C1   NW201016603   DEER PARK,05/31/10,05/31/10,BOTTLED WATER,8.00,FISCAL YEAR 2010,"","","",06­16   C1   NW201016603   DEER PARK
,OFFICE OF THE MAJORITY LEADER,2010Q2,SUPPLIES AND MATERIALS,"",06­16   C1   NW201016603        DO,05/03/10,05/03/10,BOTTLED WATER,35.00,FISCAL YEAR 2010,"","","",06­16   C1   NW201016603        DO
,OFFICE OF THE MAJORITY LEADER,2010Q2,SUPPLIES AND MATERIALS,"",06­16   C1   NW201016603        DO,05/10/10,05/10/10,BOTTLED WATER,35.98,FISCAL YEAR 2010,"","","",06­16   C1   NW201016603        DO
,OFFICE OF THE MAJORITY LEADER,2010Q2,SUPPLIES AND MATERIALS,"",06­16   C1   NW201016603        DO,05/17/10,05/17/10,BOTTLED WATER,15.00,FISCAL YEAR 2010,"","","",06­16   C1   NW201016603        DO
,OFFICE OF THE MAJORITY LEADER,2010Q2,SUPPLIES AND MATERIALS,"",06­16   C1   NW201016603        DO,05/25/10,05/25/10,BOTTLED WATER,115.84,FISCAL YEAR 2010,"","","",06­16   C1   NW201016603        DO
,OFFICE OF THE MAJORITY LEADER,2010Q2,SUPPLIES AND MATERIALS,"",06­16   C1   NW201016603        DO,05/31/10,05/31/10,BOTTLED WATER,2.00,FISCAL YEAR 2010,"","","",06­16   C1   NW201016603        DO
,OFFICE OF THE MAJORITY LEADER,2010Q2,SUPPLIES AND MATERIALS,"",06­16   P1   10ML0100253   MARY R KRUEGER,05/25/10,05/25/10,FOOD & BEVERAGE,61.08,FISCAL YEAR 2010,"","","",06­16   P1   10ML0100253   MARY R KRUEGER
,OFFICE OF THE MAJORITY LEADER,2010Q2,SUPPLIES AND MATERIALS,"",06­23   P1   10ML0100264   CAPITOLHOST,05/27/10,05/27/10,FOOD & BEVERAGE,89.99,FISCAL YEAR 2010,"","","",06­23   P1   10ML0100264   CAPITOLHOST
,OFFICE OF THE MAJORITY LEADER,2010Q2,SUPPLIES AND MATERIALS,"",06­23   P1   10ML0100265        DO,05/26/10,05/26/10,FOOD & BEVERAGE,89.99,FISCAL YEAR 2010,"","","",06­23   P1   10ML0100265        DO
,OFFICE OF THE MAJORITY LEADER,2010Q2,SUPPLIES AND MATERIALS,"",06­23   P1   10ML0100266        DO,05/21/10,05/21/10,FOOD & BEVERAGE,42.41,FISCAL YEAR 2010,"","","",06­23   P1   10ML0100266        DO
,OFFICE OF THE MAJORITY LEADER,2010Q2,SUPPLIES AND MATERIALS,"",06­23   P1   10ML0100267        DO,05/19/10,05/19/10,FOOD & BEVERAGE,89.99,FISCAL YEAR 2010,"","","",06­23   P1   10ML0100267        DO
,OFFICE OF THE MAJORITY LEADER,2010Q2,SUPPLIES AND MATERIALS,"",06­23   P1   10ML0100277   CITIBANK GOV CARD SERVICE,04/27/10,04/27/10,PUBLICATION REF MATERIAL,20.73,FISCAL YEAR 2010,"","","",06­23   P1   10ML0100277   CITIBANK GOV CARD SERVICE
,OFFICE OF THE MAJORITY LEADER,2010Q2,SUPPLIES AND MATERIALS,"",06­23   P1   10ML0100279        DO,05/06/10,05/24/10,FOOD & BEVERAGE,529.28,FISCAL YEAR 2010,"","","",06­23   P1   10ML0100279        DO
,OFFICE OF THE MAJORITY LEADER,2010Q2,SUPPLIES AND MATERIALS,"",06­23   P1   10ML0100280        DO,05/24/10,05/24/10,HABITATION EXPENSES,7.82,FISCAL YEAR 2010,"","","",06­23   P1   10ML0100280        DO
,OFFICE OF THE MAJORITY LEADER,2010Q2,SUPPLIES AND MATERIALS,"",06­23   P1   10ML0100258   CORNER BAKERY,04/30/10,04/30/10,FOOD & BEVERAGE,123.30,FISCAL YEAR 2010,"","","",06­23   P1   10ML0100258   CORNER BAKERY
,OFFICE OF THE MAJORITY LEADER,2010Q2,SUPPLIES AND MATERIALS,"",06­23   P1   10ML0100259        DO,05/05/10,05/05/10,FOOD & BEVERAGE,221.20,FISCAL YEAR 2010,"","","",06­23   P1   10ML0100259        DO
,OFFICE OF THE MAJORITY LEADER,2010Q2,SUPPLIES AND MATERIALS,"",06­23   P1   10ML0100260        DO,05/07/10,05/07/10,FOOD & BEVERAGE,123.30,FISCAL YEAR 2010,"","","",06­23   P1   10ML0100260        DO
,OFFICE OF THE MAJORITY LEADER,2010Q2,SUPPLIES AND MATERIALS,"",06­23   P1   10ML0100261        DO,05/12/10,05/12/10,FOOD & BEVERAGE,155.20,FISCAL YEAR 2010,"","","",06­23   P1   10ML0100261        DO
,OFFICE OF THE MAJORITY LEADER,2010Q2,SUPPLIES AND MATERIALS,"",06­23   P1   10ML0100262        DO,05/13/10,05/13/10,FOOD & BEVERAGE,374.10,FISCAL YEAR 2010,"","","",06­23   P1   10ML0100262        DO
,OFFICE OF THE MAJORITY LEADER,2010Q2,SUPPLIES AND MATERIALS,"",06­23   P1   10ML0100268        DO,05/19/10,05/19/10,FOOD & BEVERAGE,221.20,FISCAL YEAR 2010,"","","",06­23   P1   10ML0100268        DO
,OFFICE OF THE MAJORITY LEADER,2010Q2,SUPPLIES AND MATERIALS,"",06­23   P1   10ML0100269        DO,05/19/10,05/19/10,FOOD & BEVERAGE,357.60,FISCAL YEAR 2010,"","","",06­23   P1   10ML0100269        DO
,OFFICE OF THE MAJORITY LEADER,2010Q2,SUPPLIES AND MATERIALS,"",06­23   P1   10ML0100270        DO,05/20/10,05/20/10,FOOD & BEVERAGE,421.40,FISCAL YEAR 2010,"","","",06­23   P1   10ML0100270        DO
,OFFICE OF THE MAJORITY LEADER,2010Q2,SUPPLIES AND MATERIALS,"",06­23   P1   10ML0100271        DO,05/21/10,05/21/10,FOOD & BEVERAGE,123.30,FISCAL YEAR 2010,"","","",06­23   P1   10ML0100271        DO
,OFFICE OF THE MAJORITY LEADER,2010Q2,SUPPLIES AND MATERIALS,"",06­23 P1 10ML0100272               DO,05/24/10,05/24/10,FOOD & BEVERAGE,197.00,FISCAL YEAR 2010,"","","",06­23 P1 10ML0100272               DO
,OFFICE OF THE MAJORITY LEADER,2010Q2,SUPPLIES AND MATERIALS,"",06­23 P1 10ML0100273               DO,05/26/10,05/26/10,FOOD & BEVERAGE,221.20,FISCAL YEAR 2010,"","","",06­23 P1 10ML0100273               DO
,OFFICE OF THE MAJORITY LEADER,2010Q2,SUPPLIES AND MATERIALS,"",06­23 P1 10ML0100274               DO,05/26/10,05/26/10,FOOD & BEVERAGE,403.80,FISCAL YEAR 2010,"","","",06­23 P1 10ML0100274               DO
,OFFICE OF THE MAJORITY LEADER,2010Q2,SUPPLIES AND MATERIALS,"",06­23 P1 10ML0100275               DO,05/27/10,05/27/10,FOOD & BEVERAGE,221.20,FISCAL YEAR 2010,"","","",06­23 P1 10ML0100275               DO
,OFFICE OF THE MAJORITY LEADER,2010Q2,SUPPLIES AND MATERIALS,"",06­23 P1 10ML0100276               DO,05/27/10,05/27/10,FOOD & BEVERAGE,246.50,FISCAL YEAR 2010,"","","",06­23 P1 10ML0100276               DO
,OFFICE OF THE MAJORITY LEADER,2010Q2,SUPPLIES AND MATERIALS,"",06­23 P1 10ML0100263          MARY R KRUEGER,06/13/10,06/13/10,FOOD & BEVERAGE,37.00,FISCAL YEAR 2010,"","","",06­23 P1 10ML0100263          MARY R KRUEGER
,OFFICE OF THE MAJORITY LEADER,2010Q2,PERSONNEL BENEFITS,"",04­20       P9 ML011000004        HON. STENY HOYER,04/01/10,04/30/10,OFFICIAL EXPENSES FOR LEADER,833.33,FISCAL YEAR 2010,"","","",04­20       P9 ML011000004        HON. STENY HOYER
,OFFICE OF THE MAJORITY LEADER,2010Q2,PERSONNEL BENEFITS,"",05­21       P9 ML011000005             DO,05/01/10,05/31/10,OFFICIAL EXPENSES FOR LEADER,833.33,FISCAL YEAR 2010,"","","",05­21       P9 ML011000005             DO
,OFFICE OF THE MAJORITY LEADER,2010Q2,PERSONNEL BENEFITS,"",06­18       P9 ML011000006             DO,06/01/10,06/30/10,OFFICIAL EXPENSES FOR LEADER,833.33,FISCAL YEAR 2010,"","","",06­18       P9 ML011000006             DO
,OFFICE OF THE MAJORITY LEADER,2010Q2,PERSONNEL BENEFITS,"",06­30       HV 10A90300928             DO,01/01/10,01/31/10,OFFICIAL EXPENSES FOR LEADER,833.33,FISCAL YEAR 2010,"","","",06­30       HV 10A90300928             DO
,OFFICE OF THE MAJORITY LEADER,2010Q2,PERSONNEL BENEFITS,"",06­30       HV 10A90300929             DO,02/01/10,02/28/10,OFFICIAL EXPENSES FOR LEADER,833.33,FISCAL YEAR 2010,"","","",06­30       HV 10A90300929             DO
,OFFICE OF THE MAJORITY LEADER,2010Q2,PERSONNEL BENEFITS,"",06­30       HV 10A90300930             DO,03/01/10,03/31/10,OFFICIAL EXPENSES FOR LEADER,833.33,FISCAL YEAR 2010,"","","",06­30       HV 10A90300930             DO
,OFFICE OF THE MAJORITY LEADER,2010Q2,PERSONNEL BENEFITS,"",06­30       HV 10A90300931             DO,04/01/10,04/30/10,OFFICIAL EXPENSES FOR LEADER,833.33,FISCAL YEAR 2010,"","","",06­30       HV 10A90300931             DO
,OFFICE OF THE MAJORITY LEADER,2010Q2,PERSONNEL BENEFITS,"",06­30       HV 10A90300932             DO,05/01/10,05/31/10,OFFICIAL EXPENSES FOR LEADER,833.33,FISCAL YEAR 2010,"","","",06­30       HV 10A90300932             DO
,OFFICE OF THE MAJORITY LEADER,2010Q2,PERSONNEL BENEFITS,"",06­30       HV 10A90300933             DO,06/01/10,06/30/10,OFFICIAL EXPENSES FOR LEADER,833.33,FISCAL YEAR 2010,"","","",06­30       HV 10A90300933             DO
,OFFICE OF THE MINORITY LEADER,2010Q2,PERSONNEL COMPENSATION,"","BUCK, BRENDAN K",04/01/10,04/30/10,DIR OF COMM FOR LEG DIRECTOR,"7,500.00",FISCAL YEAR 2010,"","","","BUCK, BRENDAN K"
,OFFICE OF THE MINORITY LEADER,2010Q2,PERSONNEL COMPENSATION,"","BUCK, BRENDAN K",05/01/10,06/30/10,DIR OF COMM FOR LEG OPERATIONS,"15,000.00",FISCAL YEAR 2010,"","","",DO
,OFFICE OF THE MINORITY LEADER,2010Q2,PERSONNEL COMPENSATION,"","CASSIDY, ED",04/01/10,06/30/10,SR ADVISOR/FLOOR ASSIST (STAT),"42,000.00",FISCAL YEAR 2010,"","","","CASSIDY, ED"
,OFFICE OF THE MINORITY LEADER,2010Q2,PERSONNEL COMPENSATION,"","GREEN, JO-MARIE S",04/01/10,06/30/10,GEN. COUNSEL/DIR. OF FLOOR OPS,"42,999.99",FISCAL YEAR 2010,"","","","GREEN, JO-MARIE S"
,OFFICE OF THE MINORITY LEADER,2010Q2,PERSONNEL COMPENSATION,"","JACKSON,BARRY S",04/01/10,06/30/10,CHIEF OF STAFF,"43,125.00",FISCAL YEAR 2010,"","","","JACKSON,BARRY S"
,OFFICE OF THE MINORITY LEADER,2010Q2,PERSONNEL COMPENSATION,"","NOWAKOWSKI, PAULA",01/01/10,01/10/10,CHIEF OF STAFF,"4,295.73",FISCAL YEAR 2010,"","","","NOWAKOWSKI, PAULA"
,OFFICE OF THE MINORITY LEADER,2010Q2,PERSONNEL COMPENSATION,"","NOWAKOWSKI, PAULA",01/01/10,01/10/10,CHIEF OF STAFF (OTHER COMPENSATION),"9,583.33",FISCAL YEAR 2010,"","","",DO
,OFFICE OF THE MINORITY LEADER,2010Q2,PERSONNEL COMPENSATION,"","PIERSON, JAY",04/01/10,06/02/10,FLOOR ASSISTANT (STAT),"40,228.89",FISCAL YEAR 2010,"","","","PIERSON, JAY"
,OFFICE OF THE MINORITY LEADER,2010Q2,PERSONNEL COMPENSATION,"","SCHNITTGER, DAVID M",04/01/10,06/30/10,DEPUTY CHIEF OF STAFF,"43,125.00",FISCAL YEAR 2010,"","","","SCHNITTGER, DAVID M"
,OFFICE OF THE MINORITY LEADER,2010Q2,PERSONNEL COMPENSATION,"","SMITH, KEVIN",04/01/10,06/30/10,COMMUNICATIONS DIR (STATUTORY),"38,874.99",FISCAL YEAR 2010,"","","","SMITH, KEVIN"
,OFFICE OF THE MINORITY LEADER,2010Q2,PERSONNEL COMPENSATION,"","SOMMERS, MICHAEL J",03/01/10,06/30/10,POLICY DIRECTOR,"43,166.67",FISCAL YEAR 2010,"","","","SOMMERS, MICHAEL J"
,OFFICE OF THE MINORITY LEADER,2010Q2,PERSONNEL COMPENSATION,"","ANDRES, ELIZABETH G",04/01/10,06/30/10,DEPUTY PRESS SECRETARY,"17,499.99",FISCAL YEAR 2010,"","","","ANDRES, ELIZABETH G"
,OFFICE OF THE MINORITY LEADER,2010Q2,PERSONNEL COMPENSATION,"","BENJAMIN, WILLIAM C",04/01/10,06/30/10,DIR OF INFORMATION TECHNOLOGY,"23,250.00",FISCAL YEAR 2010,"","","","BENJAMIN, WILLIAM C"
,OFFICE OF THE MINORITY LEADER,2010Q2,PERSONNEL COMPENSATION,"","CHAPLIN, KRISTEN F",04/01/10,06/30/10,DIR OF SCHEDLNG & SPEC EVENTS,"24,375.00",FISCAL YEAR 2010,"","","","CHAPLIN, KRISTEN F"
,OFFICE OF THE MINORITY LEADER,2010Q2,PERSONNEL COMPENSATION,"","CRANFORD III, JAY N",03/01/10,06/30/10,POLICY ADVISOR,"39,945.83",FISCAL YEAR 2010,"","","","CRANFORD III, JAY N"
,OFFICE OF THE MINORITY LEADER,2010Q2,PERSONNEL COMPENSATION,"","GREENE,WILLIAM P",04/01/10,06/30/10,OUTREACH DIRECTOR,"33,825.00",FISCAL YEAR 2010,"","","","GREENE,WILLIAM P"
,OFFICE OF THE MINORITY LEADER,2010Q2,PERSONNEL COMPENSATION,"","HALEY, KATHERINE C",04/01/10,06/30/10,POLICY ADVISOR,"22,125.00",FISCAL YEAR 2010,"","","","HALEY, KATHERINE C"
,OFFICE OF THE MINORITY LEADER,2010Q2,PERSONNEL COMPENSATION,"","HERRLE, CYNTHIA A",03/01/10,06/30/10,POLICY ADVISOR,"36,120.83",FISCAL YEAR 2010,"","","","HERRLE, CYNTHIA A"
,OFFICE OF THE MINORITY LEADER,2010Q2,PERSONNEL COMPENSATION,"","KINZEL,WILL C",04/01/10,06/30/10,POLICY ADVISOR/COUNSEL,"28,599.99",FISCAL YEAR 2010,"","","","KINZEL,WILL C"
,OFFICE OF THE MINORITY LEADER,2010Q2,PERSONNEL COMPENSATION,"","LAMPERT,JUSTIN",04/01/10,06/30/10,STAFF ASSISTANT,"9,450.00",FISCAL YEAR 2010,"","","","LAMPERT,JUSTIN"
,OFFICE OF THE MINORITY LEADER,2010Q2,PERSONNEL COMPENSATION,"","LAMPERT,JUSTIN",03/01/10,05/31/10,STAFF ASSISTANT (OVERTIME),"2,766.82",FISCAL YEAR 2010,"","","",DO
,OFFICE OF THE MINORITY LEADER,2010Q2,PERSONNEL COMPENSATION,"","LOZUPONE, AMY S",04/01/10,06/30/10,DEP. CHIEF OF STAFF FOR ADMIN,"35,750.01",FISCAL YEAR 2010,"","","","LOZUPONE, AMY S"
,OFFICE OF THE MINORITY LEADER,2010Q2,PERSONNEL COMPENSATION,"","PAULSON, JUDY K",04/01/10,06/30/10,FINANCIAL ADMINISTRATOR,"8,124.99",FISCAL YEAR 2010,"","","","PAULSON, JUDY K"
,OFFICE OF THE MINORITY LEADER,2010Q2,PERSONNEL COMPENSATION,"","PORTER, EMILY S",03/01/10,06/30/10,POLICY ADVISOR,"28,666.68",FISCAL YEAR 2010,"","","","PORTER, EMILY S"
,OFFICE OF THE MINORITY LEADER,2010Q2,PERSONNEL COMPENSATION,"","RICCI,MICHAEL",04/01/10,06/30/10,DEPUTY COMMUNICATIONS DIRECTOR,"30,000.00",FISCAL YEAR 2010,"","","","RICCI,MICHAEL"
,OFFICE OF THE MINORITY LEADER,2010Q2,PERSONNEL COMPENSATION,"","SAUNDERS,GRANT H",04/01/10,06/30/10,STAFF ASSISTANT,"8,100.00",FISCAL YEAR 2010,"","","","SAUNDERS,GRANT H"
,OFFICE OF THE MINORITY LEADER,2010Q2,PERSONNEL COMPENSATION,"","SAUNDERS,GRANT H",03/01/10,05/31/10,STAFF ASSISTANT (OVERTIME),"2,172.96",FISCAL YEAR 2010,"","","",DO
,OFFICE OF THE MINORITY LEADER,2010Q2,PERSONNEL COMPENSATION,"","STEWART, DAVID B",04/01/10,06/30/10,POLICY ADVISOR,"31,500.00",FISCAL YEAR 2010,"","","","STEWART, DAVID B"
,OFFICE OF THE MINORITY LEADER,2010Q2,PERSONNEL COMPENSATION,"","STEWART, JENNIFER M",03/01/10,06/30/10,POLICY ADVISOR,"28,666.68",FISCAL YEAR 2010,"","","","STEWART, JENNIFER M"
,OFFICE OF THE MINORITY LEADER,2010Q2,PERSONNEL COMPENSATION,"","STRUNK, JEFFREY A",04/01/10,06/30/10,FLOOR ASSISTANT,"12,624.99",FISCAL YEAR 2010,"","","","STRUNK, JEFFREY A"
,OFFICE OF THE MINORITY LEADER,2010Q2,PERSONNEL COMPENSATION,"","THORSEN, ANNE B",04/01/10,06/30/10,DEPUTY DIR LEG OPERATIONS,"27,375.00",FISCAL YEAR 2010,"","","","THORSEN, ANNE B"
,OFFICE OF THE MINORITY LEADER,2010Q2,PERSONNEL COMPENSATION,"","WOLF,ADAM J",04/01/10,06/30/10,FLOOR ASSISTANT,"11,675.01",FISCAL YEAR 2010,"","","","WOLF,ADAM J"
,OFFICE OF THE MINORITY LEADER,2010Q2,TRAVEL,"",04­23   P1 10NL0100145      DAVID M SCHNITTGER,02/19/10,02/19/10,"TAXI, PARKING, TOLLS",26.00,FISCAL YEAR 2010,"","","",04­23   P1 10NL0100145      DAVID M SCHNITTGER
,OFFICE OF THE MINORITY LEADER,2010Q2,TRAVEL,"",04­23   P1 10NL0100144      KATHERINE CANNON HALEY,10/29/09,01/14/10,"TAXI, PARKING, TOLLS",62.00,FISCAL YEAR 2010,"","","",04­23   P1 10NL0100144      KATHERINE CANNON HALEY
,OFFICE OF THE MINORITY LEADER,2010Q2,TRAVEL,"",04­30 P1 10NL0100149          KEVIN SMITH,01/25/10,04/05/10,"TAXI, PARKING, TOLLS",54.00,FISCAL YEAR 2010,"","","",04­30 P1 10NL0100149          KEVIN SMITH
,OFFICE OF THE MINORITY LEADER,2010Q2,"RENT, COMMUNICATION, UTILITIES","",04­09       CB    FXF100408B      FEDERAL EXPRESS CORP,03/30/10,03/30/10,POSTAGE/COURIER/BOX RENTAL,9.75,FISCAL YEAR 2010,"","","",04­09       CB    FXF100408B      FEDERAL EXPRESS CORP
,OFFICE OF THE MINORITY LEADER,2010Q2,"RENT, COMMUNICATION, UTILITIES","",04­19       CB    FXF100415A            DO,03/31/10,03/31/10,POSTAGE/COURIER/BOX RENTAL,48.40,FISCAL YEAR 2010,"","","",04­19       CB    FXF100415A            DO
,OFFICE OF THE MINORITY LEADER,2010Q2,"RENT, COMMUNICATION, UTILITIES","",04­22       CB    FXF100421A            DO,04/08/10,04/08/10,POSTAGE/COURIER/BOX RENTAL,20.49,FISCAL YEAR 2010,"","","",04­22       CB    FXF100421A            DO
,OFFICE OF THE MINORITY LEADER,2010Q2,"RENT, COMMUNICATION, UTILITIES","",04­30       CB    FXF100429B            DO,04/14/10,04/14/10,POSTAGE/COURIER/BOX RENTAL,43.53,FISCAL YEAR 2010,"","","",04­30       CB    FXF100429B            DO
,OFFICE OF THE MINORITY LEADER,2010Q2,"RENT, COMMUNICATION, UTILITIES","",05­07       CB    FXF100506a            DO,04/23/10,04/23/10,POSTAGE/COURIER/BOX RENTAL,11.50,FISCAL YEAR 2010,"","","",05­07       CB    FXF100506a            DO
,OFFICE OF THE MINORITY LEADER,2010Q2,"RENT, COMMUNICATION, UTILITIES","",05­14       CB    FXF100513a            DO,04/30/10,04/30/10,POSTAGE/COURIER/BOX RENTAL,40.95,FISCAL YEAR 2010,"","","",05­14       CB    FXF100513a            DO
,OFFICE OF THE MINORITY LEADER,2010Q2,"RENT, COMMUNICATION, UTILITIES","",05­21       CB    FXF100520a            DO,05/07/10,05/07/10,POSTAGE/COURIER/BOX RENTAL,11.61,FISCAL YEAR 2010,"","","",05­21       CB    FXF100520a            DO
,OFFICE OF THE MINORITY LEADER,2010Q2,"RENT, COMMUNICATION, UTILITIES","",05­27       CB    FXF100526B            DO,05/12/10,05/12/10,POSTAGE/COURIER/BOX RENTAL,47.00,FISCAL YEAR 2010,"","","",05­27       CB    FXF100526B            DO
,OFFICE OF THE MINORITY LEADER,2010Q2,"RENT, COMMUNICATION, UTILITIES","",06­04       CB    FXF100603a            DO,05/21/10,05/21/10,POSTAGE/COURIER/BOX RENTAL,11.61,FISCAL YEAR 2010,"","","",06­04       CB    FXF100603a            DO
,OFFICE OF THE MINORITY LEADER,2010Q2,"RENT, COMMUNICATION, UTILITIES","",06­08       P1    10NL0100172     SPENCER GEISSINGER,05/24/10,05/25/10,EQUIPMENT RENTAL,"1,500.00",FISCAL YEAR 2010,"","","",06­08       P1    10NL0100172     SPENCER GEISSINGER
,OFFICE OF THE MINORITY LEADER,2010Q2,"RENT, COMMUNICATION, UTILITIES","",06­11       CB    FXF100610a      FEDERAL EXPRESS CORP,05/26/10,05/26/10,POSTAGE/COURIER/BOX RENTAL,7.06,FISCAL YEAR 2010,"","","",06­11       CB    FXF100610a      FEDERAL EXPRESS CORP
,OFFICE OF THE MINORITY LEADER,2010Q2,"RENT, COMMUNICATION, UTILITIES","",06­16       P1    10NL0100184     FEDERAL EXPRESS,05/12/10,05/12/10,POSTAGE/COURIER/BOX RENTAL,63.38,FISCAL YEAR 2010,"","","",06­16       P1    10NL0100184     FEDERAL EXPRESS
,OFFICE OF THE MINORITY LEADER,2010Q2,"RENT, COMMUNICATION, UTILITIES","",06­17       CB    FXF100616A      FEDERAL EXPRESS CORP,06/02/10,06/02/10,POSTAGE/COURIER/BOX RENTAL,48.37,FISCAL YEAR 2010,"","","",06­17       CB    FXF100616A      FEDERAL EXPRESS CORP
,OFFICE OF THE MINORITY LEADER,2010Q2,PRINTING AND REPRODUCTION,"",04­23       S3 10113000117,04/01/10,04/30/10,PHOTOGRAPHIC (TRANSFER),27.90,FISCAL YEAR 2010,"","","",04­23       S3 10113000117
,OFFICE OF THE MINORITY LEADER,2010Q2,PRINTING AND REPRODUCTION,"",05­25       S3 10145000151,05/01/10,05/31/10,PHOTOGRAPHIC (TRANSFER),18.20,FISCAL YEAR 2010,"","","",05­25       S3 10145000151
,OFFICE OF THE MINORITY LEADER,2010Q2,PRINTING AND REPRODUCTION,"",06­25       S3 10176000145,06/01/10,06/30/10,PHOTOGRAPHIC (TRANSFER),32.70,FISCAL YEAR 2010,"","","",06­25       S3 10176000145
,OFFICE OF THE MINORITY LEADER,2010Q2,OTHER SERVICES,"",05­21       P1 10NL0100162                    CITIBANK GOV CARD SERVICE,06/03/10,06/04/10,TRAINING EXPENSES,495.00,FISCAL YEAR 2010,"","","",05­21       P1 10NL0100162                    CITIBANK GOV CARD SERVICE
,OFFICE OF THE MINORITY LEADER,2010Q2,SUPPLIES AND MATERIALS,"",04­07       P1    10NL0100126      CAPITOLHOST,03/01/10,03/01/10,FOOD & BEVERAGE,62.99,FISCAL YEAR 2010,"","","",04­07       P1    10NL0100126      CAPITOLHOST
,OFFICE OF THE MINORITY LEADER,2010Q2,SUPPLIES AND MATERIALS,"",04­07       P1    10NL0100127           DO,03/05/10,03/05/10,FOOD & BEVERAGE,377.99,FISCAL YEAR 2010,"","","",04­07       P1    10NL0100127           DO
,OFFICE OF THE MINORITY LEADER,2010Q2,SUPPLIES AND MATERIALS,"",04­07       P1    10NL0100128           DO,03/08/10,03/08/10,FOOD & BEVERAGE,62.99,FISCAL YEAR 2010,"","","",04­07       P1    10NL0100128           DO
,OFFICE OF THE MINORITY LEADER,2010Q2,SUPPLIES AND MATERIALS,"",04­07       P1    10NL0100125      COCA-COLA ENTERPRISES,03/23/10,03/23/10,FOOD & BEVERAGE,323.14,FISCAL YEAR 2010,"","","",04­07       P1    10NL0100125      COCA-COLA ENTERPRISES
,OFFICE OF THE MINORITY LEADER,2010Q2,SUPPLIES AND MATERIALS,"",04­22       P1    10NL0100136      CAPITOLHOST,03/15/10,03/15/10,FOOD & BEVERAGE,62.99,FISCAL YEAR 2010,"","","",04­22       P1    10NL0100136      CAPITOLHOST
,OFFICE OF THE MINORITY LEADER,2010Q2,SUPPLIES AND MATERIALS,"",04­22       P1    10NL0100137      CITIBANK GOV CARD SERVICE,02/25/10,03/21/10,FOOD & BEVERAGE,"13,446.57",FISCAL YEAR 2010,"","","",04­22       P1    10NL0100137      CITIBANK GOV CARD SERVICE
,OFFICE OF THE MINORITY LEADER,2010Q2,SUPPLIES AND MATERIALS,"",04­22       P1    10NL0100138           DO,03/16/10,03/16/11,PUBLICATION REF MATERIAL,109.18,FISCAL YEAR 2010,"","","",04­22       P1    10NL0100138           DO
,OFFICE OF THE MINORITY LEADER,2010Q2,SUPPLIES AND MATERIALS,"",04­22       P1    10NL0100130      JOE RAGAN'S COFFEE LTD,02/28/10,02/28/10,BOTTLED WATER,23.80,FISCAL YEAR 2010,"","","",04­22       P1    10NL0100130      JOE RAGAN'S COFFEE LTD
,OFFICE OF THE MINORITY LEADER,2010Q2,SUPPLIES AND MATERIALS,"",04­22       P1    10NL0100131           DO,03/18/10,03/18/10,BOTTLED WATER,23.80,FISCAL YEAR 2010,"","","",04­22       P1    10NL0100131           DO
,OFFICE OF THE MINORITY LEADER,2010Q2,SUPPLIES AND MATERIALS,"",04­22       P1    10NL0100132           DO,02/28/10,02/28/10,FOOD & BEVERAGE,537.73,FISCAL YEAR 2010,"","","",04­22       P1    10NL0100132           DO
,OFFICE OF THE MINORITY LEADER,2010Q2,SUPPLIES AND MATERIALS,"",04­22       P1    10NL0100133           DO,03/09/10,03/09/10,FOOD & BEVERAGE,633.70,FISCAL YEAR 2010,"","","",04­22       P1    10NL0100133           DO
,OFFICE OF THE MINORITY LEADER,2010Q2,SUPPLIES AND MATERIALS,"",04­22       P1    10NL0100134           DO,03/18/10,03/18/10,FOOD & BEVERAGE,617.43,FISCAL YEAR 2010,"","","",04­22       P1    10NL0100134           DO
,OFFICE OF THE MINORITY LEADER,2010Q2,SUPPLIES AND MATERIALS,"",04­22       P1    10NL0100135           DO,03/29/10,03/29/10,FOOD & BEVERAGE,554.52,FISCAL YEAR 2010,"","","",04­22       P1    10NL0100135           DO
,OFFICE OF THE MINORITY LEADER,2010Q2,SUPPLIES AND MATERIALS,"",04­23       P1    10NL0100148      CAPITOLHOST,03/22/10,03/22/10,FOOD & BEVERAGE,62.99,FISCAL YEAR 2010,"","","",04­23       P1    10NL0100148      CAPITOLHOST
,OFFICE OF THE MINORITY LEADER,2010Q2,SUPPLIES AND MATERIALS,"",04­23       P1    10NL0100147      COCA-COLA ENTERPRISES,04/06/10,04/06/10,FOOD & BEVERAGE,269.06,FISCAL YEAR 2010,"","","",04­23       P1    10NL0100147      COCA-COLA ENTERPRISES
,OFFICE OF THE MINORITY LEADER,2010Q2,SUPPLIES AND MATERIALS,"","04­23       P1    10NL0100140      LEADERSHIP DIRECTORIES, INC",03/01/10,03/01/11,PUBLICATION REF MATERIAL,499.00,FISCAL YEAR 2010,"","","","04­23       P1    10NL0100140      LEADERSHIP DIRECTORIES, INC"
,OFFICE OF THE MINORITY LEADER,2010Q2,SUPPLIES AND MATERIALS,"",04­23   P1    10NL0100141                     DO,03/01/10,03/01/11,PUBLICATION REF MATERIAL,499.00,FISCAL YEAR 2010,"","","",04­23   P1    10NL0100141                     DO
,OFFICE OF THE MINORITY LEADER,2010Q2,SUPPLIES AND MATERIALS,"",04­23   P1    10NL0100142                     DO,03/01/10,03/01/11,PUBLICATION REF MATERIAL,499.00,FISCAL YEAR 2010,"","","",04­23   P1    10NL0100142                     DO
,OFFICE OF THE MINORITY LEADER,2010Q2,SUPPLIES AND MATERIALS,"",04­23   P1    10NL0100143                     DO,06/01/10,03/01/11,PUBLICATION REF MATERIAL,499.00,FISCAL YEAR 2010,"","","",04­23   P1    10NL0100143                     DO
,OFFICE OF THE MINORITY LEADER,2010Q2,SUPPLIES AND MATERIALS,"",04­23   P1    10NL0100146                M EDWARD CASSIDY,04/01/10,04/01/10,PUBLICATION REF MATERIAL,37.79,FISCAL YEAR 2010,"","","",04­23   P1    10NL0100146                M EDWARD CASSIDY
,OFFICE OF THE MINORITY LEADER,2010Q2,SUPPLIES AND MATERIALS,"",04­30   P1    10NL0100150                COCA-COLA ENTERPRISES,04/20/10,04/20/10,FOOD & BEVERAGE,214.61,FISCAL YEAR 2010,"","","",04­30   P1    10NL0100150                COCA-COLA ENTERPRISES
,OFFICE OF THE MINORITY LEADER,2010Q2,SUPPLIES AND MATERIALS,"",05­11   P1    10NL0100152                     DO,04/29/10,04/29/10,FOOD & BEVERAGE,259.94,FISCAL YEAR 2010,"","","",05­11   P1    10NL0100152                     DO
,OFFICE OF THE MINORITY LEADER,2010Q2,SUPPLIES AND MATERIALS,"",05­12   P1    10NL0100153                JOE RAGAN'S COFFEE LTD,04/20/10,04/20/10,FOOD & BEVERAGE,23.80,FISCAL YEAR 2010,"","","",05­12   P1    10NL0100153                JOE RAGAN'S COFFEE LTD
,OFFICE OF THE MINORITY LEADER,2010Q2,SUPPLIES AND MATERIALS,"",05­12   P1    10NL0100154                     DO,04/22/10,04/22/10,FOOD & BEVERAGE,12.00,FISCAL YEAR 2010,"","","",05­12   P1    10NL0100154                     DO
,OFFICE OF THE MINORITY LEADER,2010Q2,SUPPLIES AND MATERIALS,"",05­12   P1    10NL0100155                     DO,04/20/10,04/20/10,FOOD & BEVERAGE,602.64,FISCAL YEAR 2010,"","","",05­12   P1    10NL0100155                     DO
,OFFICE OF THE MINORITY LEADER,2010Q2,SUPPLIES AND MATERIALS,"",05­19   P1    10NL0100157                CAPITOLHOST,04/12/10,04/12/10,FOOD & BEVERAGE,62.99,FISCAL YEAR 2010,"","","",05­19   P1    10NL0100157                CAPITOLHOST
,OFFICE OF THE MINORITY LEADER,2010Q2,SUPPLIES AND MATERIALS,"",05­19   P1    10NL0100158                     DO,04/19/10,04/19/10,FOOD & BEVERAGE,62.99,FISCAL YEAR 2010,"","","",05­19   P1    10NL0100158                     DO
,OFFICE OF THE MINORITY LEADER,2010Q2,SUPPLIES AND MATERIALS,"",05­19   P1    10NL0100156                COCA-COLA ENTERPRISES,05/04/10,05/04/10,FOOD & BEVERAGE,162.30,FISCAL YEAR 2010,"","","",05­19   P1    10NL0100156                COCA-COLA ENTERPRISES
,OFFICE OF THE MINORITY LEADER,2010Q2,SUPPLIES AND MATERIALS,"",05­21   P1    10NL0100164                CAPITOLHOST,04/26/10,04/26/10,FOOD & BEVERAGE,62.99,FISCAL YEAR 2010,"","","",05­21   P1    10NL0100164                CAPITOLHOST
,OFFICE OF THE MINORITY LEADER,2010Q2,SUPPLIES AND MATERIALS,"",05­21   P1    10NL0100160                CITIBANK GOV CARD SERVICE,04/13/10,04/26/10,FOOD & BEVERAGE,"4,677.03",FISCAL YEAR 2010,"","","",05­21   P1    10NL0100160                CITIBANK GOV CARD SERVICE
,OFFICE OF THE MINORITY LEADER,2010Q2,SUPPLIES AND MATERIALS,"",05­21   P1    10NL0100161                     DO,03/31/10,03/31/10,PUBLICATION REF MATERIAL,238.56,FISCAL YEAR 2010,"","","",05­21   P1    10NL0100161                     DO
,OFFICE OF THE MINORITY LEADER,2010Q2,SUPPLIES AND MATERIALS,"",05­21   P1    10NL0100163                COCA-COLA ENTERPRISES,05/11/10,05/11/10,FOOD & BEVERAGE,126.48,FISCAL YEAR 2010,"","","",05­21   P1    10NL0100163                COCA-COLA ENTERPRISES
,OFFICE OF THE MINORITY LEADER,2010Q2,SUPPLIES AND MATERIALS,"",06­01   P1    10NL0100169                     DO,05/18/10,05/18/10,FOOD & BEVERAGE,172.98,FISCAL YEAR 2010,"","","",06­01   P1    10NL0100169                     DO
,OFFICE OF THE MINORITY LEADER,2010Q2,SUPPLIES AND MATERIALS,"",06­08   HV    10A90300703                JOE RAGAN'S COFFEE LTD,04/20/10,04/20/10,BOTTLED WATER,23.80,FISCAL YEAR 2010,"","","",06­08   HV    10A90300703                JOE RAGAN'S COFFEE LTD
,OFFICE OF THE MINORITY LEADER,2010Q2,SUPPLIES AND MATERIALS,"",06­08   HV    10A90300704                     DO,04/22/10,04/22/10,BOTTLED WATER,12.00,FISCAL YEAR 2010,"","","",06­08   HV    10A90300704                     DO
,OFFICE OF THE MINORITY LEADER,2010Q2,SUPPLIES AND MATERIALS,"",06­09   P1    10NL0100174                CAPITOLHOST,05/03/10,05/03/10,FOOD & BEVERAGE,62.99,FISCAL YEAR 2010,"","","",06­09   P1    10NL0100174                CAPITOLHOST
,OFFICE OF THE MINORITY LEADER,2010Q2,SUPPLIES AND MATERIALS,"",06­09   P1    10NL0100173                COCA-COLA ENTERPRISES,06/01/10,06/01/10,FOOD & BEVERAGE,341.66,FISCAL YEAR 2010,"","","",06­09   P1    10NL0100173                COCA-COLA ENTERPRISES
,OFFICE OF THE MINORITY LEADER,2010Q2,SUPPLIES AND MATERIALS,"",06­09   P1    10NL0100175                JOE RAGAN'S COFFEE LTD,05/04/10,05/04/10,FOOD & BEVERAGE,619.34,FISCAL YEAR 2010,"","","",06­09   P1    10NL0100175                JOE RAGAN'S COFFEE LTD
,OFFICE OF THE MINORITY LEADER,2010Q2,SUPPLIES AND MATERIALS,"",06­09   P1    10NL0100176                     DO,05/11/10,05/11/10,FOOD & BEVERAGE,277.73,FISCAL YEAR 2010,"","","",06­09   P1    10NL0100176                     DO
,OFFICE OF THE MINORITY LEADER,2010Q2,SUPPLIES AND MATERIALS,"",06­09   P1    10NL0100177                     DO,05/18/10,05/18/10,FOOD & BEVERAGE,598.72,FISCAL YEAR 2010,"","","",06­09   P1    10NL0100177                     DO
,OFFICE OF THE MINORITY LEADER,2010Q2,SUPPLIES AND MATERIALS,"",06­09   P1    10NL0100178                     DO,05/25/10,05/25/10,FOOD & BEVERAGE,607.03,FISCAL YEAR 2010,"","","",06­09   P1    10NL0100178                     DO
,OFFICE OF THE MINORITY LEADER,2010Q2,SUPPLIES AND MATERIALS,"",06­09   P1    10NL0100179                     DO,05/04/10,05/04/10,BOTTLED WATER,23.80,FISCAL YEAR 2010,"","","",06­09   P1    10NL0100179                     DO
,OFFICE OF THE MINORITY LEADER,2010Q2,SUPPLIES AND MATERIALS,"",06­09   P1    10NL0100180                     DO,05/11/10,05/11/10,BOTTLED WATER,17.85,FISCAL YEAR 2010,"","","",06­09   P1    10NL0100180                     DO
,OFFICE OF THE MINORITY LEADER,2010Q2,SUPPLIES AND MATERIALS,"",06­09   P1    10NL0100181                     DO,05/18/10,05/18/10,BOTTLED WATER,17.85,FISCAL YEAR 2010,"","","",06­09   P1    10NL0100181                     DO
,OFFICE OF THE MINORITY LEADER,2010Q2,SUPPLIES AND MATERIALS,"",06­09   P1    10NL0100182                     DO,05/25/10,05/25/10,BOTTLED WATER,23.80,FISCAL YEAR 2010,"","","",06­09   P1    10NL0100182                     DO
,OFFICE OF THE MINORITY LEADER,2010Q2,SUPPLIES AND MATERIALS,"",06­09   P1    10NL0100183                     DO,05/25/10,05/25/10,BOTTLED WATER,24.00,FISCAL YEAR 2010,"","","",06­09   P1    10NL0100183                     DO
,OFFICE OF THE MINORITY LEADER,2010Q2,SUPPLIES AND MATERIALS,"",06­21   P1    10NL0100185                CAPITOLHOST,05/10/10,05/10/10,FOOD & BEVERAGE,62.99,FISCAL YEAR 2010,"","","",06­21   P1    10NL0100185                CAPITOLHOST
,OFFICE OF THE MINORITY LEADER,2010Q2,SUPPLIES AND MATERIALS,"",06­23   P1    10NL0100188                     DO,05/17/10,05/24/10,FOOD & BEVERAGE,62.99,FISCAL YEAR 2010,"","","",06­23   P1    10NL0100188                     DO
,OFFICE OF THE MINORITY LEADER,2010Q2,SUPPLIES AND MATERIALS,"",06­23   P1    10NL0100189                     DO,05/24/10,05/24/10,FOOD & BEVERAGE,62.99,FISCAL YEAR 2010,"","","",06­23   P1    10NL0100189                     DO
,OFFICE OF THE MINORITY LEADER,2010Q2,SUPPLIES AND MATERIALS,"",06­23   P1    10NL0100190                     DO,05/27/10,05/27/10,FOOD & BEVERAGE,75.00,FISCAL YEAR 2010,"","","",06­23   P1    10NL0100190                     DO
,OFFICE OF THE MINORITY LEADER,2010Q2,SUPPLIES AND MATERIALS,"",06­23   P1    10NL0100186                CITIBANK GOV CARD SERVICE,04/27/10,05/26/10,FOOD & BEVERAGE,"15,888.11",FISCAL YEAR 2010,"","","",06­23   P1    10NL0100186                CITIBANK GOV CARD SERVICE
,OFFICE OF THE MINORITY LEADER,2010Q2,SUPPLIES AND MATERIALS,"",06­23   P1    10NL0100187                     DO,04/29/10,04/29/11,PUBLICATION REF MATERIAL,21.95,FISCAL YEAR 2010,"","","",06­23   P1    10NL0100187                     DO
,OFFICE OF THE MINORITY LEADER,2010Q2,SUPPLIES AND MATERIALS,"","06­28   P1    10NL0100195                LEADERSHIP DIRECTORIES, INC",07/01/10,01/01/11,PUBLICATION REF MATERIAL,366.00,FISCAL YEAR 2010,"","","","06­28   P1    10NL0100195                LEADERSHIP DIRECTORIES, INC"
,OFFICE OF THE MINORITY LEADER,2010Q2,SUPPLIES AND MATERIALS,"",06­29   P1    10NL0100196                COCA-COLA ENTERPRISES,06/16/10,06/16/10,FOOD & BEVERAGE,261.38,FISCAL YEAR 2010,"","","",06­29   P1    10NL0100196                COCA-COLA ENTERPRISES
,OFFICE OF THE MINORITY LEADER,2010Q2,PERSONNEL BENEFITS,"",04­20   P9 NL011000004        HON. JOHN A BOEHNER,04/01/10,04/30/10,OFFICIAL EXPENSES FOR LEADER,833.33,FISCAL YEAR 2010,"","","",04­20   P9 NL011000004        HON. JOHN A BOEHNER
,OFFICE OF THE MINORITY LEADER,2010Q2,PERSONNEL BENEFITS,"",05­21   P9 NL011000005             DO,05/01/10,05/31/10,OFFICIAL EXPENSES FOR LEADER,833.33,FISCAL YEAR 2010,"","","",05­21   P9 NL011000005             DO
,OFFICE OF THE MINORITY LEADER,2010Q2,PERSONNEL BENEFITS,"",06­18   P9 NL011000006             DO,06/01/10,06/30/10,OFFICIAL EXPENSES FOR LEADER,833.33,FISCAL YEAR 2010,"","","",06­18   P9 NL011000006             DO
,OFFICE OF THE MINORITY LEADER,2010Q2,PERSONNEL BENEFITS,"",06­30   HV 10A90300922             DO,01/01/10,01/31/10,OFFICIAL EXPENSES FOR LEADER,833.33,FISCAL YEAR 2010,"","","",06­30   HV 10A90300922             DO
,OFFICE OF THE MINORITY LEADER,2010Q2,PERSONNEL BENEFITS,"",06­30   HV 10A90300923             DO,02/01/10,02/28/10,OFFICIAL EXPENSES FOR LEADER,833.33,FISCAL YEAR 2010,"","","",06­30   HV 10A90300923             DO
,OFFICE OF THE MINORITY LEADER,2010Q2,PERSONNEL BENEFITS,"",06­30 HV 10A90300924               DO,03/01/10,03/31/10,OFFICIAL EXPENSES FOR LEADER,833.33,FISCAL YEAR 2010,"","","",06­30 HV 10A90300924               DO
,OFFICE OF THE MINORITY LEADER,2010Q2,PERSONNEL BENEFITS,"",06­30 HV 10A90300925               DO,04/01/10,04/30/10,OFFICIAL EXPENSES FOR LEADER,833.33,FISCAL YEAR 2010,"","","",06­30 HV 10A90300925               DO
,OFFICE OF THE MINORITY LEADER,2010Q2,PERSONNEL BENEFITS,"",06­30 HV 10A90300926               DO,05/01/10,05/31/10,OFFICIAL EXPENSES FOR LEADER,833.33,FISCAL YEAR 2010,"","","",06­30 HV 10A90300926               DO
,OFFICE OF THE MINORITY LEADER,2010Q2,PERSONNEL BENEFITS,"",06­30 HV 10A90300927               DO,06/01/10,06/30/10,OFFICIAL EXPENSES FOR LEADER,833.33,FISCAL YEAR 2010,"","","",06­30 HV 10A90300927               DO
,OFFICE OF THE MAJORITY WHIP,2010Q2,PERSONNEL COMPENSATION,"","WATKINS, YELBERTON R",04/01/10,06/30/10,CHIEF OF STAFF,"41,250.00",FISCAL YEAR 2010,"","","","WATKINS, YELBERTON R"
,OFFICE OF THE MAJORITY WHIP,2010Q2,PERSONNEL COMPENSATION,"","ARGUELLES, ADAM",04/01/10,06/30/10,ASSISTANT FLOOR DIRECTOR,"17,499.99",FISCAL YEAR 2010,"","","","ARGUELLES, ADAM"
,OFFICE OF THE MAJORITY WHIP,2010Q2,PERSONNEL COMPENSATION,"","BIRCH, SARAH L",04/01/10,06/30/10,DIR SPECIAL PROJ./MEMBER SERV,"20,000.01",FISCAL YEAR 2010,"","","","BIRCH, SARAH L"
,OFFICE OF THE MAJORITY WHIP,2010Q2,PERSONNEL COMPENSATION,"","CANTRELL,MARGARET",04/01/10,06/30/10,POLICY ADVISOR,"22,500.00",FISCAL YEAR 2010,"","","","CANTRELL,MARGARET"
,OFFICE OF THE MAJORITY WHIP,2010Q2,PERSONNEL COMPENSATION,"","CHAPLIN, JENNIE",04/01/10,04/30/10,DIRECTOR OF SCHEDULING,"1,833.33",FISCAL YEAR 2010,"","","","CHAPLIN, JENNIE"
,OFFICE OF THE MAJORITY WHIP,2010Q2,PERSONNEL COMPENSATION,"","COLLINS, MICHAEL E",04/01/10,06/30/10,CHIEF DEPUTY WHIP,"10,625.01",FISCAL YEAR 2010,"","","","COLLINS, MICHAEL E"
,OFFICE OF THE MAJORITY WHIP,2010Q2,PERSONNEL COMPENSATION,"","DANIELS,RYAN",04/01/10,06/30/10,PRESS ASSISTANT,"10,500.00",FISCAL YEAR 2010,"","","","DANIELS,RYAN"
,OFFICE OF THE MAJORITY WHIP,2010Q2,PERSONNEL COMPENSATION,"","DAY,TAMIKA K",04/01/10,06/30/10,SYSTEMS ADMINISTRATOR,"12,500.01",FISCAL YEAR 2010,"","","","DAY,TAMIKA K"
,OFFICE OF THE MAJORITY WHIP,2010Q2,PERSONNEL COMPENSATION,"","GRECO, KRISTINE M",04/01/10,06/30/10,COMMUNICATIONS DIRECTOR,"32,499.99",FISCAL YEAR 2010,"","","","GRECO, KRISTINE M"
,OFFICE OF THE MAJORITY WHIP,2010Q2,PERSONNEL COMPENSATION,"","GRIMALDI, DAVID F",04/01/10,06/30/10,SENIOR COUNSEL,"30,000.00",FISCAL YEAR 2010,"","","","GRIMALDI, DAVID F"
,OFFICE OF THE MAJORITY WHIP,2010Q2,PERSONNEL COMPENSATION,"","GRINNEY,MATTHEW J",04/01/10,06/30/10,STAFF ASSISTANT,"7,250.01",FISCAL YEAR 2010,"","","","GRINNEY,MATTHEW J"
,OFFICE OF THE MAJORITY WHIP,2010Q2,PERSONNEL COMPENSATION,"","HACKER,MICHAEL E",04/01/10,06/30/10,DEP FLOOR DIR FOR COALITIONS,"30,000.00",FISCAL YEAR 2010,"","","","HACKER,MICHAEL E"
,OFFICE OF THE MAJORITY WHIP,2010Q2,PERSONNEL COMPENSATION,"","HARRISON, ANTONIO L",04/01/10,06/30/10,DIRECTOR OF OUTREACH,"24,999.99",FISCAL YEAR 2010,"","","","HARRISON, ANTONIO L"
,OFFICE OF THE MAJORITY WHIP,2010Q2,PERSONNEL COMPENSATION,"","HARTMAN, WENDY A",04/01/10,06/30/10,SHARED EMPLOYEE,"20,000.01",FISCAL YEAR 2010,"","","","HARTMAN, WENDY A"
,OFFICE OF THE MAJORITY WHIP,2010Q2,PERSONNEL COMPENSATION,"","MAUTE,ALYSSA N",04/01/10,04/23/10,INTERN,734.72,FISCAL YEAR 2010,"","","","MAUTE,ALYSSA N"
,OFFICE OF THE MAJORITY WHIP,2010Q2,PERSONNEL COMPENSATION,"","METCALF, JOHN T",04/01/10,06/30/10,FLOOR DIRECTOR AND COUNSEL,"36,249.99",FISCAL YEAR 2010,"","","","METCALF, JOHN T"
,OFFICE OF THE MAJORITY WHIP,2010Q2,PERSONNEL COMPENSATION,"","MOORE, MIKAEL",04/01/10,06/30/10,FLOOR ASSISTANT,"9,999.99",FISCAL YEAR 2010,"","","","MOORE, MIKAEL"
,OFFICE OF THE MAJORITY WHIP,2010Q2,PERSONNEL COMPENSATION,"","NEILL, ALLIE",04/01/10,06/30/10,DEP FLOOR DIR AND SENIOR ADVIS,"31,250.01",FISCAL YEAR 2010,"","","","NEILL, ALLIE"
,OFFICE OF THE MAJORITY WHIP,2010Q2,PERSONNEL COMPENSATION,"","SHERIDAN,KELLY A",04/01/10,06/30/10,STAFF ASSISTANT,"7,500.00",FISCAL YEAR 2010,"","","","SHERIDAN,KELLY A"
,OFFICE OF THE MAJORITY WHIP,2010Q2,PERSONNEL COMPENSATION,"","SINGLETARY, BARVETTA",04/01/10,06/30/10,SHARED EMPLOYEE,"15,000.00",FISCAL YEAR 2010,"","","","SINGLETARY, BARVETTA"
,OFFICE OF THE MAJORITY WHIP,2010Q2,TRAVEL,"",04­02   P1 10MW0100143      ANTONIO HARRISON,03/18/10,03/18/10,"TAXI, PARKING, TOLLS",18.00,FISCAL YEAR 2010,"","","",04­02   P1 10MW0100143      ANTONIO HARRISON
,OFFICE OF THE MAJORITY WHIP,2010Q2,TRAVEL,"",04­02   P1 10MW0100146      KELLY A SHERIDAN,03/22/10,03/22/10,"TAXI, PARKING, TOLLS",30.00,FISCAL YEAR 2010,"","","",04­02   P1 10MW0100146      KELLY A SHERIDAN
,OFFICE OF THE MAJORITY WHIP,2010Q2,TRAVEL,"",04­08   P1 10MW0100155      ANTONIO HARRISON,03/20/10,03/25/10,"TAXI, PARKING, TOLLS",33.00,FISCAL YEAR 2010,"","","",04­08   P1 10MW0100155      ANTONIO HARRISON
,OFFICE OF THE MAJORITY WHIP,2010Q2,TRAVEL,"",04­08   P1 10MW0100148      MICHAEL E HACKER,01/27/10,03/23/10,"TAXI, PARKING, TOLLS",118.00,FISCAL YEAR 2010,"","","",04­08   P1 10MW0100148      MICHAEL E HACKER
,OFFICE OF THE MAJORITY WHIP,2010Q2,TRAVEL,"",04­08   P1 10MW0100149      YELBERTON R WATKINS,03/05/10,03/08/10,COMMERCIAL TRANSPORTATION,"1,210.80",FISCAL YEAR 2010,"","","",04­08   P1 10MW0100149      YELBERTON R WATKINS
,OFFICE OF THE MAJORITY WHIP,2010Q2,TRAVEL,"",04­28   P1 10MW0100165      ANTONIO HARRISON,04/20/10,04/21/10,"TAXI, PARKING, TOLLS",29.00,FISCAL YEAR 2010,"","","",04­28   P1 10MW0100165      ANTONIO HARRISON
,OFFICE OF THE MAJORITY WHIP,2010Q2,TRAVEL,"",05­19   P1 10MW0100175           DO,05/01/10,05/01/10,"TAXI, PARKING, TOLLS",20.00,FISCAL YEAR 2010,"","","",05­19   P1 10MW0100175           DO
,OFFICE OF THE MAJORITY WHIP,2010Q2,TRAVEL,"",06­01   P1 10MW0100179           DO,05/19/10,05/19/10,"TAXI, PARKING, TOLLS",27.00,FISCAL YEAR 2010,"","","",06­01   P1 10MW0100179           DO
,OFFICE OF THE MAJORITY WHIP,2010Q2,TRAVEL,"",06­01   P1 10MW0100180      SARAH LYNN BIRCH,05/13/10,05/18/10,"TAXI, PARKING, TOLLS",44.00,FISCAL YEAR 2010,"","","",06­01   P1 10MW0100180      SARAH LYNN BIRCH
,OFFICE OF THE MAJORITY WHIP,2010Q2,TRAVEL,"",06­16   P1 10MW0100206      ANTONIO HARRISON,03/02/10,03/02/10,"TAXI, PARKING, TOLLS",12.00,FISCAL YEAR 2010,"","","",06­16   P1 10MW0100206      ANTONIO HARRISON
,OFFICE OF THE MAJORITY WHIP,2010Q2,TRAVEL,"",06­16   P1 10MW0100207      MICHAEL E HACKER,04/21/10,05/27/10,"TAXI, PARKING, TOLLS",81.00,FISCAL YEAR 2010,"","","",06­16   P1 10MW0100207      MICHAEL E HACKER
,OFFICE OF THE MAJORITY WHIP,2010Q2,TRAVEL,"",06­29   P1 10MW01RW146           DO,03/22/10,03/22/10,"TAXI, PARKING, TOLLS",30.00,FISCAL YEAR 2010,"","","",06­29   P1 10MW01RW146           DO
,OFFICE OF THE MAJORITY WHIP,2010Q2,"RENT, COMMUNICATION, UTILITIES","",04­02   CB    FXF100401B      FEDERAL EXPRESS CORP,03/19/10,03/19/10,POSTAGE/COURIER/BOX RENTAL,6.01,FISCAL YEAR 2010,"","","",04­02   CB    FXF100401B      FEDERAL EXPRESS CORP
,OFFICE OF THE MAJORITY WHIP,2010Q2,"RENT, COMMUNICATION, UTILITIES","",04­09   CB    FXF100408B            DO,03/25/10,03/25/10,POSTAGE/COURIER/BOX RENTAL,5.15,FISCAL YEAR 2010,"","","",04­09   CB    FXF100408B            DO
,OFFICE OF THE MAJORITY WHIP,2010Q2,"RENT, COMMUNICATION, UTILITIES","",04­19   CB    FXF100415A            DO,03/30/10,03/30/10,POSTAGE/COURIER/BOX RENTAL,9.71,FISCAL YEAR 2010,"","","",04­19   CB    FXF100415A            DO
,OFFICE OF THE MAJORITY WHIP,2010Q2,"RENT, COMMUNICATION, UTILITIES","",04­30   CB    FXF100429B            DO,04/16/10,04/16/10,POSTAGE/COURIER/BOX RENTAL,33.29,FISCAL YEAR 2010,"","","",04­30   CB    FXF100429B            DO
,OFFICE OF THE MAJORITY WHIP,2010Q2,"RENT, COMMUNICATION, UTILITIES","",05­07   CB    FXF100506a            DO,04/22/10,04/22/10,POSTAGE/COURIER/BOX RENTAL,6.99,FISCAL YEAR 2010,"","","",05­07   CB    FXF100506a            DO
,OFFICE OF THE MAJORITY WHIP,2010Q2,"RENT, COMMUNICATION, UTILITIES","",05­21   CB    FXF100520a            DO,05/06/10,05/06/10,POSTAGE/COURIER/BOX RENTAL,6.00,FISCAL YEAR 2010,"","","",05­21   CB    FXF100520a            DO
,OFFICE OF THE MAJORITY WHIP,2010Q2,"RENT, COMMUNICATION, UTILITIES","",05­27   CB    FXF100526B            DO,05/13/10,05/13/10,POSTAGE/COURIER/BOX RENTAL,10.10,FISCAL YEAR 2010,"","","",05­27   CB    FXF100526B            DO
,OFFICE OF THE MAJORITY WHIP,2010Q2,"RENT, COMMUNICATION, UTILITIES","",06­01   P1    10MW0100181     RYAN DANIELS,04/23/10,04/23/10,"TELECOM SVC, EQUIP & TOLLS",57.74,FISCAL YEAR 2010,"","","",06­01   P1    10MW0100181     RYAN DANIELS
,OFFICE OF THE MAJORITY WHIP,2010Q2,"RENT, COMMUNICATION, UTILITIES","",06­04   CB    FXF100603a      FEDERAL EXPRESS CORP,05/24/10,05/24/10,POSTAGE/COURIER/BOX RENTAL,6.56,FISCAL YEAR 2010,"","","",06­04   CB    FXF100603a      FEDERAL EXPRESS CORP
,OFFICE OF THE MAJORITY WHIP,2010Q2,"RENT, COMMUNICATION, UTILITIES","",06­11   CB    FXF100610a            DO,05/28/10,05/28/10,POSTAGE/COURIER/BOX RENTAL,16.67,FISCAL YEAR 2010,"","","",06­11   CB    FXF100610a            DO
,OFFICE OF THE MAJORITY WHIP,2010Q2,"RENT, COMMUNICATION, UTILITIES","",06­25   CB    FXF100624a            DO,06/09/10,06/09/10,POSTAGE/COURIER/BOX RENTAL,6.11,FISCAL YEAR 2010,"","","",06­25   CB    FXF100624a            DO
,OFFICE OF THE MAJORITY WHIP,2010Q2,PRINTING AND REPRODUCTION,"",04­23   S3    10113000102,04/01/10,04/30/10,PHOTOGRAPHIC (TRANSFER),27.90,FISCAL YEAR 2010,"","","",04­23   S3    10113000102
,OFFICE OF THE MAJORITY WHIP,2010Q2,PRINTING AND REPRODUCTION,"",05­25   S3    10145000132,05/01/10,05/31/10,PHOTOGRAPHIC (TRANSFER),18.20,FISCAL YEAR 2010,"","","",05­25   S3    10145000132
,OFFICE OF THE MAJORITY WHIP,2010Q2,PRINTING AND REPRODUCTION,"","06­01   P1    10MW0100184      DAVID L. ANDRUKITUS, INC",04/29/10,04/29/10,PRINTING AND REPRODUCTION,127.50,FISCAL YEAR 2010,"","","","06­01   P1    10MW0100184      DAVID L. ANDRUKITUS, INC"
,OFFICE OF THE MAJORITY WHIP,2010Q2,PRINTING AND REPRODUCTION,"",06­01   P1    10MW0100185               DO,04/22/10,04/22/10,PRINTING AND REPRODUCTION,107.50,FISCAL YEAR 2010,"","","",06­01   P1    10MW0100185               DO
,OFFICE OF THE MAJORITY WHIP,2010Q2,PRINTING AND REPRODUCTION,"",06­03 P1 10MW0100191                   DO,03/23/10,03/23/10,PRINTING AND REPRODUCTION,107.50,FISCAL YEAR 2010,"","","",06­03 P1 10MW0100191                   DO
,OFFICE OF THE MAJORITY WHIP,2010Q2,PRINTING AND REPRODUCTION,"",06­25 S3 10176000124,06/01/10,06/30/10,PHOTOGRAPHIC (TRANSFER),27.90,FISCAL YEAR 2010,"","","",06­25 S3 10176000124
,OFFICE OF THE MAJORITY WHIP,2010Q2,OTHER SERVICES,"",04­09       P1     10MW0100150                CAPITOL VALET,03/18/10,03/18/10,LAUNDRY SERVICE,31.80,FISCAL YEAR 2010,"","","",04­09       P1     10MW0100150                CAPITOL VALET
,OFFICE OF THE MAJORITY WHIP,2010Q2,OTHER SERVICES,"",04­09       P1     10MW0100151                     DO,03/23/10,03/23/10,LAUNDRY SERVICE,127.20,FISCAL YEAR 2010,"","","",04­09       P1     10MW0100151                     DO
,OFFICE OF THE MAJORITY WHIP,2010Q2,OTHER SERVICES,"",04­20       P7     20100420                   FIRESIDE21,03/01/10,03/31/10,"WEB DEV,HOSTNG,EMAIL & REL SVC",585.00,FISCAL YEAR 2010,"","","",04­20       P7     20100420                   FIRESIDE21
,OFFICE OF THE MAJORITY WHIP,2010Q2,OTHER SERVICES,"",04­28       P1     10MW0100157                CAPITOL VALET,04/09/10,04/09/10,LAUNDRY SERVICE,55.39,FISCAL YEAR 2010,"","","",04­28       P1     10MW0100157                CAPITOL VALET
,OFFICE OF THE MAJORITY WHIP,2010Q2,OTHER SERVICES,"",04­28       P1     10MW0100158                     DO,03/25/10,03/25/10,LAUNDRY SERVICE,47.70,FISCAL YEAR 2010,"","","",04­28       P1     10MW0100158                     DO
,OFFICE OF THE MAJORITY WHIP,2010Q2,OTHER SERVICES,"",04­28       P1     10MW0100159                     DO,04/16/10,04/16/10,LAUNDRY SERVICE,47.70,FISCAL YEAR 2010,"","","",04­28       P1     10MW0100159                     DO
,OFFICE OF THE MAJORITY WHIP,2010Q2,OTHER SERVICES,"",05­06       P7     20100506                   FIRESIDE21,04/01/10,04/30/10,"WEB DEV,HOSTNG,EMAIL & REL SVC",585.00,FISCAL YEAR 2010,"","","",05­06       P7     20100506                   FIRESIDE21
,OFFICE OF THE MAJORITY WHIP,2010Q2,OTHER SERVICES,"",05­19       P1     10MW0100176                CAPITOL VALET,04/23/10,04/23/10,LAUNDRY SERVICE,47.70,FISCAL YEAR 2010,"","","",05­19       P1     10MW0100176                CAPITOL VALET
,OFFICE OF THE MAJORITY WHIP,2010Q2,OTHER SERVICES,"",06­03       P1     10MW0100187                     DO,05/11/10,05/11/10,LAUNDRY SERVICE,47.70,FISCAL YEAR 2010,"","","",06­03       P1     10MW0100187                     DO
,OFFICE OF THE MAJORITY WHIP,2010Q2,OTHER SERVICES,"",06­14       P7     20100614                   FIRESIDE21,05/01/10,05/31/10,"WEB DEV,HOSTNG,EMAIL & REL SVC",585.00,FISCAL YEAR 2010,"","","",06­14       P7     20100614                   FIRESIDE21
,OFFICE OF THE MAJORITY WHIP,2010Q2,OTHER SERVICES,"",06­16       P1     10MW0100204                CAPITOL VALET,05/28/10,05/28/10,LAUNDRY SERVICE,63.60,FISCAL YEAR 2010,"","","",06­16       P1     10MW0100204                CAPITOL VALET
,OFFICE OF THE MAJORITY WHIP,2010Q2,OTHER SERVICES,"",06­16       P1     10MW0100205                     DO,05/20/10,05/20/10,LAUNDRY SERVICE,47.70,FISCAL YEAR 2010,"","","",06­16       P1     10MW0100205                     DO
,OFFICE OF THE MAJORITY WHIP,2010Q2,SUPPLIES AND MATERIALS,"",04­01       P1     10MW0100139      MEIWAH RESTAURANT,03/20/10,03/20/10,FOOD & BEVERAGE,"1,983.10",FISCAL YEAR 2010,"","","",04­01       P1     10MW0100139      MEIWAH RESTAURANT
,OFFICE OF THE MAJORITY WHIP,2010Q2,SUPPLIES AND MATERIALS,"",04­01       P1     10MW0100138      SARAH LYNN BIRCH,03/21/10,03/21/10,FOOD & BEVERAGE,"3,432.38",FISCAL YEAR 2010,"","","",04­01       P1     10MW0100138      SARAH LYNN BIRCH
,OFFICE OF THE MAJORITY WHIP,2010Q2,SUPPLIES AND MATERIALS,"",04­01       P1     10MW0100140           DO,03/22/10,03/22/10,FOOD & BEVERAGE,294.80,FISCAL YEAR 2010,"","","",04­01       P1     10MW0100140           DO
,OFFICE OF THE MAJORITY WHIP,2010Q2,SUPPLIES AND MATERIALS,"","04­02       P1     10MW0100142      BETTY CRUDUP, CATERER",03/18/10,03/18/10,FOOD & BEVERAGE,900.00,FISCAL YEAR 2010,"","","","04­02       P1     10MW0100142      BETTY CRUDUP, CATERER"
,OFFICE OF THE MAJORITY WHIP,2010Q2,SUPPLIES AND MATERIALS,"",04­02       P1     10MW0100141      CHANTILLY DONUTS,03/18/10,03/18/10,FOOD & BEVERAGE,37.00,FISCAL YEAR 2010,"","","",04­02       P1     10MW0100141      CHANTILLY DONUTS
,OFFICE OF THE MAJORITY WHIP,2010Q2,SUPPLIES AND MATERIALS,"",04­02       P1     10MW0100145      SARAH LYNN BIRCH,03/19/10,03/22/10,FOOD & BEVERAGE,454.15,FISCAL YEAR 2010,"","","",04­02       P1     10MW0100145      SARAH LYNN BIRCH
,OFFICE OF THE MAJORITY WHIP,2010Q2,SUPPLIES AND MATERIALS,"","04­08       P1     10MW0100154      BETTY CRUDUP, CATERER",03/25/10,03/25/10,FOOD & BEVERAGE,900.00,FISCAL YEAR 2010,"","","","04­08       P1     10MW0100154      BETTY CRUDUP, CATERER"
,OFFICE OF THE MAJORITY WHIP,2010Q2,SUPPLIES AND MATERIALS,"",04­08       P1     10MW0100152      CHANTILLY DONUTS,03/25/10,03/25/10,FOOD & BEVERAGE,37.00,FISCAL YEAR 2010,"","","",04­08       P1     10MW0100152      CHANTILLY DONUTS
,OFFICE OF THE MAJORITY WHIP,2010Q2,SUPPLIES AND MATERIALS,"",04­08       P1     10MW0100153      SARAH LYNN BIRCH,03/25/10,03/25/10,FOOD & BEVERAGE,"2,036.74",FISCAL YEAR 2010,"","","",04­08       P1     10MW0100153      SARAH LYNN BIRCH
,OFFICE OF THE MAJORITY WHIP,2010Q2,SUPPLIES AND MATERIALS,"",04­08       P1     10MW0100156           DO,03/24/10,03/26/10,FOOD & BEVERAGE,253.36,FISCAL YEAR 2010,"","","",04­08       P1     10MW0100156           DO
,OFFICE OF THE MAJORITY WHIP,2010Q2,SUPPLIES AND MATERIALS,"","04­28       P1     10MW0100161      BETTY CRUDUP, CATERER",04/22/10,04/22/10,FOOD & BEVERAGE,900.00,FISCAL YEAR 2010,"","","","04­28       P1     10MW0100161      BETTY CRUDUP, CATERER"
,OFFICE OF THE MAJORITY WHIP,2010Q2,SUPPLIES AND MATERIALS,"",04­28       P1     10MW0100169           DO,04/15/10,04/15/10,FOOD & BEVERAGE,900.00,FISCAL YEAR 2010,"","","",04­28       P1     10MW0100169           DO
,OFFICE OF THE MAJORITY WHIP,2010Q2,SUPPLIES AND MATERIALS,"",04­28       P1     10MW0100162      CHANTILLY DONUTS,03/25/10,04/22/10,FOOD & BEVERAGE,37.00,FISCAL YEAR 2010,"","","",04­28       P1     10MW0100162      CHANTILLY DONUTS
,OFFICE OF THE MAJORITY WHIP,2010Q2,SUPPLIES AND MATERIALS,"",04­28       P1     10MW0100163           DO,04/15/10,04/15/10,FOOD & BEVERAGE,37.00,FISCAL YEAR 2010,"","","",04­28       P1     10MW0100163           DO
,OFFICE OF THE MAJORITY WHIP,2010Q2,SUPPLIES AND MATERIALS,"",04­28       P1     10MW0100164           DO,04/22/10,04/22/10,FOOD & BEVERAGE,37.00,FISCAL YEAR 2010,"","","",04­28       P1     10MW0100164           DO
,OFFICE OF THE MAJORITY WHIP,2010Q2,SUPPLIES AND MATERIALS,"",04­28       P1     10MW0100168      COCA-COLA ENTERPRISES,03/30/10,03/30/10,FOOD & BEVERAGE,259.42,FISCAL YEAR 2010,"","","",04­28       P1     10MW0100168      COCA-COLA ENTERPRISES
,OFFICE OF THE MAJORITY WHIP,2010Q2,SUPPLIES AND MATERIALS,"",04­28       P1     10MW0100160      NEWS POWER ONLINE,04/04/10,04/04/10,PUBLICATION REF MATERIAL,230.00,FISCAL YEAR 2010,"","","",04­28       P1     10MW0100160      NEWS POWER ONLINE
,OFFICE OF THE MAJORITY WHIP,2010Q2,SUPPLIES AND MATERIALS,"",04­28       P1     10MW0100166      SARAH LYNN BIRCH,03/31/10,04/21/10,FOOD & BEVERAGE,64.97,FISCAL YEAR 2010,"","","",04­28       P1     10MW0100166      SARAH LYNN BIRCH
,OFFICE OF THE MAJORITY WHIP,2010Q2,SUPPLIES AND MATERIALS,"",04­28       P1     10MW0100167      WENDY ANNE HARTMAN,03/20/10,04/06/10,FOOD & BEVERAGE,469.75,FISCAL YEAR 2010,"","","",04­28       P1     10MW0100167      WENDY ANNE HARTMAN
,OFFICE OF THE MAJORITY WHIP,2010Q2,SUPPLIES AND MATERIALS,"","05­19       P1     10MW0100170      BETTY CRUDUP, CATERER",05/06/10,05/06/10,FOOD & BEVERAGE,900.00,FISCAL YEAR 2010,"","","","05­19       P1     10MW0100170      BETTY CRUDUP, CATERER"
,OFFICE OF THE MAJORITY WHIP,2010Q2,SUPPLIES AND MATERIALS,"",05­19       P1     10MW0100171           DO,05/13/10,05/13/10,FOOD & BEVERAGE,900.00,FISCAL YEAR 2010,"","","",05­19       P1     10MW0100171           DO
,OFFICE OF THE MAJORITY WHIP,2010Q2,SUPPLIES AND MATERIALS,"",05­19       P1     10MW0100172      CHANTILLY DONUTS,05/13/10,05/13/10,FOOD & BEVERAGE,37.00,FISCAL YEAR 2010,"","","",05­19       P1     10MW0100172      CHANTILLY DONUTS
,OFFICE OF THE MAJORITY WHIP,2010Q2,SUPPLIES AND MATERIALS,"",05­19       P1     10MW0100173           DO,05/06/10,05/06/10,FOOD & BEVERAGE,37.00,FISCAL YEAR 2010,"","","",05­19       P1     10MW0100173           DO
,OFFICE OF THE MAJORITY WHIP,2010Q2,SUPPLIES AND MATERIALS,"",05­19       P1     10MW0100177      SARAH LYNN BIRCH,05/06/10,05/06/10,FOOD & BEVERAGE,25.94,FISCAL YEAR 2010,"","","",05­19       P1     10MW0100177      SARAH LYNN BIRCH
,OFFICE OF THE MAJORITY WHIP,2010Q2,SUPPLIES AND MATERIALS,"",05­20       P1     10MW0100174      NEWS POWER ONLINE,04/01/10,04/30/10,PUBLICATION REF MATERIAL,230.00,FISCAL YEAR 2010,"","","",05­20       P1     10MW0100174      NEWS POWER ONLINE
,OFFICE OF THE MAJORITY WHIP,2010Q2,SUPPLIES AND MATERIALS,"","06­01   P1    10MW0100186               BETTY CRUDUP, CATERER",05/20/10,05/20/10,FOOD & BEVERAGE,900.00,FISCAL YEAR 2010,"","","","06­01   P1    10MW0100186               BETTY CRUDUP, CATERER"
,OFFICE OF THE MAJORITY WHIP,2010Q2,SUPPLIES AND MATERIALS,"",06­01   P1    10MW0100178               CHANTILLY DONUTS,05/20/10,05/20/10,FOOD & BEVERAGE,37.00,FISCAL YEAR 2010,"","","",06­01   P1    10MW0100178               CHANTILLY DONUTS
,OFFICE OF THE MAJORITY WHIP,2010Q2,SUPPLIES AND MATERIALS,"",06­01   P1    10MW0100182               COCA-COLA ENTERPRISES,03/16/10,03/16/10,FOOD & BEVERAGE,454.33,FISCAL YEAR 2010,"","","",06­01   P1    10MW0100182               COCA-COLA ENTERPRISES
,OFFICE OF THE MAJORITY WHIP,2010Q2,SUPPLIES AND MATERIALS,"",06­01   P1    10MW0100183               TV EYES INC,05/15/10,05/15/11,PUBLICATION REF MATERIAL,"1,200.00",FISCAL YEAR 2010,"","","",06­01   P1    10MW0100183               TV EYES INC
,OFFICE OF THE MAJORITY WHIP,2010Q2,SUPPLIES AND MATERIALS,"",06­03   P1    10MW0100188               KELLY A SHERIDAN,05/17/10,05/17/10,FOOD & BEVERAGE,25.98,FISCAL YEAR 2010,"","","",06­03   P1    10MW0100188               KELLY A SHERIDAN
,OFFICE OF THE MAJORITY WHIP,2010Q2,SUPPLIES AND MATERIALS,"",06­03   P1    10MW0100189               SARAH LYNN BIRCH,05/19/10,05/19/10,FOOD & BEVERAGE,346.60,FISCAL YEAR 2010,"","","",06­03   P1    10MW0100189               SARAH LYNN BIRCH
,OFFICE OF THE MAJORITY WHIP,2010Q2,SUPPLIES AND MATERIALS,"",06­03   P1    10MW0100190               WENDY ANNE HARTMAN,04/19/10,05/12/10,FOOD & BEVERAGE,518.66,FISCAL YEAR 2010,"","","",06­03   P1    10MW0100190               WENDY ANNE HARTMAN
,OFFICE OF THE MAJORITY WHIP,2010Q2,SUPPLIES AND MATERIALS,"",06­15   P1    10MW0100193               COCA-COLA ENTERPRISES,04/20/10,04/20/10,FOOD & BEVERAGE,125.28,FISCAL YEAR 2010,"","","",06­15   P1    10MW0100193               COCA-COLA ENTERPRISES
,OFFICE OF THE MAJORITY WHIP,2010Q2,SUPPLIES AND MATERIALS,"",06­15   P1    10MW0100195                    DO,04/29/10,04/29/10,FOOD & BEVERAGE,602.54,FISCAL YEAR 2010,"","","",06­15   P1    10MW0100195                    DO
,OFFICE OF THE MAJORITY WHIP,2010Q2,SUPPLIES AND MATERIALS,"",06­15   P1    10MW0100196                    DO,05/25/10,05/25/10,FOOD & BEVERAGE,216.48,FISCAL YEAR 2010,"","","",06­15   P1    10MW0100196                    DO
,OFFICE OF THE MAJORITY WHIP,2010Q2,SUPPLIES AND MATERIALS,"",06­15   P1    10MW0100192               MATTHEW GRINNEY,06/07/10,06/07/10,FOOD & BEVERAGE,32.87,FISCAL YEAR 2010,"","","",06­15   P1    10MW0100192               MATTHEW GRINNEY
,OFFICE OF THE MAJORITY WHIP,2010Q2,SUPPLIES AND MATERIALS,"",06­15   P1    10MW0100194               SARAH LYNN BIRCH,06/02/10,06/02/10,FOOD & BEVERAGE,200.00,FISCAL YEAR 2010,"","","",06­15   P1    10MW0100194               SARAH LYNN BIRCH
,OFFICE OF THE MAJORITY WHIP,2010Q2,SUPPLIES AND MATERIALS,"","06­16   P1    10MW0100198               BETTY CRUDUP, CATERER",05/27/10,05/27/10,FOOD & BEVERAGE,900.00,FISCAL YEAR 2010,"","","","06­16   P1    10MW0100198               BETTY CRUDUP, CATERER"
,OFFICE OF THE MAJORITY WHIP,2010Q2,SUPPLIES AND MATERIALS,"",06­16   P1    10MW0100197               CHANTILLY DONUTS,05/27/10,05/27/10,FOOD & BEVERAGE,37.00,FISCAL YEAR 2010,"","","",06­16   P1    10MW0100197               CHANTILLY DONUTS
,OFFICE OF THE MAJORITY WHIP,2010Q2,SUPPLIES AND MATERIALS,"",06­16   P1    10MW0100200               CONGRESS DAILY,07/05/10,07/04/11,PUBLICATION REF MATERIAL,"2,097.00",FISCAL YEAR 2010,"","","",06­16   P1    10MW0100200               CONGRESS DAILY
,OFFICE OF THE MAJORITY WHIP,2010Q2,SUPPLIES AND MATERIALS,"",06­16   P1    10MW0100203               NEWS POWER ONLINE,06/03/10,06/30/10,PUBLICATION REF MATERIAL,230.00,FISCAL YEAR 2010,"","","",06­16   P1    10MW0100203               NEWS POWER ONLINE
,OFFICE OF THE MAJORITY WHIP,2010Q2,SUPPLIES AND MATERIALS,"",06­16   P1    10MW0100199               SARAH LYNN BIRCH,05/26/10,05/27/10,FOOD & BEVERAGE,"1,910.15",FISCAL YEAR 2010,"","","",06­16   P1    10MW0100199               SARAH LYNN BIRCH
,OFFICE OF THE MAJORITY WHIP,2010Q2,SUPPLIES AND MATERIALS,"",06­16   P1    10MW0100201               WENDY ANNE HARTMAN,05/24/10,05/26/10,FOOD & BEVERAGE,231.76,FISCAL YEAR 2010,"","","",06­16   P1    10MW0100201               WENDY ANNE HARTMAN
,OFFICE OF THE MAJORITY WHIP,2010Q2,SUPPLIES AND MATERIALS,"",06­29   P1    10MW01RW188                    DO,05/17/10,05/17/10,FOOD & BEVERAGE,25.98,FISCAL YEAR 2010,"","","",06­29   P1    10MW01RW188                    DO
,OFFICE OF THE MINORITY WHIP,2010Q2,PERSONNEL COMPENSATION,"","MURRAY,JOHN A",04/01/10,06/30/10,COMMUNICATIONS DIRECTOR,"42,824.34",FISCAL YEAR 2010,"","","","MURRAY,JOHN A"
,OFFICE OF THE MINORITY WHIP,2010Q2,PERSONNEL COMPENSATION,"","STOMBRES, STEVEN C",04/01/10,06/30/10,CHIEF OF STAFF,"42,974.67",FISCAL YEAR 2010,"","","","STOMBRES, STEVEN C"
,OFFICE OF THE MINORITY WHIP,2010Q2,PERSONNEL COMPENSATION,"","ANDRES,DOUGLAS R",04/01/10,06/30/10,DEPUTY COALITIONS DIRECTOR,"9,500.01",FISCAL YEAR 2010,"","","","ANDRES,DOUGLAS R"
,OFFICE OF THE MINORITY WHIP,2010Q2,PERSONNEL COMPENSATION,"","BARNES,FREDERIC W",04/01/10,06/30/10,SPECIAL ASSISTANT,"8,250.00",FISCAL YEAR 2010,"","","","BARNES,FREDERIC W"
,OFFICE OF THE MINORITY WHIP,2010Q2,PERSONNEL COMPENSATION,"","BAUER, RACHEL C",04/01/10,04/04/10,DEPUTY PRESS SECRETARY,488.89,FISCAL YEAR 2010,"","","","BAUER, RACHEL C"
,OFFICE OF THE MINORITY WHIP,2010Q2,PERSONNEL COMPENSATION,"","BRAVO, MATTHEW",04/01/10,06/30/10,FLOOR ASSISTANT/SPECIAL ASSIST,"10,500.00",FISCAL YEAR 2010,"","","","BRAVO, MATTHEW"
,OFFICE OF THE MINORITY WHIP,2010Q2,PERSONNEL COMPENSATION,"","CULLEN,RICHARD T",04/01/10,06/30/10,STAFF ASSISTANT,"9,666.66",FISCAL YEAR 2010,"","","","CULLEN,RICHARD T"
,OFFICE OF THE MINORITY WHIP,2010Q2,PERSONNEL COMPENSATION,"","DAYSPRING, BRADFORD",04/01/10,06/30/10,PRESS SECRETARY,"15,000.00",FISCAL YEAR 2010,"","","","DAYSPRING, BRADFORD"
,OFFICE OF THE MINORITY WHIP,2010Q2,PERSONNEL COMPENSATION,"","FERENCE, MICHAEL J",04/01/10,06/30/10,POLICY ADVISOR,"7,500.00",FISCAL YEAR 2010,"","","","FERENCE, MICHAEL J"
,OFFICE OF THE MINORITY WHIP,2010Q2,PERSONNEL COMPENSATION,"","FREDERICKS, AUTUMN",04/01/10,06/30/10,SHARED EMPLOYEE,"3,000.00",FISCAL YEAR 2010,"","","","FREDERICKS, AUTUMN"
,OFFICE OF THE MINORITY WHIP,2010Q2,PERSONNEL COMPENSATION,"","GUSTAFSON,NICOLE M",04/01/10,06/30/10,POLICY ADVISOR & LEGIS. COUNS,"7,250.01",FISCAL YEAR 2010,"","","","GUSTAFSON,NICOLE M"
,OFFICE OF THE MINORITY WHIP,2010Q2,PERSONNEL COMPENSATION,"","HELM,KATHERINE D",04/01/10,06/30/10,STAFF ASSISTANT,"5,833.33",FISCAL YEAR 2010,"","","","HELM,KATHERINE D"
,OFFICE OF THE MINORITY WHIP,2010Q2,PERSONNEL COMPENSATION,"","JAEGER, CHERYL L",04/01/10,06/30/10,SR POLICY ADVISOR FOR DEFENSE,"7,500.00",FISCAL YEAR 2010,"","","","JAEGER, CHERYL L"
,OFFICE OF THE MINORITY WHIP,2010Q2,PERSONNEL COMPENSATION,"","JOHNSTON,STEVEN",04/01/10,06/30/10,ASSOCIATE DIR OF NEW MEDIA,"9,999.99",FISCAL YEAR 2010,"","","","JOHNSTON,STEVEN"
,OFFICE OF THE MINORITY WHIP,2010Q2,PERSONNEL COMPENSATION,"","LIRA,MATHEW L",04/01/10,06/30/10,DIRECTOR OF NEW MEDIA,"22,500.00",FISCAL YEAR 2010,"","","","LIRA,MATHEW L"
,OFFICE OF THE MINORITY WHIP,2010Q2,PERSONNEL COMPENSATION,"","LONG,MICHAEL P",04/01/10,06/30/10,INTERN,"4,500.00",FISCAL YEAR 2010,"","","","LONG,MICHAEL P"
,OFFICE OF THE MINORITY WHIP,2010Q2,PERSONNEL COMPENSATION,"","MIN, JAMES B",04/01/10,06/30/10,SHARED EMPLOYEE,"17,499.99",FISCAL YEAR 2010,"","","","MIN, JAMES B"
,OFFICE OF THE MINORITY WHIP,2010Q2,PERSONNEL COMPENSATION,"","NEVINS, KYLE W",04/01/10,06/30/10,SHARED EMPLOYEE,948.75,FISCAL YEAR 2010,"","","","NEVINS, KYLE W"
,OFFICE OF THE MINORITY WHIP,2010Q2,PERSONNEL COMPENSATION,"","O'CONNOR, KATHLEEN",04/01/10,06/30/10,DEPUTY SCHEDULER,"11,499.99",FISCAL YEAR 2010,"","","","O'CONNOR, KATHLEEN"
,OFFICE OF THE MINORITY WHIP,2010Q2,PERSONNEL COMPENSATION,"","PATRICK,BRIAN C",04/01/10,06/30/10,STRATEGIC COMMUNICATIONS,"15,000.00",FISCAL YEAR 2010,"","","","PATRICK,BRIAN C"
,OFFICE OF THE MINORITY WHIP,2010Q2,PERSONNEL COMPENSATION,"","ROBINSON,SARAH",04/01/10,06/30/10,DEPUTY DIRECTOR OF COALITIONS,"8,000.01",FISCAL YEAR 2010,"","","","ROBINSON,SARAH"
,OFFICE OF THE MINORITY WHIP,2010Q2,PERSONNEL COMPENSATION,"","SILVERMAN,DAVID J",04/01/10,06/30/10,SPEECHWRITER,"12,500.01",FISCAL YEAR 2010,"","","","SILVERMAN,DAVID J"
,OFFICE OF THE MINORITY WHIP,2010Q2,PERSONNEL COMPENSATION,"","STEIN, SHIMON",04/01/10,06/30/10,POLICY ADVISOR,"26,000.01",FISCAL YEAR 2010,"","","","STEIN, SHIMON"
,OFFICE OF THE MINORITY WHIP,2010Q2,PERSONNEL COMPENSATION,"","STEVENS,AMANDA D",04/01/10,06/30/10,STAFF ASSISTANT,"5,499.99",FISCAL YEAR 2010,"","","","STEVENS,AMANDA D"
,OFFICE OF THE MINORITY WHIP,2010Q2,PERSONNEL COMPENSATION,"","STIPICEVIC, JOHN A",04/01/10,06/30/10,FLOOR ASSISTANT,"12,500.01",FISCAL YEAR 2010,"","","","STIPICEVIC, JOHN A"
,OFFICE OF THE MINORITY WHIP,2010Q2,PERSONNEL COMPENSATION,"","TUELL,JAMES A",05/01/10,06/30/10,SPECIAL ASSISTANT,"5,000.00",FISCAL YEAR 2010,"","","","TUELL,JAMES A"
,OFFICE OF THE MINORITY WHIP,2010Q2,PERSONNEL COMPENSATION,"","TUELL,JAMES A",04/01/10,04/30/10,STAFF ASSISTANT,"2,416.67",FISCAL YEAR 2010,"","","",DO
,OFFICE OF THE MINORITY WHIP,2010Q2,PERSONNEL COMPENSATION,"","VIESON, CHRISTOPHER W",04/01/10,06/30/10,FLOOR ASSISTANT,"15,000.00",FISCAL YEAR 2010,"","","","VIESON, CHRISTOPHER W"
,OFFICE OF THE MINORITY WHIP,2010Q2,PERSONNEL COMPENSATION,"","WILLIAMS, KELLY K",04/01/10,06/30/10,FINANCIAL ADMINISTRATOR,"3,500.01",FISCAL YEAR 2010,"","","","WILLIAMS, KELLY K"
,OFFICE OF THE MINORITY WHIP,2010Q2,TRAVEL,"",04­01       P1 10NW0100192      KYLE WILLIAM NEVINS,01/15/10,01/15/10,"TAXI, PARKING, TOLLS",8.00,FISCAL YEAR 2010,"","","",04­01       P1 10NW0100192      KYLE WILLIAM NEVINS
,OFFICE OF THE MINORITY WHIP,2010Q2,TRAVEL,"",04­05       P1 10NW0100206      JOHN A MURRAY,03/14/10,03/15/10,LODGING,294.63,FISCAL YEAR 2010,"","","",04­05       P1 10NW0100206      JOHN A MURRAY
,OFFICE OF THE MINORITY WHIP,2010Q2,TRAVEL,"",04­05       P1 10NW0100207           DO,03/14/10,03/15/10,COMMERCIAL TRANSPORTATION,419.40,FISCAL YEAR 2010,"","","",04­05       P1 10NW0100207           DO
,OFFICE OF THE MINORITY WHIP,2010Q2,TRAVEL,"",04­05       P1 10NW0100208           DO,03/05/10,03/15/10,MEALS,83.18,FISCAL YEAR 2010,"","","",04­05       P1 10NW0100208           DO
,OFFICE OF THE MINORITY WHIP,2010Q2,TRAVEL,"",04­05       P1 10NW0100209           DO,03/14/10,03/15/10,"TAXI, PARKING, TOLLS",97.24,FISCAL YEAR 2010,"","","",04­05       P1 10NW0100209           DO
,OFFICE OF THE MINORITY WHIP,2010Q2,TRAVEL,"",04­05       P1 10NW0100204      SHIMON STEIN,03/22/10,03/22/10,"TAXI, PARKING, TOLLS",12.00,FISCAL YEAR 2010,"","","",04­05       P1 10NW0100204      SHIMON STEIN
,OFFICE OF THE MINORITY WHIP,2010Q2,TRAVEL,"",04­23       P1 10NW0100210      MICHAEL J. FERENCE,03/30/10,04/07/10,COMMERCIAL TRANSPORTATION,637.40,FISCAL YEAR 2010,"","","",04­23       P1 10NW0100210      MICHAEL J. FERENCE
,OFFICE OF THE MINORITY WHIP,2010Q2,TRAVEL,"",04­23       P1 10NW0100211           DO,03/30/10,03/30/10,MEALS,11.50,FISCAL YEAR 2010,"","","",04­23       P1 10NW0100211           DO
,OFFICE OF THE MINORITY WHIP,2010Q2,TRAVEL,"",04­23       P1 10NW0100212           DO,03/30/10,03/31/10,"TAXI, PARKING, TOLLS",98.96,FISCAL YEAR 2010,"","","",04­23       P1 10NW0100212           DO
,OFFICE OF THE MINORITY WHIP,2010Q2,TRAVEL,"",04­23       P1 10NW0100213           DO,03/30/10,03/31/10,LODGING,303.73,FISCAL YEAR 2010,"","","",04­23       P1 10NW0100213           DO
,OFFICE OF THE MINORITY WHIP,2010Q2,TRAVEL,"",04­23       P1 10NW0100214      SARAH ROBINSON,03/07/10,03/25/10,"TAXI, PARKING, TOLLS",43.35,FISCAL YEAR 2010,"","","",04­23       P1 10NW0100214      SARAH ROBINSON
,OFFICE OF THE MINORITY WHIP,2010Q2,TRAVEL,"",05­07       P1 10NW0100229      JOHN A MURRAY,04/20/10,04/20/10,"TAXI, PARKING, TOLLS",30.00,FISCAL YEAR 2010,"","","",05­07       P1 10NW0100229      JOHN A MURRAY
,OFFICE OF THE MINORITY WHIP,2010Q2,TRAVEL,"",05­07       P1 10NW0100226      MICHAEL J. FERENCE,04/07/10,04/10/10,LODGING,950.96,FISCAL YEAR 2010,"","","",05­07       P1 10NW0100226      MICHAEL J. FERENCE
,OFFICE OF THE MINORITY WHIP,2010Q2,TRAVEL,"",05­07   P1    10NW0100227                       DO,04/07/10,04/09/10,"TAXI, PARKING, TOLLS",189.94,FISCAL YEAR 2010,"","","",05­07   P1    10NW0100227                       DO
,OFFICE OF THE MINORITY WHIP,2010Q2,TRAVEL,"",05­07   P1    10NW0100231                  STEVEN JOHNSTON,04/19/10,04/19/10,"TAXI, PARKING, TOLLS",26.00,FISCAL YEAR 2010,"","","",05­07   P1    10NW0100231                  STEVEN JOHNSTON
,OFFICE OF THE MINORITY WHIP,2010Q2,TRAVEL,"",05­21   P1    10NW0100247                  DAVID SILVERMAN,05/04/10,05/04/10,"TAXI, PARKING, TOLLS",15.00,FISCAL YEAR 2010,"","","",05­21   P1    10NW0100247                  DAVID SILVERMAN
,OFFICE OF THE MINORITY WHIP,2010Q2,TRAVEL,"",05­21   P1    10NW0100240                  JAMES TUELL,03/04/10,05/03/10,PRIVATE OWNED VEHICLE MILEAGE,31.50,FISCAL YEAR 2010,"","","",05­21   P1    10NW0100240                  JAMES TUELL
,OFFICE OF THE MINORITY WHIP,2010Q2,TRAVEL,"",05­21   P1    10NW0100245                       DO,04/29/10,05/11/10,"TAXI, PARKING, TOLLS",40.00,FISCAL YEAR 2010,"","","",05­21   P1    10NW0100245                       DO
,OFFICE OF THE MINORITY WHIP,2010Q2,TRAVEL,"",05­21   P1    10NW0100238                  NICOLE M GUSTAFSON,01/19/10,05/06/10,"TAXI, PARKING, TOLLS",113.00,FISCAL YEAR 2010,"","","",05­21   P1    10NW0100238                  NICOLE M GUSTAFSON
,OFFICE OF THE MINORITY WHIP,2010Q2,TRAVEL,"",06­02   P1    10NW0100257                  ARCHITECT OF THE CAPITOL,01/13/10,03/23/10,DETAILEE TRAVEL,659.16,FISCAL YEAR 2010,"","","",06­02   P1    10NW0100257                  ARCHITECT OF THE CAPITOL
,OFFICE OF THE MINORITY WHIP,2010Q2,TRAVEL,"",06­02   P1    10NW0100258                  JAMES TUELL,05/20/10,05/20/10,"TAXI, PARKING, TOLLS",11.00,FISCAL YEAR 2010,"","","",06­02   P1    10NW0100258                  JAMES TUELL
,OFFICE OF THE MINORITY WHIP,2010Q2,TRAVEL,"",06­02   P1    10NW0100260                  MICHAEL J. FERENCE,05/10/10,05/10/10,COMMERCIAL TRANSPORTATION,366.00,FISCAL YEAR 2010,"","","",06­02   P1    10NW0100260                  MICHAEL J. FERENCE
,OFFICE OF THE MINORITY WHIP,2010Q2,TRAVEL,"",06­02   P1    10NW0100261                       DO,05/10/10,05/10/10,"TAXI, PARKING, TOLLS",42.64,FISCAL YEAR 2010,"","","",06­02   P1    10NW0100261                       DO
,OFFICE OF THE MINORITY WHIP,2010Q2,TRAVEL,"",06­02   P1    10NW0100262                       DO,05/10/10,05/10/10,MEALS,64.50,FISCAL YEAR 2010,"","","",06­02   P1    10NW0100262                       DO
,OFFICE OF THE MINORITY WHIP,2010Q2,TRAVEL,"",06­02   P1    10NW0100259                  SARAH ROBINSON,03/03/10,05/10/10,"TAXI, PARKING, TOLLS",52.00,FISCAL YEAR 2010,"","","",06­02   P1    10NW0100259                  SARAH ROBINSON
,OFFICE OF THE MINORITY WHIP,2010Q2,TRAVEL,"",06­21   P1    10NW0100285                  JOHN A MURRAY,05/25/10,05/26/10,TRAVEL REIMBURSEMENT,"1,096.31",FISCAL YEAR 2010,"","","",06­21   P1    10NW0100285                  JOHN A MURRAY
,OFFICE OF THE MINORITY WHIP,2010Q2,TRAVEL,"",06­21   P1    10NW0100275                  MATHEW L LIRA,06/02/10,06/06/10,COMMERCIAL TRANSPORTATION,540.00,FISCAL YEAR 2010,"","","",06­21   P1    10NW0100275                  MATHEW L LIRA
,OFFICE OF THE MINORITY WHIP,2010Q2,"RENT, COMMUNICATION, UTILITIES","",04­01   P1 10NW0100186     CAPITOL PROMPTING SERVICE INC,03/10/10,03/10/10,EQUIPMENT RENTAL,550.00,FISCAL YEAR 2010,"","","",04­01   P1 10NW0100186     CAPITOL PROMPTING SERVICE INC
,OFFICE OF THE MINORITY WHIP,2010Q2,"RENT, COMMUNICATION, UTILITIES","",04­09   CB FXF100408B      FEDERAL EXPRESS CORP,03/30/10,03/30/10,POSTAGE/COURIER/BOX RENTAL,5.43,FISCAL YEAR 2010,"","","",04­09   CB FXF100408B      FEDERAL EXPRESS CORP
,OFFICE OF THE MINORITY WHIP,2010Q2,"RENT, COMMUNICATION, UTILITIES","",06­25   CB FXF100624a            DO,06/10/10,06/10/10,POSTAGE/COURIER/BOX RENTAL,6.78,FISCAL YEAR 2010,"","","",06­25   CB FXF100624a            DO
,OFFICE OF THE MINORITY WHIP,2010Q2,PRINTING AND REPRODUCTION,"","04­01   P1    10NW0100191      DAVID L. ANDRUKITUS, INC",12/09/09,12/09/09,PRINTING AND REPRODUCTION,127.50,FISCAL YEAR 2010,"","","","04­01   P1    10NW0100191      DAVID L. ANDRUKITUS, INC"
,OFFICE OF THE MINORITY WHIP,2010Q2,PRINTING AND REPRODUCTION,"",04­19   P1    10NW0100219               DO,02/22/10,02/22/10,PRINTING AND REPRODUCTION,127.50,FISCAL YEAR 2010,"","","",04­19   P1    10NW0100219               DO
,OFFICE OF THE MINORITY WHIP,2010Q2,PRINTING AND REPRODUCTION,"",04­23   S3    10113000119,04/01/10,04/30/10,PHOTOGRAPHIC (TRANSFER),3.20,FISCAL YEAR 2010,"","","",04­23   S3    10113000119
,OFFICE OF THE MINORITY WHIP,2010Q2,PRINTING AND REPRODUCTION,"",05­25   S3    10145000154,05/01/10,05/31/10,PHOTOGRAPHIC (TRANSFER),31.00,FISCAL YEAR 2010,"","","",05­25   S3    10145000154
,OFFICE OF THE MINORITY WHIP,2010Q2,PRINTING AND REPRODUCTION,"",06­25   S3    10176000149,06/01/10,06/30/10,PHOTOGRAPHIC (TRANSFER),34.20,FISCAL YEAR 2010,"","","",06­25   S3    10176000149
,OFFICE OF THE MINORITY WHIP,2010Q2,OTHER SERVICES,"",06­21   P1 10NW0100274                     MATHEW L LIRA,06/02/10,06/06/10,TRAINING EXPENSES,990.00,FISCAL YEAR 2010,"","","",06­21   P1 10NW0100274                     MATHEW L LIRA
,OFFICE OF THE MINORITY WHIP,2010Q2,SUPPLIES AND MATERIALS,"",04­05   P1    10NW0100202      HIGHLAND ESTATES COFFEE,03/22/10,03/22/10,FOOD & BEVERAGE,456.20,FISCAL YEAR 2010,"","","",04­05   P1    10NW0100202      HIGHLAND ESTATES COFFEE
,OFFICE OF THE MINORITY WHIP,2010Q2,SUPPLIES AND MATERIALS,"",04­05   P1    10NW0100203           DO,03/25/10,03/25/10,FOOD & BEVERAGE,155.69,FISCAL YEAR 2010,"","","",04­05   P1    10NW0100203           DO
,OFFICE OF THE MINORITY WHIP,2010Q2,SUPPLIES AND MATERIALS,"",04­05   P1    10NW0100205      JAMES TUELL,03/24/10,03/24/10,FOOD & BEVERAGE,60.75,FISCAL YEAR 2010,"","","",04­05   P1    10NW0100205      JAMES TUELL
,OFFICE OF THE MINORITY WHIP,2010Q2,SUPPLIES AND MATERIALS,"",04­16   P1    10NW0100220      KELLY WILLIAMS,04/09/10,04/09/10,FOOD & BEVERAGE,705.96,FISCAL YEAR 2010,"","","",04­16   P1    10NW0100220      KELLY WILLIAMS
,OFFICE OF THE MINORITY WHIP,2010Q2,SUPPLIES AND MATERIALS,"",04­19   P1    10NW0100216      HIGHLAND ESTATES COFFEE,03/29/10,03/29/10,FOOD & BEVERAGE,55.65,FISCAL YEAR 2010,"","","",04­19   P1    10NW0100216      HIGHLAND ESTATES COFFEE
,OFFICE OF THE MINORITY WHIP,2010Q2,SUPPLIES AND MATERIALS,"","04­19   P1    10NW0100217      RAPLEAF, INC",02/17/10,02/17/10,PUBLICATION REF MATERIAL,"2,500.00",FISCAL YEAR 2010,"","","","04­19   P1    10NW0100217      RAPLEAF, INC"
,OFFICE OF THE MINORITY WHIP,2010Q2,SUPPLIES AND MATERIALS,"","04­19   P1    10NW0100218      ROLL CALL, INC",10/01/09,09/30/10,PUBLICATION REF MATERIAL,"33,640.00",FISCAL YEAR 2010,"","","","04­19   P1    10NW0100218      ROLL CALL, INC"
,OFFICE OF THE MINORITY WHIP,2010Q2,SUPPLIES AND MATERIALS,"","04­19   P1    10NW0100215      SHADOW TV, INC",04/01/10,04/30/10,PUBLICATION REF MATERIAL,"8,500.00",FISCAL YEAR 2010,"","","","04­19   P1    10NW0100215      SHADOW TV, INC"
,OFFICE OF THE MINORITY WHIP,2010Q2,SUPPLIES AND MATERIALS,"",04­23   P1    10NW0100221      CITIBANK GOV CARD SERVICE,02/25/10,03/25/10,FOOD & BEVERAGE,"13,637.44",FISCAL YEAR 2010,"","","",04­23   P1    10NW0100221      CITIBANK GOV CARD SERVICE
,OFFICE OF THE MINORITY WHIP,2010Q2,SUPPLIES AND MATERIALS,"",04­23   P1    10NW0100222           DO,02/27/10,03/24/10,PUBLICATION REF MATERIAL,613.93,FISCAL YEAR 2010,"","","",04­23   P1    10NW0100222           DO
,OFFICE OF THE MINORITY WHIP,2010Q2,SUPPLIES AND MATERIALS,"",05­07   P1    10NW0100230      AMANDA D STEVENS,04/15/10,04/29/10,FOOD & BEVERAGE,69.36,FISCAL YEAR 2010,"","","",05­07   P1    10NW0100230      AMANDA D STEVENS
,OFFICE OF THE MINORITY WHIP,2010Q2,SUPPLIES AND MATERIALS,"",05­07   P1    10NW0100234      HIGHLAND ESTATES COFFEE,04/19/10,04/19/10,FOOD & BEVERAGE,111.17,FISCAL YEAR 2010,"","","",05­07   P1    10NW0100234      HIGHLAND ESTATES COFFEE
,OFFICE OF THE MINORITY WHIP,2010Q2,SUPPLIES AND MATERIALS,"",05­07   P1    10NW0100228      LLESIANT,06/01/10,06/30/10,PUBLICATION REF MATERIAL,500.00,FISCAL YEAR 2010,"","","",05­07   P1    10NW0100228      LLESIANT
,OFFICE OF THE MINORITY WHIP,2010Q2,SUPPLIES AND MATERIALS,"",05­11   P1    10NW0100235      KATHERINE D HELM,04/14/10,04/14/10,FOOD & BEVERAGE,16.90,FISCAL YEAR 2010,"","","",05­11   P1    10NW0100235      KATHERINE D HELM
,OFFICE OF THE MINORITY WHIP,2010Q2,SUPPLIES AND MATERIALS,"",05­19   P1    10NW0100237      LLESIANT,05/01/10,05/31/10,PUBLICATION REF MATERIAL,500.00,FISCAL YEAR 2010,"","","",05­19   P1    10NW0100237      LLESIANT
,OFFICE OF THE MINORITY WHIP,2010Q2,SUPPLIES AND MATERIALS,"",05­20   P1    10NW0100236      HIGHLAND ESTATES COFFEE,12/14/09,12/14/09,FOOD & BEVERAGE,422.81,FISCAL YEAR 2010,"","","",05­20   P1    10NW0100236      HIGHLAND ESTATES COFFEE
,OFFICE OF THE MINORITY WHIP,2010Q2,SUPPLIES AND MATERIALS,"",05­21   P1    10NW0100244      AMANDA D STEVENS,05/06/10,05/13/10,FOOD & BEVERAGE,46.24,FISCAL YEAR 2010,"","","",05­21   P1    10NW0100244      AMANDA D STEVENS
,OFFICE OF THE MINORITY WHIP,2010Q2,SUPPLIES AND MATERIALS,"",05­21   P1    10NW0100241      HIGHLAND ESTATES COFFEE,05/13/10,05/13/10,FOOD & BEVERAGE,111.17,FISCAL YEAR 2010,"","","",05­21   P1    10NW0100241      HIGHLAND ESTATES COFFEE
,OFFICE OF THE MINORITY WHIP,2010Q2,SUPPLIES AND MATERIALS,"",05­21 P1 10NW0100242               DO,04/29/10,04/29/10,FOOD & BEVERAGE,233.60,FISCAL YEAR 2010,"","","",05­21 P1 10NW0100242               DO
,OFFICE OF THE MINORITY WHIP,2010Q2,SUPPLIES AND MATERIALS,"",05­21 P1 10NW0100239          LEXIS-NEXIS,04/01/10,04/30/10,PUBLICATION REF MATERIAL,606.00,FISCAL YEAR 2010,"","","",05­21 P1 10NW0100239          LEXIS-NEXIS
,OFFICE OF THE MINORITY WHIP,2010Q2,SUPPLIES AND MATERIALS,"",06­02 P1 10NW0100255          HIGHLAND ESTATES COFFEE,05/10/10,05/10/10,FOOD & BEVERAGE,66.65,FISCAL YEAR 2010,"","","",06­02 P1 10NW0100255          HIGHLAND ESTATES COFFEE
,OFFICE OF THE MINORITY WHIP,2010Q2,SUPPLIES AND MATERIALS,"",06­02 P1 10NW0100256               DO,05/26/10,05/26/10,FOOD & BEVERAGE,233.60,FISCAL YEAR 2010,"","","",06­02 P1 10NW0100256               DO
,OFFICE OF THE MINORITY WHIP,2010Q2,SUPPLIES AND MATERIALS,"",06­02 P1 10NW0100263          KATHERINE D HELM,05/21/10,05/21/10,FOOD & BEVERAGE,20.08,FISCAL YEAR 2010,"","","",06­02 P1 10NW0100263          KATHERINE D HELM
,OFFICE OF THE MINORITY WHIP,2010Q2,SUPPLIES AND MATERIALS,"",06­02 P1 10NW0100264               DO,05/26/10,05/26/10,FOOD & BEVERAGE,162.82,FISCAL YEAR 2010,"","","",06­02 P1 10NW0100264               DO
,OFFICE OF THE MINORITY WHIP,2010Q2,SUPPLIES AND MATERIALS,"",06­04 P1 10NW0100266          CITIBANK GOV CARD SERVICE,03/25/10,04/27/10,FOOD & BEVERAGE,"6,931.72",FISCAL YEAR 2010,"","","",06­04 P1 10NW0100266          CITIBANK GOV CARD SERVICE
,OFFICE OF THE MINORITY WHIP,2010Q2,SUPPLIES AND MATERIALS,"",06­04 P1 10NW0100268               DO,03/28/10,04/19/10,PUBLICATION REF MATERIAL,777.97,FISCAL YEAR 2010,"","","",06­04 P1 10NW0100268               DO
,OFFICE OF THE MINORITY WHIP,2010Q2,SUPPLIES AND MATERIALS,"",06­04 P1 10NW0100270               DO,03/28/10,04/29/10,BOTTLED WATER,440.50,FISCAL YEAR 2010,"","","",06­04 P1 10NW0100270               DO
,OFFICE OF THE MINORITY WHIP,2010Q2,SUPPLIES AND MATERIALS,"",06­04 P1 10NW0100265          SARAH ROBINSON,03/24/10,03/24/10,FOOD & BEVERAGE,226.67,FISCAL YEAR 2010,"","","",06­04 P1 10NW0100265          SARAH ROBINSON
,OFFICE OF THE MINORITY WHIP,2010Q2,SUPPLIES AND MATERIALS,"",06­21 P1 10NW0100273          AMANDA D STEVENS,06/10/10,06/10/10,FOOD & BEVERAGE,23.12,FISCAL YEAR 2010,"","","",06­21 P1 10NW0100273          AMANDA D STEVENS
,OFFICE OF THE MINORITY WHIP,2010Q2,SUPPLIES AND MATERIALS,"",06­21 P1 10NW0100283          HIGHLAND ESTATES COFFEE,06/10/10,06/10/10,FOOD & BEVERAGE,122.30,FISCAL YEAR 2010,"","","",06­21 P1 10NW0100283          HIGHLAND ESTATES COFFEE
,OFFICE OF THE MINORITY WHIP,2010Q2,SUPPLIES AND MATERIALS,"",06­21 P1 10NW0100281          KATHERINE D HELM,06/10/10,06/10/10,OFFICE SUPPLIES OUTSIDE,30.45,FISCAL YEAR 2010,"","","",06­21 P1 10NW0100281          KATHERINE D HELM
,OFFICE OF THE MINORITY WHIP,2010Q2,SUPPLIES AND MATERIALS,"",06­21 P1 10NW0100282               DO,06/10/10,06/10/10,FOOD & BEVERAGE,14.30,FISCAL YEAR 2010,"","","",06­21 P1 10NW0100282               DO
,OFFICE OF THE MINORITY WHIP,2010Q2,SUPPLIES AND MATERIALS,"",06­21 P1 10NW0100284          LLESIANT,07/01/10,07/12/10,PUBLICATION REF MATERIAL,500.00,FISCAL YEAR 2010,"","","",06­21 P1 10NW0100284          LLESIANT
,OFFICE OF THE MINORITY WHIP,2010Q2,SUPPLIES AND MATERIALS,"","06­21 P1 10NW0100276          SHADOW TV, INC",06/01/10,06/30/10,PUBLICATION REF MATERIAL,"2,500.00",FISCAL YEAR 2010,"","","","06­21 P1 10NW0100276          SHADOW TV, INC"
,OFFICE OF THE MINORITY WHIP,2010Q2,SUPPLIES AND MATERIALS,"",06­21 P1 10NW0100277               DO,05/01/10,05/31/10,PUBLICATION REF MATERIAL,"3,000.00",FISCAL YEAR 2010,"","","",06­21 P1 10NW0100277               DO
,OFFICE OF THE MINORITY WHIP,2010Q2,SUPPLIES AND MATERIALS,"",06­21 P1 10NW0100272          TV EYES INC,06/15/10,06/15/11,PUBLICATION REF MATERIAL,"1,200.00",FISCAL YEAR 2010,"","","",06­21 P1 10NW0100272          TV EYES INC
,DEMOCRATIC STEERING AND POLICY,2010Q2,PERSONNEL COMPENSATION,"","ROSENBAUM, AMY",04/01/10,06/01/10,POLICY COORDINATOR,"29,229.17",FISCAL YEAR 2010,"","","","ROSENBAUM, AMY"
,DEMOCRATIC STEERING AND POLICY,2010Q2,PERSONNEL COMPENSATION,"","ROSENBAUM, AMY",06/01/10,06/01/10,POLICY COORDINATOR (OTHER COMPENSATION),"13,895.83",FISCAL YEAR 2010,"","","",DO
,DEMOCRATIC STEERING AND POLICY,2010Q2,PERSONNEL COMPENSATION,"","SIDDIQUI, ARSHI",04/01/10,05/31/10,POLICY ADVISOR,"14,854.17",FISCAL YEAR 2010,"","","","SIDDIQUI, ARSHI"
,DEMOCRATIC STEERING AND POLICY,2010Q2,PERSONNEL COMPENSATION,"","SIDDIQUI, ARSHI",05/01/10,05/31/10,POLICY ADVISOR (OTHER COMPENSATION),"13,895.83",FISCAL YEAR 2010,"","","",DO
,DEMOCRATIC STEERING AND POLICY,2010Q2,PERSONNEL COMPENSATION,"","BLOOM, MICHAEL T",04/01/10,06/30/10,POLICY ASSISTANT,"19,340.76",FISCAL YEAR 2010,"","","","BLOOM, MICHAEL T"
,DEMOCRATIC STEERING AND POLICY,2010Q2,PERSONNEL COMPENSATION,"","BOULE, SCOTT",04/01/10,06/30/10,POLICY ADVISOR,"16,665.00",FISCAL YEAR 2010,"","","","BOULE, SCOTT"
,DEMOCRATIC STEERING AND POLICY,2010Q2,PERSONNEL COMPENSATION,"","CANNON, ANNE C",04/01/10,06/30/10,POLICY ADVISOR,"21,764.25",FISCAL YEAR 2010,"","","","CANNON, ANNE C"
,DEMOCRATIC STEERING AND POLICY,2010Q2,PERSONNEL COMPENSATION,"","CAPRON, MARGARET W",04/01/10,06/30/10,POLICY ADVISOR,"31,924.26",FISCAL YEAR 2010,"","","","CAPRON, MARGARET W"
,DEMOCRATIC STEERING AND POLICY,2010Q2,PERSONNEL COMPENSATION,"","JUDGE, KRISTINE A",04/01/10,06/30/10,POLICY ADVISOR,"31,924.26",FISCAL YEAR 2010,"","","","JUDGE, KRISTINE A"
,DEMOCRATIC STEERING AND POLICY,2010Q2,PERSONNEL COMPENSATION,"","PRICE, REVA B",04/01/10,06/30/10,POLICY ADVISOR,"31,924.26",FISCAL YEAR 2010,"","","","PRICE, REVA B"
,DEMOCRATIC STEERING AND POLICY,2010Q2,PERSONNEL COMPENSATION,"","TECKLENBURG, MICHAEL H",04/01/10,06/30/10,POLICY ADVISOR,"30,062.01",FISCAL YEAR 2010,"","","","TECKLENBURG, MICHAEL H"
,DEMOCRATIC STEERING AND POLICY,2010Q2,PERSONNEL COMPENSATION,"","WAYLAND,KAREN G",04/01/10,06/30/10,POLICY ADVISOR,"34,566.75",FISCAL YEAR 2010,"","","","WAYLAND,KAREN G"
,DEMOCRATIC CAUCUS,2010Q2,PERSONNEL COMPENSATION,"","SHEVLIN IV, GEORGE F",04/01/10,06/30/10,EXECUTIVE DIRECTOR,"43,125.00",FISCAL YEAR 2010,"","","","SHEVLIN IV, GEORGE F"
,DEMOCRATIC CAUCUS,2010Q2,PERSONNEL COMPENSATION,"","TRAN,CATHERINE LE",04/01/10,06/30/10,POLICY DIRECTOR,"31,250.01",FISCAL YEAR 2010,"","","","TRAN,CATHERINE LE"
,DEMOCRATIC CAUCUS,2010Q2,PERSONNEL COMPENSATION,"","BANJAC,SRDAN",04/01/10,06/30/10,ASSISTANT TO THE CHAIRMAN,"13,500.00",FISCAL YEAR 2010,"","","","BANJAC,SRDAN"
,DEMOCRATIC CAUCUS,2010Q2,PERSONNEL COMPENSATION,"","BARNES,CHRISTOPHER E",04/01/10,06/30/10,ADVISOR TO THE CHAIRMAN,"41,250.00",FISCAL YEAR 2010,"","","","BARNES,CHRISTOPHER E"
,DEMOCRATIC CAUCUS,2010Q2,PERSONNEL COMPENSATION,"","BAROCAS,EMILY",04/01/10,06/30/10,PRESS SECRETARY,"17,499.99",FISCAL YEAR 2010,"","","","BAROCAS,EMILY"
,DEMOCRATIC CAUCUS,2010Q2,PERSONNEL COMPENSATION,"","BRAGIN,GIDEON",04/01/10,06/20/10,CAUCUS FELLOW,"7,777.78",FISCAL YEAR 2010,"","","","BRAGIN,GIDEON"
,DEMOCRATIC CAUCUS,2010Q2,PERSONNEL COMPENSATION,"","BUI, TONIA",04/01/10,06/30/10,MEMBER OUTREACH ASST-VICE CHR,"9,500.01",FISCAL YEAR 2010,"","","","BUI, TONIA"
,DEMOCRATIC CAUCUS,2010Q2,PERSONNEL COMPENSATION,"","DAGADAKIS,STAMATIOS",04/01/10,06/30/10,TECHNOLOGY & RESEARCH ASSISTAN,"10,500.00",FISCAL YEAR 2010,"","","","DAGADAKIS,STAMATIOS"
,DEMOCRATIC CAUCUS,2010Q2,PERSONNEL COMPENSATION,"","DELANEY, ERIC L",04/01/10,06/30/10,MEMBER OUTREACH ASST-VICE CHR,"9,500.01",FISCAL YEAR 2010,"","","","DELANEY, ERIC L"
,DEMOCRATIC CAUCUS,2010Q2,PERSONNEL COMPENSATION,"","GLEESON,JAMES M",04/12/10,06/30/10,PRESS SEC FOR THE VICE CHAIR,"11,016.67",FISCAL YEAR 2010,"","","","GLEESON,JAMES M"
,DEMOCRATIC CAUCUS,2010Q2,PERSONNEL COMPENSATION,"","GLEESON,JAMES M",04/01/10,04/11/10,RESEARCH ANALYST FOR VICE CHR,"1,222.22",FISCAL YEAR 2010,"","","",DO
,DEMOCRATIC CAUCUS,2010Q2,PERSONNEL COMPENSATION,"","GONZALES, MELONDY S",04/01/10,06/30/10,DIR OF MBR OUTREACH-VICE CHAIR,"14,750.01",FISCAL YEAR 2010,"","","","GONZALES, MELONDY S"
,DEMOCRATIC CAUCUS,2010Q2,PERSONNEL COMPENSATION,"","HUDSON,JEHMAL T",04/01/10,06/05/10,POLICY ASSISTANT,"11,736.12",FISCAL YEAR 2010,"","","","HUDSON,JEHMAL T"
,DEMOCRATIC CAUCUS,2010Q2,PERSONNEL COMPENSATION,"","HUDSON,JEHMAL T",06/01/10,06/05/10,POLICY ASSISTANT (OTHER COMPENSATION),"1,083.33",FISCAL YEAR 2010,"","","",DO
,DEMOCRATIC CAUCUS,2010Q2,PERSONNEL COMPENSATION,"","JAWORSKI, KIMBERLY H",04/01/10,06/30/10,EVENTS AND PROJECTS COORDINATO,"12,999.99",FISCAL YEAR 2010,"","","","JAWORSKI, KIMBERLY H"
,DEMOCRATIC CAUCUS,2010Q2,PERSONNEL COMPENSATION,"","KRASOV,ALEXANDRA",04/01/10,06/30/10,DEPUTY COMMUNICATIONS DIRECTOR,"9,450.00",FISCAL YEAR 2010,"","","","KRASOV,ALEXANDRA"
,DEMOCRATIC CAUCUS,2010Q2,PERSONNEL COMPENSATION,"","MALERBA,LIZ",04/01/10,06/30/10,OUTREACH ASSISTANT,"9,999.99",FISCAL YEAR 2010,"","","","MALERBA,LIZ"
,DEMOCRATIC CAUCUS,2010Q2,PERSONNEL COMPENSATION,"","MCCLUSKIE,SEAN E",04/01/10,06/30/10,STAFF DIR FOR THE VICE CHAIR,"25,844.45",FISCAL YEAR 2010,"","","","MCCLUSKIE,SEAN E"
,DEMOCRATIC CAUCUS,2010Q2,PERSONNEL COMPENSATION,"","MERZ, JULIE E",04/01/10,06/30/10,SHARED EMPLOYEE,"17,499.99",FISCAL YEAR 2010,"","","","MERZ, JULIE E"
,DEMOCRATIC CAUCUS,2010Q2,PERSONNEL COMPENSATION,"","MORA,JASMINE",06/03/10,06/30/10,ASST TO THE PRESS SECRETARY,"2,722.22",FISCAL YEAR 2010,"","","","MORA,JASMINE"
,DEMOCRATIC CAUCUS,2010Q2,PERSONNEL COMPENSATION,"","PEREZ-GOMEZ,SALVADOR E",05/01/10,06/30/10,OUTREACH & RESEARCH ASSISTANT,"6,666.66",FISCAL YEAR 2010,"","","","PEREZ-GOMEZ,SALVADOR E"
,DEMOCRATIC CAUCUS,2010Q2,PERSONNEL COMPENSATION,"","PEREZ-GOMEZ,SALVADOR E",04/01/10,04/30/10,STAFF ASSISTANT,"3,333.33",FISCAL YEAR 2010,"","","",DO
,DEMOCRATIC CAUCUS,2010Q2,PERSONNEL COMPENSATION,"","PERONACE,ANTONIO",04/01/10,06/30/10,DIR OF MULTIMEDIA COMM AND TEC,"14,250.00",FISCAL YEAR 2010,"","","","PERONACE,ANTONIO"
,DEMOCRATIC CAUCUS,2010Q2,PERSONNEL COMPENSATION,"","PIERSON, ROBERT M",04/01/10,06/30/10,DIRECTOR OF NEW MEDIA,"16,250.01",FISCAL YEAR 2010,"","","","PIERSON, ROBERT M"
,DEMOCRATIC CAUCUS,2010Q2,PERSONNEL COMPENSATION,"","RESENDENZ,MARVENE R",03/01/10,06/30/10,EXECUTIVE ASSISTANT/SCHEDULER,"10,000.00",FISCAL YEAR 2010,"","","","RESENDENZ,MARVENE R"
,DEMOCRATIC CAUCUS,2010Q2,PERSONNEL COMPENSATION,"","ROBB, KAREN A",04/01/10,06/30/10,SHARED EMPLOYEE,"32,499.99",FISCAL YEAR 2010,"","","","ROBB, KAREN A"
,DEMOCRATIC CAUCUS,2010Q2,PERSONNEL COMPENSATION,"","RODRIGUEZ-OLVERA,LORENZO A",04/01/10,06/30/10,MEMBER OUTREACH ASST-VICE CHR,"8,499.99",FISCAL YEAR 2010,"","","","RODRIGUEZ-OLVERA,LORENZO A"
,DEMOCRATIC CAUCUS,2010Q2,PERSONNEL COMPENSATION,"","RUBINO,SHELLEY M",03/01/10,06/30/10,ADVISOR TO THE CHAIRMAN,"34,583.33",FISCAL YEAR 2010,"","","","RUBINO,SHELLEY M"
,DEMOCRATIC CAUCUS,2010Q2,TRAVEL,"",04­06       P1 10DA0100194      CATHERINE LE TRAN,03/25/10,03/25/10,"TAXI, PARKING, TOLLS",13.00,FISCAL YEAR 2010,"","","",04­06       P1 10DA0100194      CATHERINE LE TRAN
,DEMOCRATIC CAUCUS,2010Q2,TRAVEL,"",04­19       P1 10DA0100200      GEORGE F SHEVLIN,04/13/10,04/13/10,"TAXI, PARKING, TOLLS",14.75,FISCAL YEAR 2010,"","","",04­19       P1 10DA0100200      GEORGE F SHEVLIN
,DEMOCRATIC CAUCUS,2010Q2,TRAVEL,"",04­19       P1 10DA0100201           DO,04/07/10,04/07/10,"TAXI, PARKING, TOLLS",8.00,FISCAL YEAR 2010,"","","",04­19       P1 10DA0100201           DO
,DEMOCRATIC CAUCUS,2010Q2,TRAVEL,"",04­30       P1 10DA0100211      CATHERINE LE TRAN,03/30/10,03/30/10,"TAXI, PARKING, TOLLS",26.00,FISCAL YEAR 2010,"","","",04­30       P1 10DA0100211      CATHERINE LE TRAN
,DEMOCRATIC CAUCUS,2010Q2,TRAVEL,"",04­30       P1 10DA0100213           DO,04/20/10,04/20/10,"TAXI, PARKING, TOLLS",13.00,FISCAL YEAR 2010,"","","",04­30       P1 10DA0100213           DO
,DEMOCRATIC CAUCUS,2010Q2,TRAVEL,"",04­30       P1 10DA0100212      GEORGE F SHEVLIN,04/27/10,04/27/10,"TAXI, PARKING, TOLLS",20.00,FISCAL YEAR 2010,"","","",04­30       P1 10DA0100212      GEORGE F SHEVLIN
,DEMOCRATIC CAUCUS,2010Q2,TRAVEL,"",04­30       P1 10DA0100209      STAMATIOS DAGADAKIS,04/27/10,04/27/10,"TAXI, PARKING, TOLLS",20.00,FISCAL YEAR 2010,"","","",04­30       P1 10DA0100209      STAMATIOS DAGADAKIS
,DEMOCRATIC CAUCUS,2010Q2,TRAVEL,"",06­01       P1 10DA0100239      WENDY ANNE HARTMAN,01/05/09,01/06/09,PRIVATE OWNED VEHICLE MILEAGE,208.55,FISCAL YEAR 2010,"","","",06­01       P1 10DA0100239      WENDY ANNE HARTMAN
,DEMOCRATIC CAUCUS,2010Q2,TRAVEL,"",06­01       P1 10DA0100240           DO,01/15/09,01/15/09,PRIVATE OWNED VEHICLE MILEAGE,208.55,FISCAL YEAR 2010,"","","",06­01       P1 10DA0100240           DO
,DEMOCRATIC CAUCUS,2010Q2,TRAVEL,"",06­01       P1 10DA0100241           DO,01/22/09,01/24/09,PRIVATE OWNED VEHICLE MILEAGE,208.55,FISCAL YEAR 2010,"","","",06­01       P1 10DA0100241           DO
,DEMOCRATIC CAUCUS,2010Q2,TRAVEL,"",06­01       P1 10DA0100242           DO,01/29/09,01/30/09,PRIVATE OWNED VEHICLE MILEAGE,208.55,FISCAL YEAR 2010,"","","",06­01       P1 10DA0100242           DO
,DEMOCRATIC CAUCUS,2010Q2,TRAVEL,"",06­01       P1 10DA0100243           DO,02/02/09,02/08/09,PRIVATE OWNED VEHICLE MILEAGE,208.55,FISCAL YEAR 2010,"","","",06­01       P1 10DA0100243           DO
,DEMOCRATIC CAUCUS,2010Q2,TRAVEL,"",06­02       P1 10DA0100244           DO,04/06/09,04/08/09,PRIVATE OWNED VEHICLE MILEAGE,208.55,FISCAL YEAR 2010,"","","",06­02       P1 10DA0100244           DO
,DEMOCRATIC CAUCUS,2010Q2,TRAVEL,"",06­03       P1 10DA0100249      GEORGE F SHEVLIN,05/24/10,05/24/10,"TAXI, PARKING, TOLLS",11.00,FISCAL YEAR 2010,"","","",06­03       P1 10DA0100249      GEORGE F SHEVLIN
,DEMOCRATIC CAUCUS,2010Q2,TRAVEL,"",06­11       P1 10DA0100258      GEORGE F SHEVLIN,05/28/10,05/28/10,"TAXI, PARKING, TOLLS",11.00,FISCAL YEAR 2010,"","","",06­11       P1 10DA0100258      GEORGE F SHEVLIN
,DEMOCRATIC CAUCUS,2010Q2,TRAVEL,"",06­30       P1 10DA0100264           DO,06/14/10,06/14/10,"TAXI, PARKING, TOLLS",11.00,FISCAL YEAR 2010,"","","",06­30       P1 10DA0100264           DO
,DEMOCRATIC CAUCUS,2010Q2,"RENT, COMMUNICATION, UTILITIES","",04­19       P1 10DA0100202     U.S. BOTANIC GARDEN,01/14/10,01/14/10,EQUIPMENT RENTAL,60.00,FISCAL YEAR 2010,"","","",04­19       P1 10DA0100202     U.S. BOTANIC GARDEN
,DEMOCRATIC CAUCUS,2010Q2,PRINTING AND REPRODUCTION,"",04­23       S3 10113000038,04/01/10,04/30/10,PHOTOGRAPHIC (TRANSFER),64.00,FISCAL YEAR 2010,"","","",04­23       S3 10113000038
,DEMOCRATIC CAUCUS,2010Q2,PRINTING AND REPRODUCTION,"",06­02   P1 10DA0100238                    ROBERT PIERSON,12/14/09,12/14/09,PRINTING AND REPRODUCTION,38.00,FISCAL YEAR 2010,"","","",06­02   P1 10DA0100238                    ROBERT PIERSON
,DEMOCRATIC CAUCUS,2010Q2,PRINTING AND REPRODUCTION,"",06­25   S3 10176000044,06/01/10,06/30/10,PHOTOGRAPHIC (TRANSFER),6.40,FISCAL YEAR 2010,"","","",06­25   S3 10176000044
,DEMOCRATIC CAUCUS,2010Q2,OTHER SERVICES,"",04­01   P1   10DA0100182                  ELIZABETH MALERBA,03/15/10,03/15/10,LAUNDRY SERVICE,169.76,FISCAL YEAR 2010,"","","",04­01   P1   10DA0100182                  ELIZABETH MALERBA
,DEMOCRATIC CAUCUS,2010Q2,OTHER SERVICES,"",04­06   P1   10DA0100193                  SRDAN BANJAC,04/05/10,04/05/10,LAUNDRY SERVICE,148.54,FISCAL YEAR 2010,"","","",04­06   P1   10DA0100193                  SRDAN BANJAC
,DEMOCRATIC CAUCUS,2010Q2,OTHER SERVICES,"",05­24   P1   10DA0100221                       DO,05/05/10,05/05/10,LAUNDRY SERVICE,127.32,FISCAL YEAR 2010,"","","",05­24   P1   10DA0100221                       DO
,DEMOCRATIC CAUCUS,2010Q2,OTHER SERVICES,"",05­24   P1   10DA0100222                  STAMATIOS DAGADAKIS,05/06/10,05/07/10,TRAINING EXPENSES,60.00,FISCAL YEAR 2010,"","","",05­24   P1   10DA0100222                  STAMATIOS DAGADAKIS
,DEMOCRATIC CAUCUS,2010Q2,OTHER SERVICES,"",06­01   P1   10DA0100237                  SRDAN BANJAC,05/24/10,05/24/10,LAUNDRY SERVICE,63.13,FISCAL YEAR 2010,"","","",06­01   P1   10DA0100237                  SRDAN BANJAC
,DEMOCRATIC CAUCUS,2010Q2,OTHER SERVICES,"",06­03   P1   10DA0100248                       DO,05/24/10,05/24/10,LAUNDRY SERVICE,42.44,FISCAL YEAR 2010,"","","",06­03   P1   10DA0100248                       DO
,DEMOCRATIC CAUCUS,2010Q2,OTHER SERVICES,"",06­17   P1   10DA0100261                       DO,06/09/10,06/09/10,LAUNDRY SERVICE,148.54,FISCAL YEAR 2010,"","","",06­17   P1   10DA0100261                       DO
,DEMOCRATIC CAUCUS,2010Q2,SUPPLIES AND MATERIALS,"",04­01   P1   10DA0100181      ELIZABETH MALERBA,03/11/10,03/11/10,FOOD & BEVERAGE,189.45,FISCAL YEAR 2010,"","","",04­01   P1   10DA0100181      ELIZABETH MALERBA
,DEMOCRATIC CAUCUS,2010Q2,SUPPLIES AND MATERIALS,"",04­01   P1   10DA0100183               DO,03/18/10,03/18/10,FOOD & BEVERAGE,116.58,FISCAL YEAR 2010,"","","",04­01   P1   10DA0100183               DO
,DEMOCRATIC CAUCUS,2010Q2,SUPPLIES AND MATERIALS,"",04­01   P1   10DA0100184               DO,03/14/10,03/14/10,FOOD & BEVERAGE,79.06,FISCAL YEAR 2010,"","","",04­01   P1   10DA0100184               DO
,DEMOCRATIC CAUCUS,2010Q2,SUPPLIES AND MATERIALS,"",04­01   P1   10DA0100185               DO,02/22/10,02/22/10,FOOD & BEVERAGE,248.82,FISCAL YEAR 2010,"","","",04­01   P1   10DA0100185               DO
,DEMOCRATIC CAUCUS,2010Q2,SUPPLIES AND MATERIALS,"",04­01   P1   10DA0100186               DO,03/02/10,03/02/10,FOOD & BEVERAGE,86.18,FISCAL YEAR 2010,"","","",04­01   P1   10DA0100186               DO
,DEMOCRATIC CAUCUS,2010Q2,SUPPLIES AND MATERIALS,"",04­01   P1   10DA0100187               DO,03/09/10,03/09/10,FOOD & BEVERAGE,103.29,FISCAL YEAR 2010,"","","",04­01   P1   10DA0100187               DO
,DEMOCRATIC CAUCUS,2010Q2,SUPPLIES AND MATERIALS,"",04­01   P1   10DA0100188               DO,02/25/10,02/25/10,FOOD & BEVERAGE,47.18,FISCAL YEAR 2010,"","","",04­01   P1   10DA0100188               DO
,DEMOCRATIC CAUCUS,2010Q2,SUPPLIES AND MATERIALS,"",04­01   P1   10DA0100189               DO,02/02/10,02/02/10,FOOD & BEVERAGE,101.01,FISCAL YEAR 2010,"","","",04­01   P1   10DA0100189               DO
,DEMOCRATIC CAUCUS,2010Q2,SUPPLIES AND MATERIALS,"",04­01   P1   10DA0100180      SRDAN BANJAC,03/21/10,03/21/10,FOOD & BEVERAGE,25.91,FISCAL YEAR 2010,"","","",04­01   P1   10DA0100180      SRDAN BANJAC
,DEMOCRATIC CAUCUS,2010Q2,SUPPLIES AND MATERIALS,"",04­06   P1   10DA0100190      GEORGE F SHEVLIN,03/10/10,03/10/10,FOOD & BEVERAGE,"1,343.38",FISCAL YEAR 2010,"","","",04­06   P1   10DA0100190      GEORGE F SHEVLIN
,DEMOCRATIC CAUCUS,2010Q2,SUPPLIES AND MATERIALS,"",04­06   P1   10DA0100191               DO,03/25/10,03/25/10,FOOD & BEVERAGE,"1,566.95",FISCAL YEAR 2010,"","","",04­06   P1   10DA0100191               DO
,DEMOCRATIC CAUCUS,2010Q2,SUPPLIES AND MATERIALS,"",04­07   P1   10DA0100195      ELIZABETH MALERBA,03/19/10,03/19/10,FOOD & BEVERAGE,58.17,FISCAL YEAR 2010,"","","",04­07   P1   10DA0100195      ELIZABETH MALERBA
,DEMOCRATIC CAUCUS,2010Q2,SUPPLIES AND MATERIALS,"",04­07   P1   10DA0100196               DO,03/21/10,03/21/10,FOOD & BEVERAGE,192.50,FISCAL YEAR 2010,"","","",04­07   P1   10DA0100196               DO
,DEMOCRATIC CAUCUS,2010Q2,SUPPLIES AND MATERIALS,"",04­07   P1   10DA0100197               DO,03/24/10,03/24/10,FOOD & BEVERAGE,134.72,FISCAL YEAR 2010,"","","",04­07   P1   10DA0100197               DO
,DEMOCRATIC CAUCUS,2010Q2,SUPPLIES AND MATERIALS,"",04­14   HV   10A90100112,03/31/10,03/31/10,FRAMING (TRANSFER),300.00,FISCAL YEAR 2010,"","","",04­14   HV   10A90100112
,DEMOCRATIC CAUCUS,2010Q2,SUPPLIES AND MATERIALS,"",04­19   P1   10DA0100198      GEORGE F SHEVLIN,04/12/10,04/12/10,FOOD & BEVERAGE,318.36,FISCAL YEAR 2010,"","","",04­19   P1   10DA0100198      GEORGE F SHEVLIN
,DEMOCRATIC CAUCUS,2010Q2,SUPPLIES AND MATERIALS,"",04­19   P1   10DA0100199      SHELEY M RUBINO,03/16/10,03/16/10,FOOD & BEVERAGE,"1,514.40",FISCAL YEAR 2010,"","","",04­19   P1   10DA0100199      SHELEY M RUBINO
,DEMOCRATIC CAUCUS,2010Q2,SUPPLIES AND MATERIALS,"",04­20   C1   NW201010901      DEER PARK,03/31/10,03/31/10,BOTTLED WATER,16.00,FISCAL YEAR 2010,"","","",04­20   C1   NW201010901      DEER PARK
,DEMOCRATIC CAUCUS,2010Q2,SUPPLIES AND MATERIALS,"",04­20   C1   NW201010901               DO,03/31/10,03/31/10,BOTTLED WATER,40.00,FISCAL YEAR 2010,"","","",04­20   C1   NW201010901               DO
,DEMOCRATIC CAUCUS,2010Q2,SUPPLIES AND MATERIALS,"",04­20   C1   NW201010901               DO,03/02/10,03/02/10,BOTTLED WATER,40.98,FISCAL YEAR 2010,"","","",04­20   C1   NW201010901               DO
,DEMOCRATIC CAUCUS,2010Q2,SUPPLIES AND MATERIALS,"",04­20   C1   NW201010901               DO,03/10/10,03/10/10,BOTTLED WATER,98.88,FISCAL YEAR 2010,"","","",04­20   C1   NW201010901               DO
,DEMOCRATIC CAUCUS,2010Q2,SUPPLIES AND MATERIALS,"",04­20   C1   NW201010901               DO,03/23/10,03/23/10,BOTTLED WATER,89.86,FISCAL YEAR 2010,"","","",04­20   C1   NW201010901               DO
,DEMOCRATIC CAUCUS,2010Q2,SUPPLIES AND MATERIALS,"",04­20   C1   NW201010901               DO,03/25/10,03/25/10,BOTTLED WATER,126.85,FISCAL YEAR 2010,"","","",04­20   C1   NW201010901               DO
,DEMOCRATIC CAUCUS,2010Q2,SUPPLIES AND MATERIALS,"",04­20   C1   NW201010901               DO,03/31/10,03/31/10,BOTTLED WATER,90.93,FISCAL YEAR 2010,"","","",04­20   C1   NW201010901               DO
,DEMOCRATIC CAUCUS,2010Q2,SUPPLIES AND MATERIALS,"",04­20   C1   NW201010901               DO,03/31/10,03/31/10,BOTTLED WATER,2.00,FISCAL YEAR 2010,"","","",04­20   C1   NW201010901               DO
,DEMOCRATIC CAUCUS,2010Q2,SUPPLIES AND MATERIALS,"",04­20   C1   NW201010901               DO,03/31/10,03/31/10,BOTTLED WATER,2.00,FISCAL YEAR 2010,"","","",04­20   C1   NW201010901               DO
,DEMOCRATIC CAUCUS,2010Q2,SUPPLIES AND MATERIALS,"",04­23   P1   10DA0100203      ELIZABETH MALERBA,04/13/10,04/13/10,FOOD & BEVERAGE,44.70,FISCAL YEAR 2010,"","","",04­23   P1   10DA0100203      ELIZABETH MALERBA
,DEMOCRATIC CAUCUS,2010Q2,SUPPLIES AND MATERIALS,"",04­23   P1   10DA0100206               DO,12/08/09,12/08/09,PUBLICATION REF MATERIAL,227.32,FISCAL YEAR 2010,"","","",04­23   P1   10DA0100206               DO
,DEMOCRATIC CAUCUS,2010Q2,SUPPLIES AND MATERIALS,"",04­23   P1   10DA0100204      SHELEY M RUBINO,04/16/10,04/16/10,FOOD & BEVERAGE,"1,673.00",FISCAL YEAR 2010,"","","",04­23   P1   10DA0100204      SHELEY M RUBINO
,DEMOCRATIC CAUCUS,2010Q2,SUPPLIES AND MATERIALS,"",04­28   P1   10DA0100208      DESIGN CUISINE,01/13/10,01/15/10,FOOD & BEVERAGE,"3,748.67",FISCAL YEAR 2010,"","","",04­28   P1   10DA0100208      DESIGN CUISINE
,DEMOCRATIC CAUCUS,2010Q2,SUPPLIES AND MATERIALS,"",04­30   P1   10DA0100210      SHELEY M RUBINO,04/27/10,04/27/10,FOOD & BEVERAGE,763.00,FISCAL YEAR 2010,"","","",04­30   P1   10DA0100210      SHELEY M RUBINO
,DEMOCRATIC CAUCUS,2010Q2,SUPPLIES AND MATERIALS,"",05­20   P1   10DA0100214      GEORGE F SHEVLIN,05/18/10,05/18/10,FOOD & BEVERAGE,263.35,FISCAL YEAR 2010,"","","",05­20   P1   10DA0100214      GEORGE F SHEVLIN
,DEMOCRATIC CAUCUS,2010Q2,SUPPLIES AND MATERIALS,"",05­20   P1   10DA0100216      ROBERT PIERSON,05/06/10,05/05/11,PUBLICATION REF MATERIAL,24.95,FISCAL YEAR 2010,"","","",05­20   P1   10DA0100216      ROBERT PIERSON
,DEMOCRATIC CAUCUS,2010Q2,SUPPLIES AND MATERIALS,"",05­20   P1   10DA0100215      SULLY FRAMING AND ART,04/01/10,04/01/10,HABITATION EXPENSES,261.09,FISCAL YEAR 2010,"","","",05­20   P1   10DA0100215      SULLY FRAMING AND ART
,DEMOCRATIC CAUCUS,2010Q2,SUPPLIES AND MATERIALS,"",05­24   P1   10DA0100220      SHELEY M RUBINO,05/04/10,05/04/10,FOOD & BEVERAGE,310.05,FISCAL YEAR 2010,"","","",05­24   P1   10DA0100220      SHELEY M RUBINO
,DEMOCRATIC CAUCUS,2010Q2,SUPPLIES AND MATERIALS,"",05­25   P1   10DA0100219      GEORGE F SHEVLIN,05/06/10,05/06/10,FOOD & BEVERAGE,"1,465.43",FISCAL YEAR 2010,"","","",05­25   P1   10DA0100219      GEORGE F SHEVLIN
,DEMOCRATIC CAUCUS,2010Q2,SUPPLIES AND MATERIALS,"",05­25 P1 10DA0100229        SHELEY M RUBINO,03/16/10,03/16/10,FOOD & BEVERAGE,151.44,FISCAL YEAR 2010,"","","",05­25 P1 10DA0100229        SHELEY M RUBINO
,DEMOCRATIC CAUCUS,2010Q2,SUPPLIES AND MATERIALS,"",05­25 P1 10DA0100230              DO,03/03/10,03/03/10,FOOD & BEVERAGE,130.00,FISCAL YEAR 2010,"","","",05­25 P1 10DA0100230              DO
,DEMOCRATIC CAUCUS,2010Q2,SUPPLIES AND MATERIALS,"",05­25 P1 10DA0100231              DO,03/24/10,03/24/10,FOOD & BEVERAGE,673.80,FISCAL YEAR 2010,"","","",05­25 P1 10DA0100231              DO
,DEMOCRATIC CAUCUS,2010Q2,SUPPLIES AND MATERIALS,"",05­25 P1 10DA0100232              DO,05/11/10,05/11/10,FOOD & BEVERAGE,815.00,FISCAL YEAR 2010,"","","",05­25 P1 10DA0100232              DO
,DEMOCRATIC CAUCUS,2010Q2,SUPPLIES AND MATERIALS,"",05­25 P1 10DA0100233              DO,05/24/10,05/24/10,FOOD & BEVERAGE,"1,244.00",FISCAL YEAR 2010,"","","",05­25 P1 10DA0100233              DO
,DEMOCRATIC CAUCUS,2010Q2,SUPPLIES AND MATERIALS,"",05­27 C1 NW201014501        DEER PARK,04/30/10,04/30/10,BOTTLED WATER,16.00,FISCAL YEAR 2010,"","","",05­27 C1 NW201014501        DEER PARK
,DEMOCRATIC CAUCUS,2010Q2,SUPPLIES AND MATERIALS,"",05­27 C1 NW201014501              DO,04/30/10,04/30/10,BOTTLED WATER,40.00,FISCAL YEAR 2010,"","","",05­27 C1 NW201014501              DO
,DEMOCRATIC CAUCUS,2010Q2,SUPPLIES AND MATERIALS,"",05­27 C1 NW201014501              DO,04/09/10,04/09/10,BOTTLED WATER,111.87,FISCAL YEAR 2010,"","","",05­27 C1 NW201014501              DO
,DEMOCRATIC CAUCUS,2010Q2,SUPPLIES AND MATERIALS,"",05­27 C1 NW201014501              DO,04/26/10,04/26/10,BOTTLED WATER,114.86,FISCAL YEAR 2010,"","","",05­27 C1 NW201014501              DO
,DEMOCRATIC CAUCUS,2010Q2,SUPPLIES AND MATERIALS,"",05­27 C1 NW201014501              DO,04/30/10,04/30/10,BOTTLED WATER,65.93,FISCAL YEAR 2010,"","","",05­27 C1 NW201014501              DO
,DEMOCRATIC CAUCUS,2010Q2,SUPPLIES AND MATERIALS,"",05­27 C1 NW201014501              DO,04/29/10,04/29/10,BOTTLED WATER,39.99,FISCAL YEAR 2010,"","","",05­27 C1 NW201014501              DO
,DEMOCRATIC CAUCUS,2010Q2,SUPPLIES AND MATERIALS,"",05­27 C1 NW201014501              DO,04/30/10,04/30/10,BOTTLED WATER,2.00,FISCAL YEAR 2010,"","","",05­27 C1 NW201014501              DO
,DEMOCRATIC CAUCUS,2010Q2,SUPPLIES AND MATERIALS,"",05­27 C1 NW201014501              DO,04/30/10,04/30/10,BOTTLED WATER,2.00,FISCAL YEAR 2010,"","","",05­27 C1 NW201014501              DO
,DEMOCRATIC CAUCUS,2010Q2,SUPPLIES AND MATERIALS,"",06­03 P1 10DA0100246        GEORGE F SHEVLIN,05/25/10,05/25/10,FOOD & BEVERAGE,"1,150.00",FISCAL YEAR 2010,"","","",06­03 P1 10DA0100246        GEORGE F SHEVLIN
,DEMOCRATIC CAUCUS,2010Q2,SUPPLIES AND MATERIALS,"",06­03 P1 10DA0100245        SHELEY M RUBINO,05/26/10,05/26/10,FOOD & BEVERAGE,241.00,FISCAL YEAR 2010,"","","",06­03 P1 10DA0100245        SHELEY M RUBINO
,DEMOCRATIC CAUCUS,2010Q2,SUPPLIES AND MATERIALS,"",06­03 P1 10DA0100247        SRDAN BANJAC,05/26/10,05/26/10,FOOD & BEVERAGE,14.92,FISCAL YEAR 2010,"","","",06­03 P1 10DA0100247        SRDAN BANJAC
,DEMOCRATIC CAUCUS,2010Q2,SUPPLIES AND MATERIALS,"",06­11 P1 10DA0100250        ELIZABETH MALERBA,04/20/10,04/20/10,FOOD & BEVERAGE,37.68,FISCAL YEAR 2010,"","","",06­11 P1 10DA0100250        ELIZABETH MALERBA
,DEMOCRATIC CAUCUS,2010Q2,SUPPLIES AND MATERIALS,"",06­11 P1 10DA0100251              DO,05/05/10,05/05/10,FOOD & BEVERAGE,14.80,FISCAL YEAR 2010,"","","",06­11 P1 10DA0100251              DO
,DEMOCRATIC CAUCUS,2010Q2,SUPPLIES AND MATERIALS,"",06­11 P1 10DA0100252              DO,05/19/10,05/19/10,FOOD & BEVERAGE,165.22,FISCAL YEAR 2010,"","","",06­11 P1 10DA0100252              DO
,DEMOCRATIC CAUCUS,2010Q2,SUPPLIES AND MATERIALS,"",06­11 P1 10DA0100253              DO,04/27/10,04/27/10,FOOD & BEVERAGE,147.28,FISCAL YEAR 2010,"","","",06­11 P1 10DA0100253              DO
,DEMOCRATIC CAUCUS,2010Q2,SUPPLIES AND MATERIALS,"",06­11 P1 10DA0100254              DO,04/21/10,04/21/10,FOOD & BEVERAGE,30.27,FISCAL YEAR 2010,"","","",06­11 P1 10DA0100254              DO
,DEMOCRATIC CAUCUS,2010Q2,SUPPLIES AND MATERIALS,"",06­11 P1 10DA0100257              DO,05/11/10,05/11/10,FOOD & BEVERAGE,73.68,FISCAL YEAR 2010,"","","",06­11 P1 10DA0100257              DO
,DEMOCRATIC CAUCUS,2010Q2,SUPPLIES AND MATERIALS,"",06­11 P1 10DA0100259              DO,05/23/10,05/23/10,FOOD & BEVERAGE,24.35,FISCAL YEAR 2010,"","","",06­11 P1 10DA0100259              DO
,DEMOCRATIC CAUCUS,2010Q2,SUPPLIES AND MATERIALS,"",06­11 P1 10DA0100256        GEORGE F SHEVLIN,06/07/10,06/07/10,FOOD & BEVERAGE,271.53,FISCAL YEAR 2010,"","","",06­11 P1 10DA0100256        GEORGE F SHEVLIN
,DEMOCRATIC CAUCUS,2010Q2,SUPPLIES AND MATERIALS,"",06­11 P1 10DA0100255        TV EYES INC,05/01/10,12/31/10,PUBLICATION REF MATERIAL,800.00,FISCAL YEAR 2010,"","","",06­11 P1 10DA0100255        TV EYES INC
,DEMOCRATIC CAUCUS,2010Q2,SUPPLIES AND MATERIALS,"",06­16 C1 NW201016601        DEER PARK,05/31/10,05/31/10,BOTTLED WATER,16.00,FISCAL YEAR 2010,"","","",06­16 C1 NW201016601        DEER PARK
,DEMOCRATIC CAUCUS,2010Q2,SUPPLIES AND MATERIALS,"",06­16 C1 NW201016601              DO,05/31/10,05/31/10,BOTTLED WATER,40.00,FISCAL YEAR 2010,"","","",06­16 C1 NW201016601              DO
,DEMOCRATIC CAUCUS,2010Q2,SUPPLIES AND MATERIALS,"",06­16 C1 NW201016601              DO,05/10/10,05/10/10,BOTTLED WATER,132.84,FISCAL YEAR 2010,"","","",06­16 C1 NW201016601              DO
,DEMOCRATIC CAUCUS,2010Q2,SUPPLIES AND MATERIALS,"",06­16 C1 NW201016601              DO,05/25/10,05/25/10,BOTTLED WATER,32.99,FISCAL YEAR 2010,"","","",06­16 C1 NW201016601              DO
,DEMOCRATIC CAUCUS,2010Q2,SUPPLIES AND MATERIALS,"",06­16 C1 NW201016601              DO,05/31/10,05/31/10,BOTTLED WATER,2.00,FISCAL YEAR 2010,"","","",06­16 C1 NW201016601              DO
,DEMOCRATIC CAUCUS,2010Q2,SUPPLIES AND MATERIALS,"",06­17 P1 10DA0100260        ELIZABETH MALERBA,06/08/10,06/08/10,FOOD & BEVERAGE,265.54,FISCAL YEAR 2010,"","","",06­17 P1 10DA0100260        ELIZABETH MALERBA
,DEMOCRATIC CAUCUS,2010Q2,SUPPLIES AND MATERIALS,"",06­17 P1 10DA0100262        SHELEY M RUBINO,05/28/10,05/28/10,FOOD & BEVERAGE,86.99,FISCAL YEAR 2010,"","","",06­17 P1 10DA0100262        SHELEY M RUBINO
,DEMOCRATIC CAUCUS,2010Q2,SUPPLIES AND MATERIALS,"",06­30 P1 10DA0100263        ELIZABETH MALERBA,06/10/10,06/10/10,FOOD & BEVERAGE,45.00,FISCAL YEAR 2010,"","","",06­30 P1 10DA0100263        ELIZABETH MALERBA
,DEMOCRATIC CAUCUS,2010Q2,SUPPLIES AND MATERIALS,"",06­30 P1 10DA0100266              DO,06/21/10,06/21/10,FOOD & BEVERAGE,114.63,FISCAL YEAR 2010,"","","",06­30 P1 10DA0100266              DO
,DEMOCRATIC CAUCUS,2010Q2,SUPPLIES AND MATERIALS,"",06­30 P1 10DA0100267        GEORGE F SHEVLIN,06/22/10,06/22/10,FOOD & BEVERAGE,198.51,FISCAL YEAR 2010,"","","",06­30 P1 10DA0100267        GEORGE F SHEVLIN
,DEMOCRATIC CAUCUS,2010Q2,SUPPLIES AND MATERIALS,"",06­30 P1 10DA0100265        SHELEY M RUBINO,06/14/10,06/14/10,FOOD & BEVERAGE,"1,387.00",FISCAL YEAR 2010,"","","",06­30 P1 10DA0100265        SHELEY M RUBINO
,DEMOCRATIC CAUCUS,2010Q2,TRAVEL,"",06­09 HV 10A90300759        WENDY ANNE HARTMAN,01/05/09,01/06/09,PRIVATE OWNED VEHICLE MILEAGE,208.55,FISCAL YEAR 2009,"","","",06­09 HV 10A90300759        WENDY ANNE HARTMAN
,DEMOCRATIC CAUCUS,2010Q2,TRAVEL,"",06­09   HV    10A90300760                        DO,01/15/09,01/15/09,PRIVATE OWNED VEHICLE MILEAGE,208.55,FISCAL YEAR 2009,"","","",06­09   HV    10A90300760                        DO
,DEMOCRATIC CAUCUS,2010Q2,TRAVEL,"",06­09   HV    10A90300761                        DO,01/22/09,01/24/09,PRIVATE OWNED VEHICLE MILEAGE,208.55,FISCAL YEAR 2009,"","","",06­09   HV    10A90300761                        DO
,DEMOCRATIC CAUCUS,2010Q2,TRAVEL,"",06­09   HV    10A90300762                        DO,01/29/09,01/30/09,PRIVATE OWNED VEHICLE MILEAGE,208.55,FISCAL YEAR 2009,"","","",06­09   HV    10A90300762                        DO
,DEMOCRATIC CAUCUS,2010Q2,TRAVEL,"",06­09   HV    10A90300763                        DO,02/02/09,02/08/09,PRIVATE OWNED VEHICLE MILEAGE,208.55,FISCAL YEAR 2009,"","","",06­09   HV    10A90300763                        DO
,DEMOCRATIC CAUCUS,2010Q2,TRAVEL,"",06­09   HV    10A90300764                        DO,04/06/09,04/08/09,PRIVATE OWNED VEHICLE MILEAGE,208.55,FISCAL YEAR 2009,"","","",06­09   HV    10A90300764                        DO
,REPUBLICAN CONFERENCE,2010Q2,PERSONNEL COMPENSATION,"","PITCOCK, JOSH",04/01/10,06/30/10,DEPUTY CHIEF OF STAFF-STATUTOR,"37,751.66",FISCAL YEAR 2010,"","","","PITCOCK, JOSH"
,REPUBLICAN CONFERENCE,2010Q2,PERSONNEL COMPENSATION,"","SHORT,MARC T",03/01/10,06/30/10,CHIEF OF STAFF (STATUTORY),"43,465.75",FISCAL YEAR 2010,"","","","SHORT,MARC T"
,REPUBLICAN CONFERENCE,2010Q2,PERSONNEL COMPENSATION,"","CASTILLO, ANDELIZ N",04/01/10,06/30/10,DIR OUTRCH COMMS/DEP PRESS SEC,"15,249.99",FISCAL YEAR 2010,"","","","CASTILLO, ANDELIZ N"
,REPUBLICAN CONFERENCE,2010Q2,PERSONNEL COMPENSATION,"","DEUTSCH,JEREMY",04/01/10,06/30/10,SHARED EMPLOYEE,"15,743.76",FISCAL YEAR 2010,"","","","DEUTSCH,JEREMY"
,REPUBLICAN CONFERENCE,2010Q2,PERSONNEL COMPENSATION,"","GRAY,JOHN W",04/05/10,06/30/10,POLICY ADVISOR,"11,944.45",FISCAL YEAR 2010,"","","","GRAY,JOHN W"
,REPUBLICAN CONFERENCE,2010Q2,PERSONNEL COMPENSATION,"","HEPBURN, ADAM J",04/01/10,06/30/10,POLICY ADVISOR,"12,000.00",FISCAL YEAR 2010,"","","","HEPBURN, ADAM J"
,REPUBLICAN CONFERENCE,2010Q2,PERSONNEL COMPENSATION,"","HOWARD,BENJAMIN R",04/01/10,06/30/10,STAFF ASSISTANT,"7,749.99",FISCAL YEAR 2010,"","","","HOWARD,BENJAMIN R"
,REPUBLICAN CONFERENCE,2010Q2,PERSONNEL COMPENSATION,"","KOENIG,ANDREW D",04/01/10,06/30/10,POLICY ADVISOR,"13,749.99",FISCAL YEAR 2010,"","","","KOENIG,ANDREW D"
,REPUBLICAN CONFERENCE,2010Q2,PERSONNEL COMPENSATION,"","KOLB,COURTNEY L",04/01/10,06/30/10,MEDIA COORDINATOR,"11,000.01",FISCAL YEAR 2010,"","","","KOLB,COURTNEY L"
,REPUBLICAN CONFERENCE,2010Q2,PERSONNEL COMPENSATION,"","MACLEAN, MARY G",04/01/10,06/30/10,DEPUTY COMMUNICATIONS DIRECTOR,"16,500.00",FISCAL YEAR 2010,"","","","MACLEAN, MARY G"
,REPUBLICAN CONFERENCE,2010Q2,PERSONNEL COMPENSATION,"","MAKIN, SARAH E",04/01/10,06/30/10,POLICY ADV & COALITIONS LIAISO,"14,250.00",FISCAL YEAR 2010,"","","","MAKIN, SARAH E"
,REPUBLICAN CONFERENCE,2010Q2,PERSONNEL COMPENSATION,"","MCMANUS,BRIAN F",04/05/10,06/30/10,POLICY ADV & COALITIONS LIAISO,"17,916.67",FISCAL YEAR 2010,"","","","MCMANUS,BRIAN F"
,REPUBLICAN CONFERENCE,2010Q2,PERSONNEL COMPENSATION,"","MEEKS,DARIS",04/01/10,06/30/10,POLICY ADVISOR & LEGIS. COUNS,"23,499.99",FISCAL YEAR 2010,"","","","MEEKS,DARIS"
,REPUBLICAN CONFERENCE,2010Q2,PERSONNEL COMPENSATION,"","NEALE,SCOTT R",04/01/10,05/31/10,PRESS ASSISTANT,"4,391.66",FISCAL YEAR 2010,"","","","NEALE,SCOTT R"
,REPUBLICAN CONFERENCE,2010Q2,PERSONNEL COMPENSATION,"","SACHTLEBEN,DOUGLAS R",04/08/10,06/30/10,WRITER,"12,104.17",FISCAL YEAR 2010,"","","","SACHTLEBEN,DOUGLAS R"
,REPUBLICAN CONFERENCE,2010Q2,PERSONNEL COMPENSATION,"","SEIDEL, EMILY R",04/01/10,06/30/10,OPS DIR & ASST TO CHF OF STAFF,"23,499.99",FISCAL YEAR 2010,"","","","SEIDEL, EMILY R"
,REPUBLICAN CONFERENCE,2010Q2,PERSONNEL COMPENSATION,"","SEMMEL,RACHEL K",04/01/10,06/30/10,TV/RADIO/BOOKER,"9,999.99",FISCAL YEAR 2010,"","","","SEMMEL,RACHEL K"
,REPUBLICAN CONFERENCE,2010Q2,PERSONNEL COMPENSATION,"","SMITH JR, WILLIAM A",04/01/10,06/30/10,SHARED EMPLOYEE,"5,000.01",FISCAL YEAR 2010,"","","","SMITH JR, WILLIAM A"
,REPUBLICAN CONFERENCE,2010Q2,PERSONNEL COMPENSATION,"","SMITH,JA'RON K",04/01/10,06/30/10,STAFF ASSISTANT,"7,749.99",FISCAL YEAR 2010,"","","","SMITH,JA'RON K"
,REPUBLICAN CONFERENCE,2010Q2,PERSONNEL COMPENSATION,"","STONE, JOHN E",04/01/10,06/30/10,SHARED EMPLOYEE,"13,749.99",FISCAL YEAR 2010,"","","","STONE, JOHN E"
,REPUBLICAN CONFERENCE,2010Q2,PERSONNEL COMPENSATION,"","STRAND, KATHRYN M",04/01/10,06/30/10,DIR OF MEMBER SERVICES,"22,500.00",FISCAL YEAR 2010,"","","","STRAND, KATHRYN M"
,REPUBLICAN CONFERENCE,2010Q2,PERSONNEL COMPENSATION,"","THOMPSON,WHITNEY",04/01/10,06/30/10,SHARED EMPLOYEE,"9,999.99",FISCAL YEAR 2010,"","","","THOMPSON,WHITNEY"
,REPUBLICAN CONFERENCE,2010Q2,TRAVEL,"",04­01       P1    10RC0100163               MARC T SHORT,03/17/10,03/17/10,"TAXI, PARKING, TOLLS",20.00,FISCAL YEAR 2010,"","","",04­01       P1    10RC0100163               MARC T SHORT
,REPUBLICAN CONFERENCE,2010Q2,TRAVEL,"",04­01       P1    10RC0100161               RACHEL SEMMEL,03/09/10,03/09/10,"TAXI, PARKING, TOLLS",32.00,FISCAL YEAR 2010,"","","",04­01       P1    10RC0100161               RACHEL SEMMEL
,REPUBLICAN CONFERENCE,2010Q2,TRAVEL,"",04­01       P1    10RC0100162               SARAH F. MAKIN,03/16/10,03/16/10,"TAXI, PARKING, TOLLS",20.00,FISCAL YEAR 2010,"","","",04­01       P1    10RC0100162               SARAH F. MAKIN
,REPUBLICAN CONFERENCE,2010Q2,TRAVEL,"",04­10       P1    10RC0100176               MARC T SHORT,04/07/10,04/07/10,"TAXI, PARKING, TOLLS",9.00,FISCAL YEAR 2010,"","","",04­10       P1    10RC0100176               MARC T SHORT
,REPUBLICAN CONFERENCE,2010Q2,TRAVEL,"",04­23       P1    10RC0100189               BRIAN MCMANUS,04/07/10,04/14/10,"TAXI, PARKING, TOLLS",32.00,FISCAL YEAR 2010,"","","",04­23       P1    10RC0100189               BRIAN MCMANUS
,REPUBLICAN CONFERENCE,2010Q2,TRAVEL,"",04­23       P1    10RC0100194               DARIS MEEKS,04/13/10,04/13/10,"TAXI, PARKING, TOLLS",40.52,FISCAL YEAR 2010,"","","",04­23       P1    10RC0100194               DARIS MEEKS
,REPUBLICAN CONFERENCE,2010Q2,TRAVEL,"",04­23       P1    10RC0100195               MARY G. VOUGHT,03/21/10,03/21/10,"TAXI, PARKING, TOLLS",7.50,FISCAL YEAR 2010,"","","",04­23       P1    10RC0100195               MARY G. VOUGHT
,REPUBLICAN CONFERENCE,2010Q2,TRAVEL,"",04­23       P1    10RC0100190               SARAH F. MAKIN,04/07/10,04/07/10,"TAXI, PARKING, TOLLS",13.00,FISCAL YEAR 2010,"","","",04­23       P1    10RC0100190               SARAH F. MAKIN
,REPUBLICAN CONFERENCE,2010Q2,TRAVEL,"",04­30       P1    10RC0100206               BRIAN MCMANUS,04/21/10,04/21/10,"TAXI, PARKING, TOLLS",16.00,FISCAL YEAR 2010,"","","",04­30       P1    10RC0100206               BRIAN MCMANUS
,REPUBLICAN CONFERENCE,2010Q2,TRAVEL,"",04­30       P1    10RC0100203               MARC T SHORT,04/21/10,04/21/10,"TAXI, PARKING, TOLLS",20.00,FISCAL YEAR 2010,"","","",04­30       P1    10RC0100203               MARC T SHORT
,REPUBLICAN CONFERENCE,2010Q2,TRAVEL,"",04­30       P1    10RC0100207               SARAH F. MAKIN,04/21/10,04/21/10,"TAXI, PARKING, TOLLS",8.00,FISCAL YEAR 2010,"","","",04­30       P1    10RC0100207               SARAH F. MAKIN
,REPUBLICAN CONFERENCE,2010Q2,TRAVEL,"",05­12       P1    10RC0100213               BRIAN MCMANUS,05/05/10,05/05/10,"TAXI, PARKING, TOLLS",15.00,FISCAL YEAR 2010,"","","",05­12       P1    10RC0100213               BRIAN MCMANUS
,REPUBLICAN CONFERENCE,2010Q2,TRAVEL,"",05­12       P1    10RC0100219                    DO,04/28/10,04/28/10,"TAXI, PARKING, TOLLS",15.00,FISCAL YEAR 2010,"","","",05­12       P1    10RC0100219                    DO
,REPUBLICAN CONFERENCE,2010Q2,TRAVEL,"",05­12       P1    10RC0100210               MARC T SHORT,05/03/10,05/03/10,"TAXI, PARKING, TOLLS",10.00,FISCAL YEAR 2010,"","","",05­12       P1    10RC0100210               MARC T SHORT
,REPUBLICAN CONFERENCE,2010Q2,TRAVEL,"",05­12       P1    10RC0100214                    DO,05/03/10,05/03/10,"TAXI, PARKING, TOLLS",33.00,FISCAL YEAR 2010,"","","",05­12       P1    10RC0100214                    DO
,REPUBLICAN CONFERENCE,2010Q2,TRAVEL,"",05­12       P1    10RC0100218               SARAH F. MAKIN,04/28/10,04/28/10,"TAXI, PARKING, TOLLS",8.00,FISCAL YEAR 2010,"","","",05­12       P1    10RC0100218               SARAH F. MAKIN
,REPUBLICAN CONFERENCE,2010Q2,TRAVEL,"",05­19       P1    10RC0100221               CITIBANK GOV CARD SERVICE,04/12/10,04/13/10,COMMERCIAL TRANSPORTATION,155.40,FISCAL YEAR 2010,"","","",05­19       P1    10RC0100221               CITIBANK GOV CARD SERVICE
,REPUBLICAN CONFERENCE,2010Q2,TRAVEL,"",05­19       P1    10RC0100222                    DO,04/12/10,04/13/10,TRAVEL REIMBURSEMENT,460.61,FISCAL YEAR 2010,"","","",05­19       P1    10RC0100222                    DO
,REPUBLICAN CONFERENCE,2010Q2,TRAVEL,"",05­25       P1    10RC0100231               BRIAN MCMANUS,05/19/10,05/19/10,"TAXI, PARKING, TOLLS",14.00,FISCAL YEAR 2010,"","","",05­25       P1    10RC0100231               BRIAN MCMANUS
,REPUBLICAN CONFERENCE,2010Q2,TRAVEL,"",05­25       P1    10RC0100235                    DO,05/13/10,05/13/10,"TAXI, PARKING, TOLLS",7.00,FISCAL YEAR 2010,"","","",05­25       P1    10RC0100235                    DO
,REPUBLICAN CONFERENCE,2010Q2,TRAVEL,"",05­25       P1    10RC0100236               SARAH F. MAKIN,05/05/10,05/05/10,"TAXI, PARKING, TOLLS",8.00,FISCAL YEAR 2010,"","","",05­25       P1    10RC0100236               SARAH F. MAKIN
,REPUBLICAN CONFERENCE,2010Q2,TRAVEL,"",06­01       P1    10RC0100237               JOSHUA PITCOCK,05/20/10,05/20/10,"TAXI, PARKING, TOLLS",27.00,FISCAL YEAR 2010,"","","",06­01       P1    10RC0100237               JOSHUA PITCOCK
,REPUBLICAN CONFERENCE,2010Q2,TRAVEL,"",06­01       P1    10RC0100238               SARAH F. MAKIN,05/19/10,05/19/10,"TAXI, PARKING, TOLLS",8.00,FISCAL YEAR 2010,"","","",06­01       P1    10RC0100238               SARAH F. MAKIN
,REPUBLICAN CONFERENCE,2010Q2,TRAVEL,"",06­04       P1    10RC0100241               BRIAN MCMANUS,05/21/10,05/21/10,"TAXI, PARKING, TOLLS",24.00,FISCAL YEAR 2010,"","","",06­04       P1    10RC0100241               BRIAN MCMANUS
,REPUBLICAN CONFERENCE,2010Q2,TRAVEL,"",06­04       P1    10RC0100244                    DO,05/26/10,05/26/10,"TAXI, PARKING, TOLLS",14.00,FISCAL YEAR 2010,"","","",06­04       P1    10RC0100244                    DO
,REPUBLICAN CONFERENCE,2010Q2,TRAVEL,"",06­04       P1    10RC0100243               RACHEL SEMMEL,05/25/10,05/25/10,"TAXI, PARKING, TOLLS",14.00,FISCAL YEAR 2010,"","","",06­04       P1    10RC0100243               RACHEL SEMMEL
,REPUBLICAN CONFERENCE,2010Q2,TRAVEL,"",06­16       P1    10RC0100246               COURTNEY L. KOLB,05/11/10,05/11/10,"TAXI, PARKING, TOLLS",40.00,FISCAL YEAR 2010,"","","",06­16       P1    10RC0100246               COURTNEY L. KOLB
,REPUBLICAN CONFERENCE,2010Q2,TRAVEL,"",06­16       P1    10RC0100247               MARY G. VOUGHT,06/01/10,06/01/10,"TAXI, PARKING, TOLLS",10.00,FISCAL YEAR 2010,"","","",06­16       P1    10RC0100247               MARY G. VOUGHT
,REPUBLICAN CONFERENCE,2010Q2,TRAVEL,"",06­21       P1    10RC0100258               BRIAN MCMANUS,06/09/10,06/09/10,"TAXI, PARKING, TOLLS",16.00,FISCAL YEAR 2010,"","","",06­21       P1    10RC0100258               BRIAN MCMANUS
,REPUBLICAN CONFERENCE,2010Q2,TRAVEL,"",06­21       P1    10RC0100257               MARC T SHORT,06/08/10,06/08/10,"TAXI, PARKING, TOLLS",20.00,FISCAL YEAR 2010,"","","",06­21       P1    10RC0100257               MARC T SHORT
,REPUBLICAN CONFERENCE,2010Q2,TRAVEL,"",06­26       P1    10RC0100268               BRIAN MCMANUS,06/02/10,06/16/10,"TAXI, PARKING, TOLLS",24.00,FISCAL YEAR 2010,"","","",06­26       P1    10RC0100268               BRIAN MCMANUS
,REPUBLICAN CONFERENCE,2010Q2,TRAVEL,"",06­26       P1    10RC0100267               SARAH F. MAKIN,06/09/10,06/09/10,"TAXI, PARKING, TOLLS",8.00,FISCAL YEAR 2010,"","","",06­26       P1    10RC0100267               SARAH F. MAKIN
,REPUBLICAN CONFERENCE,2010Q2,TRAVEL,"",06­30       P1    10RC0100272               BRIAN MCMANUS,06/23/10,06/23/10,"TAXI, PARKING, TOLLS",16.00,FISCAL YEAR 2010,"","","",06­30       P1    10RC0100272               BRIAN MCMANUS
,REPUBLICAN CONFERENCE,2010Q2,TRAVEL,"",06­30       P1    10RC0100271               MATTHEW H LLOYD,06/16/10,06/16/10,"TAXI, PARKING, TOLLS",15.00,FISCAL YEAR 2010,"","","",06­30       P1    10RC0100271               MATTHEW H LLOYD
,REPUBLICAN CONFERENCE,2010Q2,"RENT, COMMUNICATION, UTILITIES","",04­16   P1 10RC0100186     CITIBANK GOV CARD SERVICE,03/05/10,03/05/10,POSTAGE/COURIER/BOX RENTAL,26.40,FISCAL YEAR 2010,"","","",04­16   P1 10RC0100186     CITIBANK GOV CARD SERVICE
,REPUBLICAN CONFERENCE,2010Q2,OTHER SERVICES,"","04­01   P1   10RC0100169                KEYNOTES, INC",03/10/10,03/10/10,STENOGRAPHIC REPORTING,119.07,FISCAL YEAR 2010,"","","","04­01   P1   10RC0100169                KEYNOTES, INC"
,REPUBLICAN CONFERENCE,2010Q2,OTHER SERVICES,"",04­01   P1   10RC0100170                    DO,03/19/10,03/22/10,STENOGRAPHIC REPORTING,385.77,FISCAL YEAR 2010,"","","",04­01   P1   10RC0100170                    DO
,REPUBLICAN CONFERENCE,2010Q2,OTHER SERVICES,"",05­12   P1   10RC0100212                    DO,04/28/10,05/05/10,STENOGRAPHIC REPORTING,477.55,FISCAL YEAR 2010,"","","",05­12   P1   10RC0100212                    DO
,REPUBLICAN CONFERENCE,2010Q2,OTHER SERVICES,"",05­25   P1   10RC0100234                    DO,02/18/10,02/18/10,TRANSLATION & INTERPRETATION,127.98,FISCAL YEAR 2010,"","","",05­25   P1   10RC0100234                    DO
,REPUBLICAN CONFERENCE,2010Q2,SUPPLIES AND MATERIALS,"",04­01   P1   10RC0100164      CHANTILLY DONUTS,03/16/10,03/16/10,FOOD & BEVERAGE,82.00,FISCAL YEAR 2010,"","","",04­01   P1   10RC0100164      CHANTILLY DONUTS
,REPUBLICAN CONFERENCE,2010Q2,SUPPLIES AND MATERIALS,"",04­01   P1   10RC0100165           DO,03/18/10,03/18/10,FOOD & BEVERAGE,74.00,FISCAL YEAR 2010,"","","",04­01   P1   10RC0100165           DO
,REPUBLICAN CONFERENCE,2010Q2,SUPPLIES AND MATERIALS,"",04­01   P1   10RC0100168           DO,02/23/10,02/23/10,FOOD & BEVERAGE,82.00,FISCAL YEAR 2010,"","","",04­01   P1   10RC0100168           DO
,REPUBLICAN CONFERENCE,2010Q2,SUPPLIES AND MATERIALS,"",04­01   P1   10RC0100167      RACHEL SEMMEL,03/21/10,03/21/10,FOOD & BEVERAGE,23.18,FISCAL YEAR 2010,"","","",04­01   P1   10RC0100167      RACHEL SEMMEL
,REPUBLICAN CONFERENCE,2010Q2,SUPPLIES AND MATERIALS,"",04­01   P1   10RC0100166      SCOTT R NEALE,03/21/10,03/21/10,FOOD & BEVERAGE,130.14,FISCAL YEAR 2010,"","","",04­01   P1   10RC0100166      SCOTT R NEALE
,REPUBLICAN CONFERENCE,2010Q2,SUPPLIES AND MATERIALS,"",04­08   P1   10RC0100172      CAPITOLHOST,03/11/10,03/11/10,FOOD & BEVERAGE,210.00,FISCAL YEAR 2010,"","","",04­08   P1   10RC0100172      CAPITOLHOST
,REPUBLICAN CONFERENCE,2010Q2,SUPPLIES AND MATERIALS,"",04­08   P1   10RC0100174           DO,03/10/10,03/10/10,FOOD & BEVERAGE,210.00,FISCAL YEAR 2010,"","","",04­08   P1   10RC0100174           DO
,REPUBLICAN CONFERENCE,2010Q2,SUPPLIES AND MATERIALS,"",04­10   P1   10RC0100175           DO,03/16/10,03/16/10,FOOD & BEVERAGE,210.00,FISCAL YEAR 2010,"","","",04­10   P1   10RC0100175           DO
,REPUBLICAN CONFERENCE,2010Q2,SUPPLIES AND MATERIALS,"",04­10   P1   10RC0100177      MARC T SHORT,04/07/10,04/07/10,FOOD & BEVERAGE,27.02,FISCAL YEAR 2010,"","","",04­10   P1   10RC0100177      MARC T SHORT
,REPUBLICAN CONFERENCE,2010Q2,SUPPLIES AND MATERIALS,"",04­10   P1   10RC0100178           DO,03/31/10,03/31/10,FOOD & BEVERAGE,45.01,FISCAL YEAR 2010,"","","",04­10   P1   10RC0100178           DO
,REPUBLICAN CONFERENCE,2010Q2,SUPPLIES AND MATERIALS,"","04­10   P1   10RC0100180      SHADOW TV, INC",04/01/10,04/30/10,PUBLICATION REF MATERIAL,"1,500.00",FISCAL YEAR 2010,"","","","04­10   P1   10RC0100180      SHADOW TV, INC"
,REPUBLICAN CONFERENCE,2010Q2,SUPPLIES AND MATERIALS,"",04­10   P1   10RC0100179      THE NEW YORK TIMES,03/22/10,03/20/11,PUBLICATION REF MATERIAL,407.89,FISCAL YEAR 2010,"","","",04­10   P1   10RC0100179      THE NEW YORK TIMES
,REPUBLICAN CONFERENCE,2010Q2,SUPPLIES AND MATERIALS,"",04­10   P1   10RC0100181      WALKER COMMUNICATIONS,04/01/10,04/30/10,PUBLICATION REF MATERIAL,150.00,FISCAL YEAR 2010,"","","",04­10   P1   10RC0100181      WALKER COMMUNICATIONS
,REPUBLICAN CONFERENCE,2010Q2,SUPPLIES AND MATERIALS,"",04­16   P1   10RC0100182      CITIBANK GOV CARD SERVICE,03/01/10,03/26/10,FOOD & BEVERAGE,"3,183.56",FISCAL YEAR 2010,"","","",04­16   P1   10RC0100182      CITIBANK GOV CARD SERVICE
,REPUBLICAN CONFERENCE,2010Q2,SUPPLIES AND MATERIALS,"",04­16   P1   10RC0100187           DO,03/01/10,03/31/10,PUBLICATION REF MATERIAL,5.95,FISCAL YEAR 2010,"","","",04­16   P1   10RC0100187           DO
,REPUBLICAN CONFERENCE,2010Q2,SUPPLIES AND MATERIALS,"",04­20   C1   NW201010904      DEER PARK,03/11/10,03/11/10,BOTTLED WATER,103.91,FISCAL YEAR 2010,"","","",04­20   C1   NW201010904      DEER PARK
,REPUBLICAN CONFERENCE,2010Q2,SUPPLIES AND MATERIALS,"",04­20   C1   NW201010904           DO,03/26/10,03/26/10,BOTTLED WATER,133.89,FISCAL YEAR 2010,"","","",04­20   C1   NW201010904           DO
,REPUBLICAN CONFERENCE,2010Q2,SUPPLIES AND MATERIALS,"",04­20   C1   NW201010904           DO,03/31/10,03/31/10,BOTTLED WATER,2.00,FISCAL YEAR 2010,"","","",04­20   C1   NW201010904           DO
,REPUBLICAN CONFERENCE,2010Q2,SUPPLIES AND MATERIALS,"",04­23   P1   10RC0100191      CAPITOLHOST,03/18/10,03/18/10,FOOD & BEVERAGE,252.00,FISCAL YEAR 2010,"","","",04­23   P1   10RC0100191      CAPITOLHOST
,REPUBLICAN CONFERENCE,2010Q2,SUPPLIES AND MATERIALS,"",04­23   P1   10RC0100192           DO,03/23/10,03/23/10,FOOD & BEVERAGE,210.00,FISCAL YEAR 2010,"","","",04­23   P1   10RC0100192           DO
,REPUBLICAN CONFERENCE,2010Q2,SUPPLIES AND MATERIALS,"","04­23   P1   10RC0100200      DOW JONES & COMPANY, INC",03/10/10,01/26/11,PUBLICATION REF MATERIAL,649.44,FISCAL YEAR 2010,"","","","04­23   P1   10RC0100200      DOW JONES & COMPANY, INC"
,REPUBLICAN CONFERENCE,2010Q2,SUPPLIES AND MATERIALS,"",04­23   P1   10RC0100196      EMILY R. SEIDEL,04/14/10,04/14/10,FOOD & BEVERAGE,100.38,FISCAL YEAR 2010,"","","",04­23   P1   10RC0100196      EMILY R. SEIDEL
,REPUBLICAN CONFERENCE,2010Q2,SUPPLIES AND MATERIALS,"",04­23   P1   10RC0100188      WHITNEY THOMPSON,03/24/10,03/25/10,FOOD & BEVERAGE,128.92,FISCAL YEAR 2010,"","","",04­23   P1   10RC0100188      WHITNEY THOMPSON
,REPUBLICAN CONFERENCE,2010Q2,SUPPLIES AND MATERIALS,"",04­23   P1   10RC0100197           DO,04/14/10,04/15/10,FOOD & BEVERAGE,107.71,FISCAL YEAR 2010,"","","",04­23   P1   10RC0100197           DO
,REPUBLICAN CONFERENCE,2010Q2,SUPPLIES AND MATERIALS,"",04­30   P1   10RC0100205      CHANTILLY DONUTS,04/21/10,04/21/10,FOOD & BEVERAGE,85.00,FISCAL YEAR 2010,"","","",04­30   P1   10RC0100205      CHANTILLY DONUTS
,REPUBLICAN CONFERENCE,2010Q2,SUPPLIES AND MATERIALS,"",04­30   P1   10RC0100204      EMILY R. SEIDEL,04/22/10,04/22/10,FOOD & BEVERAGE,26.72,FISCAL YEAR 2010,"","","",04­30   P1   10RC0100204      EMILY R. SEIDEL
,REPUBLICAN CONFERENCE,2010Q2,SUPPLIES AND MATERIALS,"",04­30   P1   10RC0100201      THE WASHINGTON POST,05/15/10,05/15/11,PUBLICATION REF MATERIAL,648.44,FISCAL YEAR 2010,"","","",04­30   P1   10RC0100201      THE WASHINGTON POST
,REPUBLICAN CONFERENCE,2010Q2,SUPPLIES AND MATERIALS,"",05­12   P1   10RC0100216      CAPITOLHOST,04/14/10,04/14/10,FOOD & BEVERAGE,210.00,FISCAL YEAR 2010,"","","",05­12   P1   10RC0100216      CAPITOLHOST
,REPUBLICAN CONFERENCE,2010Q2,SUPPLIES AND MATERIALS,"",05­12   P1   10RC0100215      CHANTILLY DONUTS,05/05/10,05/05/10,FOOD & BEVERAGE,85.00,FISCAL YEAR 2010,"","","",05­12   P1   10RC0100215      CHANTILLY DONUTS
,REPUBLICAN CONFERENCE,2010Q2,SUPPLIES AND MATERIALS,"",05­12   P1   10RC0100209      CHRISTOPHER KELLY CRAWFORD,04/29/10,04/29/10,FOOD & BEVERAGE,31.96,FISCAL YEAR 2010,"","","",05­12   P1   10RC0100209      CHRISTOPHER KELLY CRAWFORD
,REPUBLICAN CONFERENCE,2010Q2,SUPPLIES AND MATERIALS,"",05­12   P1   10RC0100211      MATTHEW H LLOYD,05/03/10,05/03/10,OFFICE SUPPLIES OUTSIDE,74.99,FISCAL YEAR 2010,"","","",05­12   P1   10RC0100211      MATTHEW H LLOYD
,REPUBLICAN CONFERENCE,2010Q2,SUPPLIES AND MATERIALS,"",05­12   P1   10RC0100220      WALKER COMMUNICATIONS,05/01/10,05/31/10,PUBLICATION REF MATERIAL,150.00,FISCAL YEAR 2010,"","","",05­12   P1   10RC0100220      WALKER COMMUNICATIONS
,REPUBLICAN CONFERENCE,2010Q2,SUPPLIES AND MATERIALS,"",05­12   P1   10RC0100208      WHITNEY THOMPSON,04/28/10,04/29/10,FOOD & BEVERAGE,169.12,FISCAL YEAR 2010,"","","",05­12   P1   10RC0100208      WHITNEY THOMPSON
,REPUBLICAN CONFERENCE,2010Q2,SUPPLIES AND MATERIALS,"",05­12   P1   10RC0100217           DO,04/21/10,04/22/10,FOOD & BEVERAGE,92.71,FISCAL YEAR 2010,"","","",05­12   P1   10RC0100217           DO
